Workbook

Sheet AWHP (hidden)
B1: Syst | C1: =Données!C69 -> OenoviaPAC-GS (sol) | D1: Modèle | E1: =Données!C72 -> OenoniaPAC-GS 12 MR | G1: Pose | H1: =Données!D192 -> Au sol
B2: AWHP | C2: =IF(C1=B2,1,IF(C1=B3,2,IF(C1=B4,3,IF(C1=B5,4)))) -> FALSE | D2: =IF($C$1="AWHP",B9,IF($C$1="ROE+",C9,IF($C$1="SOLO",D9,IF($C$1="NAPO",E9)))) -> FALSE | E2: =IF(E1=D2,1,IF(E1=D3,2,IF(E1=D4,3,IF(E1=D5,4,IF(E1=D6,5,IF(E1=D7,6,IF(E1=D8,7))))))) -> FALSE | G2: Au sol
D3: FALSE | G3: Au mur
D4: FALSE
D5: FALSE
D6: FALSE
D7: FALSE
B8: AWHP 6MR | D8: FALSE
B9: AWHP 8 MR
B10: AWHP 11 MR
B11: AWHP 11 TR
B12: AWHP 14MR | G12: 0
B13: AWHP 14 TR | G13: 1
B14: AWHP 16 MR
B15: AWHP 16 TR
C16: =Données!I72 -> Fioul condensation
B17: Appoint | C17: =IF(C16<>"Electrique",B18,B19) -> Hydraulique par chaudière | D17: PAC
B18: Hydraulique par chaudière | C18: =IF(C17=B18,1,IF(C17=B19,2,IF(C17=B20,1))) -> 1 | D18: =IF(E1=B8,0,1+(E2-1)*2+C18-1) -> -1
B19: Electrique
J22: PAC ALEZIO AWHP / AWHP II
B23: REFERENCE | C23: DESIGNATION | D23: COLIS | E23: PRIX | J23: REFERENCE | L23: GROUPE | M23: DESIGNATION | N23: COLIS | O23: PRIX | P23: PRIX
E24: EURO | L24: GFCC | O24: EUR 2010 | P24: EUR 2011
A25: 0 | B25: 100015484 | C25: =VLOOKUP(B25,PRIX!$1:$1048576,2,FALSE) -> AWHP 6 MR-II/EM | E25: =VLOOKUP(B25,PRIX!$1:$1048576,4,FALSE) -> 0
A26: 1 | B26: 100012610 | C26: =VLOOKUP(B26,PRIX!$1:$1048576,2,FALSE) -> AWHP 8 MR/H | E26: =VLOOKUP(B26,PRIX!$1:$1048576,4,FALSE) -> 5900 | J26: 100015484 | K26: =TEXT(J26,0) -> 100015484 | L26: PAC | M26: AWHP 6 MR-II/EM | P26: 4000
A27: 2 | B27: 100015486 | C27: =VLOOKUP(B27,PRIX!$1:$1048576,2,FALSE) -> AWHP 8 MR-II/EM | E27: =VLOOKUP(B27,PRIX!$1:$1048576,4,FALSE) -> 0 | J27: 100012610 | K27: 100012610 | L27: PAC | M27: AWHP 8 MR/H | O27: 5900 | P27: 5268
A28: 3 | B28: 100012612 | C28: =VLOOKUP(B28,PRIX!$1:$1048576,2,FALSE) -> AWHP 11 MR/H | E28: =VLOOKUP(B28,PRIX!$1:$1048576,4,FALSE) -> 6638 | J28: 100015486 | K28: 100015486 | L28: PAC | M28: AWHP 8 MR-II/EM | P28: 4600
A29: 4 | B29: 100015488 | C29: =VLOOKUP(B29,PRIX!$1:$1048576,2,FALSE) -> AWHP 11 MR-II/EM | E29: =VLOOKUP(B29,PRIX!$1:$1048576,4,FALSE) -> 0 | J29: 100012612 | K29: 100012612 | L29: PAC | M29: AWHP 11 MR/H | O29: 6638 | P29: 6006
A30: 5 | B30: 100012614 | C30: =VLOOKUP(B30,PRIX!$1:$1048576,2,FALSE) -> AWHP 11 TR/H | E30: =VLOOKUP(B30,PRIX!$1:$1048576,4,FALSE) -> 6901 | J30: 100015488 | K30: 100015488 | L30: PAC | M30: AWHP 11 MR-II/EM | P30: 6006
A31: 6 | B31: 100015490 | C31: =VLOOKUP(B31,PRIX!$1:$1048576,2,FALSE) -> AWHP 11 TR-II/ET | E31: =VLOOKUP(B31,PRIX!$1:$1048576,4,FALSE) -> 0 | J31: 100012614 | K31: 100012614 | L31: PAC | M31: AWHP 11 TR/H | O31: 6901 | P31: 6269
A32: 7 | B32: 100012616 | C32: =VLOOKUP(B32,PRIX!$1:$1048576,2,FALSE) -> AWHP 14 MR/H | E32: =VLOOKUP(B32,PRIX!$1:$1048576,4,FALSE) -> 7164 | J32: 100015490 | K32: 100015490 | L32: PAC | M32: AWHP 11 TR-II/ET | P32: 6269
A33: 8 | B33: 100015492 | C33: =VLOOKUP(B33,PRIX!$1:$1048576,2,FALSE) -> AWHP 14 MR-II/EM | E33: =VLOOKUP(B33,PRIX!$1:$1048576,4,FALSE) -> 0 | J33: 100012616 | K33: 100012616 | L33: PAC | M33: AWHP 14 MR/H | O33: 7164 | P33: 6582
A34: 9 | B34: 100012618 | C34: =VLOOKUP(B34,PRIX!$1:$1048576,2,FALSE) -> AWHP 14 TR/H | E34: =VLOOKUP(B34,PRIX!$1:$1048576,4,FALSE) -> 7428 | J34: 100015492 | K34: 100015492 | L34: PAC | M34: AWHP 14 MR-II/EM | P34: 6532
A35: 10 | B35: 100015494 | C35: =VLOOKUP(B35,PRIX!$1:$1048576,2,FALSE) -> AWHP 14 TR-II/ET | E35: =VLOOKUP(B35,PRIX!$1:$1048576,4,FALSE) -> 0 | J35: 100012618 | K35: 100012618 | L35: PAC | M35: AWHP 14 TR/H | O35: 7428 | P35: 6796
A36: 11 | B36: 100012620 | C36: =VLOOKUP(B36,PRIX!$1:$1048576,2,FALSE) -> AWHP 16 MR/H | E36: =VLOOKUP(B36,PRIX!$1:$1048576,4,FALSE) -> 7586 | J36: 100015494 | K36: 100015494 | L36: PAC | M36: AWHP 14 TR-II/ET | P36: 6796
A37: 12 | B37: 100015496 | C37: =VLOOKUP(B37,PRIX!$1:$1048576,2,FALSE) -> AWHP 16 MR-II/EM | E37: =VLOOKUP(B37,PRIX!$1:$1048576,4,FALSE) -> 0 | J37: 100012620 | K37: 100012620 | L37: PAC | M37: AWHP 16 MR/H | O37: 7586 | P37: 6954
A38: 13 | B38: 100012622 | C38: =VLOOKUP(B38,PRIX!$1:$1048576,2,FALSE) -> AWHP 16 TR/H | E38: =VLOOKUP(B38,PRIX!$1:$1048576,4,FALSE) -> 7954 | J38: 100015496 | K38: 100015496 | L38: PAC | M38: AWHP 16 MR-II/EM | P38: 6954
A39: 14 | B39: 100015498 | C39: =VLOOKUP(B39,PRIX!$1:$1048576,2,FALSE) -> AWHP 16 TR-II/ET | E39: =VLOOKUP(B39,PRIX!$1:$1048576,4,FALSE) -> 0 | J39: 100012622 | K39: 100012622 | L39: PAC | M39: AWHP 16 TR/H | O39: 7954 | P39: 7322
J40: 100015498 | K40: =TEXT(J40,0) -> 100015498 | L40: PAC | M40: AWHP 16 TR-II/ET | P40: 7322
J41: 100015480 | K41: 100015480 | M41: RACCORD D'ADAPTATION 1/4" 1/2" VERS 3/8" 5/8" | N41: EH146 | P41: 50
M42: OPTIONS COMMUNES
B43: OPTIONS
B44: REFERENCE | C44: DESIGNATION | D44: COLIS | E44: PRIX | J44: 100004417 | K44: 100004417 | M44: FILTRE 400UM + VANNE D'ISOLEMENT 1'' | N44: EH61 | O44: 88.7 | P44: 88.7
E45: EURO | J45: 100011222 | K45: 100011222 | M45: SUPPORT FIXATION MURALE & PLOTS ANTIVIBRATILES POUR ROE-II 6 à 10 - AWHP | N45: EH95 | O45: 138.1 | P45: 138.1
J46: 100012532 | K46: 100012532 | M46: BAC DE RECUPERATION CONDENSATS POUR SUPPORT MURAL | N46: EH111 | O46: 120.6 | P46: 120.6
J47: 100012534 | K47: 100012534 | M47: CORDON CHAUFFANT ELECTRIQUE | N47: EH113 | O47: 127.1 | P47: 127.1
B48: 100004417 | C48: =VLOOKUP(B48,PRIX!$1:$1048576,2,FALSE) -> FILTRE 400UM + VANNE D'ISOLEMENT PAC ROE 6-10 ET ROE+ | D48: =VLOOKUP(B48,PRIX!$1:$1048576,3,FALSE) -> EH61 | E48: =VLOOKUP(B48,PRIX!$1:$1048576,4,FALSE) -> 88.7 | F48: 1 | J48: 100012533 | K48: 100012533 | M48: SUPPORT POSE AU SOL AWHP | N48: EH112 | O48: 38.3 | P48: 38.3
B49: 100011222 | C49: =VLOOKUP(B49,PRIX!$1:$1048576,2,FALSE) -> SUPPORT FIXATION MURALE & PLOTS ANTIVIBRATILES POUR ROE-II 6 à 10 - AWHP | D49: =VLOOKUP(B49,PRIX!$1:$1048576,3,FALSE) -> EH95 | E49: =VLOOKUP(B49,PRIX!$1:$1048576,4,FALSE) -> 138.1 | F49: =G49 -> 0 | G49: =IF(H1="Au mur",1,0) -> 0 | J49: 100012535 | K49: 100012535 | M49: LIAISON FRIGORIFIQUE PE 5/8'' 3/8'' - LG 5m | N49: EH114 | O49: 197.3 | P49: 197.3
B50: 100012532 | C50: =VLOOKUP(B50,PRIX!$1:$1048576,2,FALSE) -> BAC DE RECUPERATION CONDENSATS POUR SUPPORT MURAL | D50: =VLOOKUP(B50,PRIX!$1:$1048576,3,FALSE) -> EH111 | E50: =VLOOKUP(B50,PRIX!$1:$1048576,4,FALSE) -> 120.6 | F50: =G50 -> 0 | G50: =IF(H1="Au mur",1,0) -> 0 | J50: 100012536 | K50: 100012536 | M50: LIAISON FRIGORIFIQUE PE 5/8'' 3/8'' - LG 10m | N50: EH115 | O50: 350.7 | P50: 350.7
B51: 100012534 | C51: =VLOOKUP(B51,PRIX!$1:$1048576,2,FALSE) -> CORDON CHAUFFANT ELECTRIQUE | D51: =VLOOKUP(B51,PRIX!$1:$1048576,3,FALSE) -> EH113 | E51: =VLOOKUP(B51,PRIX!$1:$1048576,4,FALSE) -> 127.1 | F51: =G51 -> 0 | G51: =IF(H1="Au mur",1,0) -> 0 | J51: 100012537 | K51: 100012537 | M51: LIAISON FRIGORIFIQUE PE 5/8'' 3/8'' - LG 20m | N51: EH116 | O51: 635.3 | P51: 635.3
B52: 100012533 | C52: =VLOOKUP(B52,PRIX!$1:$1048576,2,FALSE) -> SUPPORT POSE AU SOL AWHP | D52: =VLOOKUP(B52,PRIX!$1:$1048576,3,FALSE) -> EH112 | E52: =VLOOKUP(B52,PRIX!$1:$1048576,4,FALSE) -> 38.3 | F52: =G52 -> 1 | G52: =IF(H1="Au sol",1,0) -> 1 | J52: 100008841 | K52: 100008841 | M52: BALLON TAMPON 80L B 80 T | N52: EH85 | O52: 438.4 | P52: 438.4
B53: 100012535 | C53: =VLOOKUP(B53,PRIX!$1:$1048576,2,FALSE) -> LIAISON FRIGORIFIQUE PE 5/8'' 3/8'' - LG 5m | D53: =VLOOKUP(B53,PRIX!$1:$1048576,3,FALSE) -> EH114 | E53: =VLOOKUP(B53,PRIX!$1:$1048576,4,FALSE) -> 197.3 | F53: 1 | J53: 100004415 | K53: 100004415 | M53: BALLON TAMPON 160L B 150 T | N53: EH60 | O53: 659.8 | P53: 659.8
B54: 100012536 | C54: =VLOOKUP(B54,PRIX!$1:$1048576,2,FALSE) -> LIAISON FRIGORIFIQUE PE 5/8'' 3/8'' - LG 10m | D54: =VLOOKUP(B54,PRIX!$1:$1048576,3,FALSE) -> EH115 | E54: =VLOOKUP(B54,PRIX!$1:$1048576,4,FALSE) -> 350.7 | F54: 1 | J54: 100002276 | K54: 100002276 | M54: VANNE D'INVERSION POUR BYPASS | N54: HC135 | O54: 301.7 | P54: 301.7
B55: 100012537 | C55: =VLOOKUP(B55,PRIX!$1:$1048576,2,FALSE) -> LIAISON FRIGORIFIQUE PE 5/8'' 3/8'' - LG 20m | D55: =VLOOKUP(B55,PRIX!$1:$1048576,3,FALSE) -> EH116 | E55: =VLOOKUP(B55,PRIX!$1:$1048576,4,FALSE) -> 635.3 | F55: 1 | J55: 100003301 | K55: 100003301 | M55: KIT CABLAGE PLANCHER CHAUFFANT DIRECT | N55: HA249 | O55: 31 | P55: 31
B56: 100003301 | C56: =VLOOKUP(B56,PRIX!$1:$1048576,2,FALSE) -> KIT CABLAGE PLANCHER CHAUFFANT DIRECT | D56: =VLOOKUP(B56,PRIX!$1:$1048576,3,FALSE) -> HA249 | E56: =VLOOKUP(B56,PRIX!$1:$1048576,4,FALSE) -> 31 | F56: 1 | J56: 88017859 | K56: 88017859 | M56: THERMOSTAT D'AMBIANCE NON PROGRAMMABLE | N56: AD140 | O56: 42.9 | P56: 42.9
B57: 100004415 | C57: =VLOOKUP(B57,PRIX!$1:$1048576,2,FALSE) -> COLIS BALLON TAMPON 160L B 150 T | D57: =VLOOKUP(B57,PRIX!$1:$1048576,3,FALSE) -> EH60 | E57: =VLOOKUP(B57,PRIX!$1:$1048576,4,FALSE) -> 659.8 | F57: 1 | G57: =H57+I57 -> 0 | J57: 88017855 | K57: 88017855 | M57: THERMOSTAT D'AMBIANCE PROGRAMMABLE (FILAIRE) | N57: AD137 | O57: 137.8 | P57: 137.8
B58: 100008841 | C58: =VLOOKUP(B58,PRIX!$1:$1048576,2,FALSE) -> COLIS BALLON TAMPON 80L B 80 T | D58: =VLOOKUP(B58,PRIX!$1:$1048576,3,FALSE) -> EH85 | E58: =VLOOKUP(B58,PRIX!$1:$1048576,4,FALSE) -> 438.4 | F58: 1 | G58: =IF(E18>=1,IF(E18<=8,1,0),0) -> 0 | J58: 88017018 | K58: 88017018 | M58: THERMOSTAT D'AMBIANCE PROGRAMMABLE (SANS FILS) | N58: AD200 | O58: 242.7 | P58: 242.7
B59: 100002276 | C59: =VLOOKUP(B59,PRIX!$1:$1048576,2,FALSE) -> VANNE D'INVERSION CHAUFFAGE SANITAIRE MC 35E MC 45 ET 65 | D59: =VLOOKUP(B59,PRIX!$1:$1048576,3,FALSE) -> HC135 | E59: =VLOOKUP(B59,PRIX!$1:$1048576,4,FALSE) -> 301.7
B60: 88017859 | C60: =VLOOKUP(B60,PRIX!$1:$1048576,2,FALSE) -> THERMOSTAT D'AMBIANCE NON PROGRAMMABLE | D60: =VLOOKUP(B60,PRIX!$1:$1048576,3,FALSE) -> AD140 | E60: =VLOOKUP(B60,PRIX!$1:$1048576,4,FALSE) -> 42.9 | F60: 1 | M60: OPTIONS MIV-II
B61: 88017855 | C61: =VLOOKUP(B61,PRIX!$1:$1048576,2,FALSE) -> THERMOSTAT D'AMBIANCE PROGRAMMABLE (FILAIRE) | D61: =VLOOKUP(B61,PRIX!$1:$1048576,3,FALSE) -> AD137 | E61: =VLOOKUP(B61,PRIX!$1:$1048576,4,FALSE) -> 137.8 | F61: 1
B62: 88017018 | C62: =VLOOKUP(B62,PRIX!$1:$1048576,2,FALSE) -> THERMOSTAT D'AMBIANCE PROGRAMMABLE (SANS FILS) | D62: =VLOOKUP(B62,PRIX!$1:$1048576,3,FALSE) -> AD200 | E62: =VLOOKUP(B62,PRIX!$1:$1048576,4,FALSE) -> 242.7 | F62: 1 | J62: 100015476 | K62: 100015476 | M62: LIAISON FRIGORIFIQUE PE 1/2" 1/4" - LG 10 m | N62: EH142 | P62: 252
C63: Prévoir impérativement un thermostat en cas d'utilisation du rafraîchissement | J63: 100015477 | K63: 100015477 | M63: KIT ISOLATION MODE FROID MIV-II 6-8 kW | N63: EH143 | P63: 284
J64: 100015478 | K64: 100015478 | M64: KIT ISOLATION MODE FROID MIV-II 11-16 kW | N64: EH144 | P64: 360
J65: 100015479 | K65: 100015479 | M65: VANNE D'INVERSION CHAUFFAGE-SANITAIRE+SONDE ECS | N65: EH145 | P65: 290
J66: 100015468 | K66: 100015468 | M66: KIT RAC HYDRAULIQUE PAC - BALLON ECS | N66: EH149 | P66: 86
J67: 100015481 | K67: 100015481 | M67: DOSSERET DE MONTAGE VERSION E | N67: EH147 | P67: 151
J68: 100015482 | K68: 100015482 | M68: DOSSERET DE MONTAGE VERSION H | N68: EH148 | P68: 228
B69: Système | C69: Référence | D69: Désignation | E69: Colis | F69: Prix Unitaire
F70: HT en €
B71: Pompe A Chaleur
C72: =VLOOKUP(D18,A25:E39,2) ->  | D72: =VLOOKUP(D18,A25:E39,3) ->  | F72: =VLOOKUP(D18,A25:E39,5) -> 
B74: Options
C75: =IF($F48<>0,B48,"") -> 100004417 | D75: FILTRE 400UM + VANNE D'ISOLEMENT PAC ROE 6-10 ET ROE+ | E75: EH61 | F75: 88.7
C79: 100012533 | D79: SUPPORT POSE AU SOL AWHP | E79: EH112 | F79: 38.3
C80: 100012535 | D80: LIAISON FRIGORIFIQUE PE 5/8'' 3/8'' - LG 5m | E80: EH114 | F80: 197.3
C81: 100012536 | D81: LIAISON FRIGORIFIQUE PE 5/8'' 3/8'' - LG 10m | E81: EH115 | F81: 350.7
C82: =B55 -> 100012537 | D82: LIAISON FRIGORIFIQUE PE 5/8'' 3/8'' - LG 20m | E82: EH116 | F82: 635.3
C83: 100003301 | D83: KIT CABLAGE PLANCHER CHAUFFANT DIRECT | E83: HA249 | F83: 31
C84: =IF($F57<>0,B57,"") -> 100004415 | D84: COLIS BALLON TAMPON 160L B 150 T | E84: EH60 | F84: 659.8
C85: 100008841 | D85: COLIS BALLON TAMPON 80L B 80 T | E85: EH85 | F85: 438.4
C87: =B60 -> 88017859 | D87: =C60 -> THERMOSTAT D'AMBIANCE NON PROGRAMMABLE | E87: =D60 -> AD140 | F87: =E60 -> 42.9
C88: =B61 -> 88017855 | D88: THERMOSTAT D'AMBIANCE PROGRAMMABLE (FILAIRE) | E88: AD137 | F88: 137.8
C89: 88017018 | D89: THERMOSTAT D'AMBIANCE PROGRAMMABLE (SANS FILS) | E89: AD200 | F89: 242.7
D90: Prévoir impérativement un thermostat en cas d'utilisation du rafraîchissement
C91: =IF($F64<>0,B64,"") -> 
D95: MISE EN SERVICE (Prix net HT) | F95: 371
J96: Schema | K96: =IF(C1=B2,1,IF(C1=B3,2,IF(C1=B4,3,IF(C1=B5,4)))) -> FALSE
J97: 1
J98: 2
J99: 3
J100: 4
B104: Image | C104: =IF(C1=B2,1,IF(C1=B3,2,IF(C1=B4,3,IF(C1=B5,3)))) -> FALSE
B105: 1
B106: 2
B107: 3

Sheet PRIX (hidden)
A2: DIETRISOL ET INISOL SYSTEMES CESI EN PACKS
A3: REFERENCE | B3: DESIGNATION | C3: COLIS | D3: PRIX | E3: Code EAN | F3: DIMENSIONS EMBALLAGE | I3: POIDS | J3: GROUPE
D4: EUR | F4: L | G4: l | H4: H | I4: KG | J4: ARTICLE
A6: SYSTEMES SOLAIRES CESI COMPLETS EN PACK SUR UNE PALETTE
B8: PACKS SOLAIRES COMPLETS DIETRISOL TRIO SUR TOITURE (ST)
A10: 100007828 | B10: PACK DIETRISOL TRIO 250-4 ST | C10: EC500 | D10: 5025 | E10: 3661238156845 | F10: 1200 | G10: 1200 | H10: 2250 | I10: 325 | J10: CH
A11: 100007850 | B11: PACK DIETRISOL TRIO 350-4 ST | C11: EC502 | D11: 5321 | E11: 3661238156821 | F11: 1200 | G11: 1200 | H11: 2250 | I11: 352 | J11: CH
B13: PACKS SOLAIRES COMPLETS DIETRISOL TRIO INTÉGRATION EN TOITURE (IT) TUILES STANDARDS > 20°
A15: 100007852 | B15: PACK DIETRISOL TRIO 250-4 IT | C15: EC504 | D15: 5784 | E15: 3661238156807 | F15: 1200 | G15: 1200 | H15: 2250 | I15: 355.5 | J15: CH
A16: 100007854 | B16: PACK DIETRISOL TRIO 350-4 IT | C16: EC506 | D16: 6081 | E16: 3661238156784 | F16: 1200 | G16: 1200 | H16: 2250 | I16: 406 | J16: CH
B18: PACKS SOLAIRES COMPLETS DIETRISOL DUO/2-/DUO/1 SUR TOITURE (ST)
A20: 100007856 | B20: PACK DIETRISOL DUO/2 300-4 ST | C20: EC508 | D20: 4696 | E20: 3661238156777 | F20: 1200 | G20: 1200 | H20: 2250 | I20: 317 | J20: CH
A21: 100007858 | B21: PACK DIETRISOL DUO/1 300-4 ST | C21: EC510 | D21: 4696 | E21: 3661238156753 | F21: 1200 | G21: 1200 | H21: 2250 | I21: 312 | J21: CH
B23: PACKS SOLAIRES COMPLETS DIETRISOL DUO/2-DUO/1 INTÉGRATION EN TOITURE (IT) TUILES STANDARDS > 20°
A25: 100007860 | B25: PACK DIETRISOL DUO/2 300-4 IT | C25: EC512 | D25: 5454 | E25: 3661238156739 | F25: 1200 | G25: 1200 | H25: 2250 | I25: 348 | J25: CH
A26: 100007862 | B26: PACK DIETRISOL DUO/1 300-4 IT | C26: EC514 | D26: 5454 | E26: 3661238156715 | F26: 1200 | G26: 1200 | H26: 2250 | I26: 365 | J26: CH
B28: PACKS SOLAIRES COMPLETS INISOL UNO/2-/UNO/1 SUR TOITURE (ST)
A30: 100014061 | B30: PACK INISOL UNO/2 300-4 ST | C30: ER140 | D30: 3587 | E30: 3661238368316 | F30: 1250 | G30: 800 | H30: 2200 | I30: 318 | J30: CH
A31: 100014062 | B31: PACK INISOL UNO/1 300-4 ST | C31: ER141 | D31: 3587 | E31: 3661238368323 | F31: 1250 | G31: 800 | H31: 2200 | I31: 312 | J31: CH
B33: PACKS SOLAIRES COMPLETS INISOL UNO/2-UNO/1 INTÉGRATION EN TOITURE (IT) TUILES STANDARDS > 20°
A35: 100014063 | B35: PACK INISOL UNO/2 300-4 IT | C35: ER142 | D35: 3587 | E35: 3661238368330 | F35: 1250 | G35: 800 | H35: 2200 | I35: 348 | J35: CH
A36: 100014064 | B36: PACK INISOL UNO/1 300-4 IT | C36: ER143 | D36: 3587 | E36: 3661238368347 | F36: 1250 | G36: 800 | H36: 2200 | I36: 365 | J36: CH
A39: SYSTEMES SOLAIRES CESI COMPLETS EN PACK CAVE INISOL UNO + PACK TOIT INISOL NEO
B41: AVEC SYSTEMES SOLAIRES CESI ELECTROSOLAIRES
A43: 100014080 | B43: PACKS SOLAIRES AVEC 1 PACK CAVE INISOL UNO/1 200 ET 1 PACK 2M2 AVEC 1 NEO 2,1 ST | D43: 2614 | E43: 3661238368491 | I43: 222.5 | J43: CH
A44: 100014081 | B44: PACKS SOLAIRES AVEC 1 PACK CAVE INISOL UNO/1 200 ET 1 PACK 2M2 AVEC 1 NEO 2,1 IT | D44: 2614 | E44: 3661238368507 | I44: 362.5 | J44: CH
A45: 100014743 | B45: PACKS SOLAIRES AVEC 1 PACK CAVE INISOL UNO/1 200 ET 1 PACK 2M2 AVEC 1 NEO 2,1 IT SUD | D45: 2768 | E45: 3661238378841 | I45: 356.5 | J45: CH
A46: 100014190 | B46: PACKS SOLAIRES AVEC 1 PACK CAVE INISOL UNO/1 200 ET 1 PACK 4M2 AVEC 2 NEO 2,1 ST | D46: 3331 | E46: 3661238370272 | I46: 258.5 | J46: CH
A47: 100014191 | B47: PACKS SOLAIRES AVEC 1 PACK CAVE INISOL UNO/1 200 ET 1 PACK 4M2 AVEC 2 NEO 2,1 IT | D47: 3331 | E47: 3661238370289 | I47: 275.5 | J47: CH
A48: 100014744 | B48: PACKS SOLAIRES AVEC 1 PACK CAVE INISOL UNO/1 200 ET 1 PACK 4M2 AVEC 2 NEO 2,1 IT SUD | D48: 3485 | E48: 3661238378834 | I48: 356.5 | J48: CH
A49: 100014082 | B49: PACKS SOLAIRES AVEC 1 PACK CAVE INISOL UNO/1 300 ET 1 PACK 4M2 AVEC 2 NEO 2,1 ST | D49: 3587 | E49: 3661238368514 | I49: 282 | J49: CH
A50: 100014083 | B50: PACKS SOLAIRES AVEC 1 PACK CAVE INISOL UNO/1 300 ET 1 PACK 4M2 AVEC 2 NEO 2,1 IT | D50: 3587 | E50: 3661238368521 | I50: 299 | J50: CH
A51: 100014745 | B51: PACKS SOLAIRES AVEC 1 PACK CAVE INISOL UNO/1 300 ET 1 PACK 4M2 AVEC 2 NEO 2,1 IT SUD | D51: 3741 | E51: 3661238378827 | I51: 380 | J51: CH
A52: 100014084 | B52: PACKS SOLAIRES AVEC 1 PACK CAVE INISOL UNO/1 300 ET 1 PACK 6M2 AVEC 3 NEO 2,1 ST | D52: 4407 | E52: 3661238368538 | I52: 323.5 | J52: CH
A53: 100014085 | B53: PACKS SOLAIRES AVEC 1 PACK CAVE INISOL UNO/1 300 ET 1 PACK 6M2 AVEC 3 NEO 2,1 IT | D53: 4407 | E53: 3661238368545 | I53: 344.5 | J53: CH
A54: 100014746 | B54: PACKS SOLAIRES AVEC 1 PACK CAVE INISOL UNO/1 300 ET 1 PACK 6M2 AVEC 3 NEO 2,1 IT SUD | D54: 4561 | E54: 3661238378810 | I54: 380 | J54: CH
A55: 100014086 | B55: PACKS SOLAIRES AVEC 1 PACK CAVE INISOL UNO/1 400 ET 1 PACK 4M2 AVEC 2 NEO 2,1 ST | D55: 4049 | E55: 3661238368552 | I55: 320 | J55: CH
A56: 100014087 | B56: PACKS SOLAIRES AVEC 1 PACK CAVE INISOL UNO/1 400 ET 1 PACK 4M2 AVEC 2 NEO 2,1 IT | D56: 4049 | E56: 3661238368569 | I56: 337 | J56: CH
A57: 100014747 | B57: PACKS SOLAIRES AVEC 1 PACK CAVE INISOL UNO/1 400 ET 1 PACK 4M2 AVEC 2 NEO 2,1 IT SUD | D57: 4203 | E57: 3661238378803 | I57: 418 | J57: CH
A58: 100014088 | B58: PACKS SOLAIRES AVEC 1 PACK CAVE INISOL UNO/1 400 ET 1 PACK 6M2 AVEC 3 NEO 2,1 ST | D58: 4869 | E58: 3661238368576 | I58: 361.5 | J58: CH
A59: 100014089 | B59: PACKS SOLAIRES AVEC 1 PACK CAVE INISOL UNO/1 400 ET 1 PACK 6M2 AVEC 3 NEO 2,1 IT | D59: 4869 | E59: 3661238368583 | I59: 382.5 | J59: CH
A60: 100014748 | B60: PACKS SOLAIRES AVEC 1 PACK CAVE INISOL UNO/1 400 ET 1 PACK 6M2 AVEC 3 NEO 2,1 IT SUD | D60: 5023 | E60: 3661238378797 | I60: 418 | J60: CH
A61: 100014090 | B61: PACKS SOLAIRES AVEC 1 PACK CAVE INISOL UNO/1 500 ET 1 PACK 6M2 AVEC 3 NEO 2,1 ST | D61: 5074 | E61: 3661238368590 | I61: 379.5 | J61: CH
A62: 100014091 | B62: PACKS SOLAIRES AVEC 1 PACK CAVE INISOL UNO/1 500 ET 1 PACK 6M2 AVEC 3 NEO 2,1 IT | D62: 5074 | E62: 3661238368606 | I62: 400.5 | J62: CH
A63: 100014749 | B63: PACKS SOLAIRES AVEC 1 PACK CAVE INISOL UNO/1 500 ET 1 PACK 6M2 AVEC 3 NEO 2,1 IT SUD | D63: 5228 | E63: 3661238378780 | I63: 436 | J63: CH
B65: LISTE DES COLIS
A67: 100014065 | B67: PACK CAVE INISOL UNO/1 200 | C67: ER144 | D67: 1640 | E67: 3661238368354 | F67: 1200 | G67: 800 | H67: 1500 | I67: 136.5 | J67: CH
A68: 100014066 | B68: PACK CAVE INISOL UNO/1 300 | C68: ER145 | D68: 1896 | E68: 3661238368361 | F68: 1200 | G68: 800 | H68: 2040 | I68: 160 | J68: CH
A69: 100014067 | B69: PACK CAVE INISOL UNO/1 400 | C69: ER146 | D69: 2358 | E69: 3661238368378 | F69: 1200 | G69: 800 | H69: 1940 | I69: 198 | J69: CH
A70: 100014068 | B70: PACK CAVE INISOL UNO/1 500 | C70: ER147 | D70: 2563 | E70: 3661238368385 | F70: 1200 | G70: 800 | H70: 2040 | I70: 216 | J70: CH
A72: 100014074 | B72: PACK 2M2 AVEC 1 NEO 2,1 ST | C72: ER152 | D72: 974 | E72: 3661238368439 | F72: 1250 | G72: 800 | H72: 2200 | I72: 86 | J72: CH
A73: 100014075 | B73: PACK 2M2 AVEC 1 NEO 2,1 IT | C73: ER153 | D73: 974 | E73: 3661238368446 | F73: 1250 | G73: 800 | H73: 2200 | I73: 226 | J73: CH
A74: 100014740 | B74: PACK 2M2 AVEC 1 NEO 2,1 IT SUD | C74: ER230 | D74: 1128 | E74: 3661238378872 | F74: 1300 | G74: 1200 | H74: 2200 | I74: 220 | J74: CH
A75: 100014076 | B75: PACK 4M2 AVEC 2 NEO 2,1 ST | C75: ER154 | D75: 1691 | E75: 3661238368453 | F75: 1250 | G75: 800 | H75: 2200 | I75: 122 | J75: CH
A76: 100014077 | B76: PACK 4M2 AVEC 2 NEO 2,1 IT | C76: ER155 | D76: 1691 | E76: 3661238368460 | F76: 1250 | G76: 800 | H76: 2200 | I76: 139 | J76: CH
A77: 100014741 | B77: PACK 4M2 AVEC 2 NEO 2,1 IT SUD | C77: ER231 | D77: 1845 | E77: 3661238378865 | F77: 1230 | G77: 1200 | H77: 2250 | I77: 220 | J77: CH
A78: 100014078 | B78: PACK 6M2 AVEC 3 NEO 2,1 ST | C78: ER156 | D78: 2511 | E78: 3661238368477 | F78: 1250 | G78: 800 | H78: 2200 | I78: 163.5 | J78: CH
A79: 100014079 | B79: PACK 6M2 AVEC 3 NEO 2,1 IT | C79: ER157 | D79: 2511 | E79: 3661238368484 | F79: 1250 | G79: 800 | H79: 2200 | I79: 184.5 | J79: CH
A80: 100014742 | B80: PACK 6M2 AVEC 3 NEO 2,1 IT SUD | C80: ER232 | D80: 2665 | E80: 3661238378858 | F80: 1230 | G80: 1200 | H80: 2250 | I80: 220 | J80: CH
A82: DIETRISOL ET INISOL SYSTEMES CESI EN PACKS
A83: REFERENCE | B83: DESIGNATION | C83: COLIS | D83: PRIX | E83: Code EAN | F83: DIMENSIONS EMBALLAGE | I83: POIDS | J83: GROUPE
D84: EUR | F84: L | G84: l | H84: H | I84: KG | J84: ARTICLE
A86: SYSTEMES SOLAIRES CESI COMPLETS EN PACK CAVE INISOL UNO + PACK TOIT INISOL NEO
B88: AVEC SYSTEMES SOLAIRES CESI BIVALENTS
A90: 100014092 | B90: PACKS SOLAIRES AVEC 1 PACK CAVE INISOL UNO/2 200 ET 1 PACK 2M2 AVEC 1 NEO 2,1 ST | D90: 2614 | E90: 3661238368613 | I90: 229 | J90: CH
A91: 100014093 | B91: PACKS SOLAIRES AVEC 1 PACK CAVE INISOL UNO/2 200 ET 1 PACK 2M2 AVEC 1 NEO 2,1 IT | D91: 2614 | E91: 3661238368620 | I91: 369 | J91: CH
A92: 100014750 | B92: PACKS SOLAIRES AVEC 1 PACK CAVE INISOL UNO/2 200 ET 1 PACK 2M2 AVEC 1 NEO 2,1 IT SUD | D92: 2768 | E92: 3661238378773 | I92: 363 | J92: CH
A93: 100014192 | B93: PACKS SOLAIRES AVEC 1 PACK CAVE INISOL UNO/2 200 ET 1 PACK 4M2 AVEC 2 NEO 2,1 ST | D93: 3331 | E93: 3661238370296 | I93: 265 | J93: CH
A94: 100014193 | B94: PACKS SOLAIRES AVEC 1 PACK CAVE INISOL UNO/2 200 ET 1 PACK 4M2 AVEC 2 NEO 2,1 IT | D94: 3331 | E94: 3661238370302 | I94: 282 | J94: CH
A95: 100014751 | B95: PACKS SOLAIRES AVEC 1 PACK CAVE INISOL UNO/2 200 ET 1 PACK 4M2 AVEC 2 NEO 2,1 IT SUD | D95: 3485 | E95: 3661238378766 | I95: 363 | J95: CH
A96: 100014094 | B96: PACKS SOLAIRES AVEC 1 PACK CAVE INISOL UNO/2 300 ET 1 PACK 4M2 AVEC 2 NEO 2,1 ST | D96: 3587 | E96: 3661238368637 | I96: 292 | J96: CH
A97: 100014095 | B97: PACKS SOLAIRES AVEC 1 PACK CAVE INISOL UNO/2 300 ET 1 PACK 4M2 AVEC 2 NEO 2,1 IT | D97: 3587 | E97: 3661238368644 | I97: 309 | J97: CH
A98: 100014752 | B98: PACKS SOLAIRES AVEC 1 PACK CAVE INISOL UNO/2 300 ET 1 PACK 4M2 AVEC 2 NEO 2,1 IT SUD | D98: 3741 | E98: 3661238378759 | I98: 390 | J98: CH
A99: 100014096 | B99: PACKS SOLAIRES AVEC 1 PACK CAVE INISOL UNO/2 300 ET 1 PACK 6M2 AVEC 3 NEO 2,1 ST | D99: 4407 | E99: 3661238368651 | I99: 333.5 | J99: CH
A100: 100014097 | B100: PACKS SOLAIRES AVEC 1 PACK CAVE INISOL UNO/2 300 ET 1 PACK 6M2 AVEC 3 NEO 2,1 IT | D100: 4407 | E100: 3661238368668 | I100: 354.5 | J100: CH
A101: 100014753 | B101: PACKS SOLAIRES AVEC 1 PACK CAVE INISOL UNO/2 300 ET 1 PACK 6M2 AVEC 3 NEO 2,1 IT SUD | D101: 4561 | E101: 3661238378742 | I101: 390 | J101: CH
A102: 100014098 | B102: PACKS SOLAIRES AVEC 1 PACK CAVE INISOL UNO/2 400 ET 1 PACK 4M2 AVEC 2 NEO 2,1 ST | D102: 4049 | E102: 3661238368675 | I102: 326 | J102: CH
A103: 100014099 | B103: PACKS SOLAIRES AVEC 1 PACK CAVE INISOL UNO/2 400 ET 1 PACK 4M2 AVEC 2 NEO 2,1 IT | D103: 4049 | E103: 3661238368682 | I103: 343 | J103: CH
A104: 100014754 | B104: PACKS SOLAIRES AVEC 1 PACK CAVE INISOL UNO/2 400 ET 1 PACK 4M2 AVEC 2 NEO 2,1 IT SUD | D104: 4203 | E104: 3661238378735 | I104: 424 | J104: CH
A105: 100014100 | B105: PACKS SOLAIRES AVEC 1 PACK CAVE INISOL UNO/2 400 ET 1 PACK 6M2 AVEC 3 NEO 2,1 ST | D105: 4869 | E105: 3661238368699 | I105: 367.5 | J105: CH
A106: 100014101 | B106: PACKS SOLAIRES AVEC 1 PACK CAVE INISOL UNO/2 400 ET 1 PACK 6M2 AVEC 3 NEO 2,1 IT | D106: 4869 | E106: 3661238368705 | I106: 388.5 | J106: CH
A107: 100014755 | B107: PACKS SOLAIRES AVEC 1 PACK CAVE INISOL UNO/2 400 ET 1 PACK 6M2 AVEC 3 NEO 2,1 IT SUD | D107: 5023 | E107: 3661238378728 | I107: 424 | J107: CH
A108: 100014102 | B108: PACKS SOLAIRES AVEC 1 PACK CAVE INISOL UNO/2 500 ET 1 PACK 6M2 AVEC 3 NEO 2,1 ST | D108: 5074 | E108: 3661238368712 | I108: 389.5 | J108: CH
A109: 100014103 | B109: PACKS SOLAIRES AVEC 1 PACK CAVE INISOL UNO/2 500 ET 1 PACK 6M2 AVEC 3 NEO 2,1 IT | D109: 5074 | E109: 3661238368729 | I109: 410.5 | J109: CH
A110: 100014756 | B110: PACKS SOLAIRES AVEC 1 PACK CAVE INISOL UNO/2 500 ET 1 PACK 6M2 AVEC 3 NEO 2,1 IT SUD | D110: 5228 | E110: 3661238378711 | I110: 446 | J110: CH
B112: LISTE DES COLIS
A114: 100014069 | B114: PACK CAVE INISOL UNO/2 200 | C114: ER148 | D114: 1640 | E114: 3661238368392 | F114: 1200 | G114: 800 | H114: 2040 | I114: 143 | J114: CH
A115: 100014070 | B115: PACK CAVE INISOL UNO/2 300 | C115: ER149 | D115: 1896 | E115: 3661238368408 | F115: 1200 | G115: 800 | H115: 2040 | I115: 170 | J115: CH
A116: 100014071 | B116: PACK CAVE INISOL UNO/2 400 | C116: ER150 | D116: 2358 | E116: 3661238368415 | F116: 1200 | G116: 800 | H116: 1940 | I116: 204 | J116: CH
A117: 100014073 | B117: PACK CAVE INISOL UNO/2 500 | C117: ER151 | D117: 2563 | E117: 3661238368422 | F117: 1200 | G117: 800 | H117: 2040 | I117: 226 | J117: CH
A119: 100014074 | B119: PACK 2M2 AVEC 1 NEO 2,1 ST | C119: ER152 | D119: 974 | E119: 3661238368439 | F119: 1250 | G119: 800 | H119: 2200 | I119: 86 | J119: CH
A120: 100014075 | B120: PACK 2M2 AVEC 1 NEO 2,1 IT | C120: ER153 | D120: 974 | E120: 3661238368446 | F120: 1250 | G120: 800 | H120: 2200 | I120: 226 | J120: CH
A121: 100014740 | B121: PACK 2M2 AVEC 1 NEO 2,1 IT SUD | C121: ER230 | D121: 1128 | E121: 3661238378872 | F121: 1300 | G121: 1200 | H121: 2200 | I121: 220 | J121: CH
A122: 100014076 | B122: PACK 4M2 AVEC 2 NEO 2,1 ST | C122: ER154 | D122: 1691 | E122: 3661238368453 | F122: 1250 | G122: 800 | H122: 2200 | I122: 122 | J122: CH
A123: 100014077 | B123: PACK 4M2 AVEC 2 NEO 2,1 IT | C123: ER155 | D123: 1691 | E123: 3661238368460 | F123: 1250 | G123: 800 | H123: 2200 | I123: 139 | J123: CH
A124: 100014741 | B124: PACK 4M2 AVEC 2 NEO 2,1 IT SUD | C124: ER231 | D124: 1845 | E124: 3661238378865 | F124: 1230 | G124: 1200 | H124: 2250 | I124: 220 | J124: CH
A125: 100014078 | B125: PACK 6M2 AVEC 3 NEO 2,1 ST | C125: ER156 | D125: 2511 | E125: 3661238368477 | F125: 1250 | G125: 800 | H125: 2200 | I125: 163.5 | J125: CH
A126: 100014079 | B126: PACK 6M2 AVEC 3 NEO 2,1 IT | C126: ER157 | D126: 2511 | E126: 3661238368484 | F126: 1250 | G126: 800 | H126: 2200 | I126: 184.5 | J126: CH
A127: 100014742 | B127: PACK 6M2 AVEC 3 NEO 2,1 IT SUD | C127: ER232 | D127: 2665 | E127: 3661238378858 | F127: 1230 | G127: 1200 | H127: 2250 | I127: 220 | J127: CH
A128: DIETRISOL ET INISOL CHAMPS DE CAPTEURS EN PACKS VERTICAUX
A129: REFERENCE | B129: DESIGNATION | C129: COLIS | D129: PRIX | E129: Code EAN | F129: DIMENSIONS EMBALLAGE | I129: POIDS | J129: GROUPE
D130: EUR | F130: L | G130: l | H130: H | I130: KG | J130: ARTICLE
A132: CHAMPS DE CAPTEURS SOLAIRES COMPLETS EN PACK SUR UNE PALETTE A LA VERTICALE
B134: PACKS "TOIT" : CHAMPS DE CAPTEURS COMPLETS POUR INSTALLATION SUR TOITURE (ST)
A135: CAPTEURS PLANS PRO
A137: 100007866 | B137: PACK 4 M² AVEC 2 PRO 2,3 ST | C137: EC518 | D137: 2196 | E137: 3661238156678 | F137: 1230 | G137: 1200 | H137: 2250 | I137: 150 | J137: CH
A138: 100007867 | B138: PACK 6 M² AVEC 3 PRO 2,3 ST | C138: EC519 | D138: 3189 | E138: 3661238156661 | F138: 1250 | G138: 1200 | H138: 2250 | I138: 192 | J138: CH
A139: 100007868 | B139: PACK 9 M² AVEC 4 PRO 2,3 ST | C139: EC520 | D139: 4182 | E139: 3661238156654 | F139: 1210 | G139: 1200 | H139: 2250 | I139: 242 | J139: CH
A141: 100007869 | B141: PACK 5 M² AVEC 2 PRO 2,5 ST | C141: EC521 | D141: 2449 | E141: 3661238101470 | F141: 1420 | G141: 1200 | H141: 2350 | I141: 179 | J141: CH
A142: 100007870 | B142: PACK 8 M² AVEC 3 PRO 2,5 ST | C142: EC522 | D142: 3568 | E142: 3661238101463 | F142: 1400 | G142: 1200 | H142: 2340 | I142: 245 | J142: CH
A143: 100007871 | B143: PACK 10 M² AVEC 4 PRO 2,5 ST | C143: EC523 | D143: 4687 | E143: 3661238101456 | F143: 1400 | G143: 1200 | H143: 2350 | I143: 300 | J143: CH
A145: CAPTEURS PLANS NEO
A147: 100014074 | B147: PACK 2M2 AVEC 1 NEO 2,1 ST | C147: ER152 | D147: 974 | E147: 3661238368439 | F147: 1250 | G147: 800 | H147: 2200 | I147: 86 | J147: CH
A148: 100014076 | B148: PACK 4M2 AVEC 2 NEO 2,1 ST | C148: ER154 | D148: 1691 | E148: 3661238368453 | F148: 1250 | G148: 800 | H148: 2200 | I148: 122 | J148: CH
A149: 100014078 | B149: PACK 6M2 AVEC 3 NEO 2,1 ST | C149: ER156 | D149: 2511 | E149: 3661238368477 | F149: 1250 | G149: 800 | H149: 2200 | I149: 163.5 | J149: CH
B151: PACKS "TOIT" : CHAMPS DE CAPTEURS COMPLETS POUR INSTALLATION EN INTÉGRATION DE TOITURE (IT) TUILES MECANIQUES > 20°
A152: CAPTEURS PLANS PRO
A154: 100007876 | B154: PACK 4 M² AVEC 2 PRO 2,3 IT | C154: EC528 | D154: 3074 | E154: 3661238156609 | F154: 1230 | G154: 1200 | H154: 2320 | I154: 206 | J154: CH
A155: 100007877 | B155: PACK 6 M² AVEC 3 PRO 2,3 IT | C155: EC529 | D155: 4491 | E155: 3661238156593 | F155: 1230 | G155: 1200 | H155: 2340 | I155: 266 | J155: CH
A157: 100007879 | B157: PACK 5 M² AVEC 2 PRO 2,5 IT | C157: EC531 | D157: 3414 | E157: 3661238101449 | F157: 1410 | G157: 1200 | H157: 2340 | I157: 230 | J157: CH
A158: 100007880 | B158: PACK 8 M² AVEC 3 PRO 2,5 IT | C158: EC532 | D158: 5006 | E158: 3661238101432 | F158: 1420 | G158: 1200 | H158: 2350 | I158: 312 | J158: CH
A159: 100007881 | B159: PACK 10 M² AVEC 4 PRO 2,5 IT | C159: EC533 | D159: 6598 | E159: 3661238101425 | F159: 1430 | G159: 1200 | H159: 2360 | I159: 400 | J159: CH
B161: PACKS "TOIT" : CHAMPS DE CAPTEURS COMPLETS POUR INSTALLATION EN INTÉGRATION DE TOITURE (IT) TUILES MECANIQUES > 20°
A162: CAPTEURS PLANS NEO
A164: 100014075 | B164: PACK 2M2 AVEC 1 NEO 2,1 IT | C164: ER153 | D164: 974 | E164: 3661238368446 | F164: 1250 | G164: 800 | H164: 2200 | I164: 226 | J164: CH
A165: 100014077 | B165: PACK 4M2 AVEC 2 NEO 2,1 IT | C165: ER155 | D165: 1691 | E165: 3661238368460 | F165: 1250 | G165: 800 | H165: 2200 | I165: 139 | J165: CH
A166: 100014079 | B166: PACK 6M2 AVEC 3 NEO 2,1 IT | C166: ER157 | D166: 2511 | E166: 3661238368484 | F166: 1250 | G166: 800 | H166: 2200 | I166: 184.5 | J166: CH
A168: CHAMPS DE CAPTEURS SOLAIRES COMPLETS EN PACK SUR UNE PALETTE
B170: PACKS "TOIT SUD" : CHAMPS DE CAPTEURS COMPLETS POUR INSTALLATION EN INTÉGRATION DE TOITURE (IT SUD) < 20°
A172: 100014740 | B172: PACK 2M2 AVEC 1 NEO 2,1 IT SUD | C172: ER230 | D172: 1128 | E172: 3661238378872 | F172: 1300 | G172: 1200 | H172: 2200 | I172: 220 | J172: CH
A173: 100014741 | B173: PACK 4M2 AVEC 2 NEO 2,1 IT SUD | C173: ER231 | D173: 1845 | E173: 3661238378865 | F173: 1230 | G173: 1200 | H173: 2250 | I173: 220 | J173: CH
A174: 100014742 | B174: PACK 6M2 AVEC 3 NEO 2,1 IT SUD | C174: ER232 | D174: 2665 | E174: 3661238378858 | F174: 1230 | G174: 1200 | H174: 2250 | I174: 220 | J174: CH
B176: OPTIONS POUR INTÉGRATION DE TOITURE
A177: CAPTEURS PLANS PRO/NEO
A179: 100007882 | B179: KIT NOQUETS POUR TUILES PLATES | C179: EG425 | D179: 197.6 | E179: 3661238101418 | F179: 315 | G179: 230 | H179: 130 | I179: 3.9 | J179: CH
A182: DIETRISOL CHAMPS DE CAPTEURS EN PACKS HORIZONTAUX
A183: REFERENCE | B183: DESIGNATION | C183: COLIS | D183: PRIX | E183: Code EAN | F183: DIMENSIONS EMBALLAGE | I183: POIDS | J183: GROUPE
D184: EUR | F184: L | G184: l | H184: H | I184: KG | J184: ARTICLE
A186: CHAMPS DE CAPTEURS SOLAIRES COMPLETS EN PACK SUR UNE PALETTE A L'HORIZONTALE
B188: PACKS "TOIT" : CHAMPS DE CAPTEURS COMPLETS POUR INSTALLATION SUR TOITURE (ST)
A189: CAPTEURS PLANS PRO
A191: 100009305 | B191: PACK 4 M² AVEC 2 PRO 2,3 SUR TOITURE | C191: EC583 | D191: 2196 | E191: 3661238168848 | F191: 2240 | G191: 800 | H191: 1530 | I191: 153 | J191: CH
A192: 100009306 | B192: PACK 6 M² AVEC 3 PRO 2,3 SUR TOITURE | C192: EC584 | D192: 3189 | E192: 3661238168855 | F192: 2240 | G192: 800 | H192: 1450 | I192: 202 | J192: CH
A193: 100009307 | B193: PACK 9 M² AVEC 4 PRO 2,3 SUR TOITURE | C193: EC585 | D193: 4182 | E193: 3661238168862 | F193: 2240 | G193: 800 | H193: 1500 | I193: 239 | J193: CH
A195: 100009302 | B195: PACK 5 M² AVEC 2 PRO 2,5 SUR TOITURE | C195: EC580 | D195: 2449 | E195: 3661238168817 | F195: 2240 | G195: 800 | H195: 1650 | I195: 179 | J195: CH
A196: 100009303 | B196: PACK 8 M² AVEC 3 PRO 2,5 SUR TOITURE | C196: EC581 | D196: 3568 | E196: 3661238168824 | F196: 2240 | G196: 800 | H196: 1480 | I196: 228 | J196: CH
A197: 100009304 | B197: PACK 10 M² AVEC 4 PRO 2,5 SUR TOITURE | C197: EC582 | D197: 4687 | E197: 3661238168831 | F197: 2300 | G197: 800 | H197: 1540 | I197: 295 | J197: CH
B199: PACKS "TOIT" : CHAMPS DE CAPTEURS COMPLETS POUR INSTALLATION EN INTÉGRATION DE TOITURE (IT) TUILES MECANIQUES > 20°
A200: CAPTEURS PLANS PRO
A202: 100009331 | B202: PACK 4 M² AVEC 2 PRO 2,3 EN INTÉGRATION | C202: EC589 | D202: 3074 | E202: 3661238168909 | F202: 2300 | G202: 810 | H202: 1500 | I202: 202 | J202: CH
A204: 100009308 | B204: PACK 5 M² AVEC 2 PRO 2,5 EN INTÉGRATION | C204: EC586 | D204: 3414 | E204: 3661238168879 | F204: 2240 | G204: 800 | H204: 1500 | I204: 225 | J204: CH
A205: 100009309 | B205: PACK 8 M² AVEC 3 PRO 2,5 EN INTÉGRATION | C205: EC587 | D205: 5006 | E205: 3661238168886 | F205: 2300 | G205: 820 | H205: 1550 | I205: 310 | J205: CH
A206: 100009330 | B206: PACK 10 M² AVEC 4 PRO 2,5 EN INTÉGRATION | C206: EC588 | D206: 6598 | E206: 3661238168893 | F206: 2300 | G206: 1020 | H206: 1550 | I206: 393 | J206: CH
B208: OPTIONS POUR INTÉGRATION DE TOITURE
A209: CAPTEURS PLANS PRO/NEO
A211: 100007882 | B211: KIT NOQUETS POUR TUILES PLATES | C211: EG425 | D211: 197.6 | E211: 3661238101418 | F211: 315 | G211: 230 | H211: 130 | I211: 3.9 | J211: CH
A213: DIETRISOL ET INISOL PREPARATEURS SOLAIRES POUR CESI
A214: REFERENCE | B214: DESIGNATION | C214: COLIS | D214: PRIX | E214: Code EAN | F214: DIMENSIONS EMBALLAGE | I214: POIDS | J214: GROUPE
D215: EUR | F215: L | G215: l | H215: H | I215: KG | J215: ARTICLE
B217: PREPARATEURS SOLAIRES MIXTES
B219: PACKS "CAVE" : PRÉPARATEURS SOLAIRES MIXTES ÉQUIPÉS DIETRISOL TRIO
A221: 100007795 | B221: PREPARATEUR SOLAIRE DIETRISOL TRIO 350/3 | C221: EC339 | D221: 2876 | E221: 3661238101517 | F221: 1075 | G221: 820 | H221: 2030 | I221: 219 | J221: CH
A222: 100007796 | B222: PREPARATEUR SOLAIRE DIETRISOL TRIO 250/3 | C222: EC340 | D222: 2580 | E222: 3661238156869 | F222: 1080 | G222: 785 | H222: 1830 | I222: 184 | J222: CH
B224: PREPARATEURS ELECTRO-SOLAIRES
B226: PACKS "CAVE" : PRÉPARATEURS ÉLECTRO-SOLAIRES ÉQUIPÉS DIETRISOL DUO/1
A228: 100006750 | B228: PREPARATEUR DIETRISOL DUO BESC 300 E | C228: EC332 | D228: 2251 | E228: 3661238161573 | F228: 1075 | G228: 820 | H228: 2025 | I228: 176 | J228: CH
A229: 100006753 | B229: PREPARATEUR DIETRISOL DUO BESC 400 E | C229: EC335 | D229: 2964 | E229: 3661238161559 | F229: 1200 | G229: 870 | H229: 2045 | I229: 221 | J229: CH
A230: 100006755 | B230: PREPARATEUR DIETRISOL DUO BESC 500 E | C230: EC337 | D230: 3238 | E230: 3661238161535 | F230: 1200 | G230: 870 | H230: 2045 | I230: 254 | J230: CH
B232: PACKS "CAVE" : PRÉPARATEURS ELECTRO-SOLAIRE NON ÉQUIPÉS INISOL UNO/1
A234: 100014065 | B234: PACK CAVE INISOL UNO/1 200 | C234: ER144 | D234: 1640 | E234: 3661238368354 | F234: 1200 | G234: 800 | H234: 1500 | I234: 136.5 | J234: CH
A235: 100014066 | B235: PACK CAVE INISOL UNO/1 300 | C235: ER145 | D235: 1896 | E235: 3661238368361 | F235: 1200 | G235: 800 | H235: 2040 | I235: 160 | J235: CH
A236: 100014067 | B236: PACK CAVE INISOL UNO/1 400 | C236: ER146 | D236: 2358 | E236: 3661238368378 | F236: 1200 | G236: 800 | H236: 1940 | I236: 198 | J236: CH
A237: 100014068 | B237: PACK CAVE INISOL UNO/1 500 | C237: ER147 | D237: 2563 | E237: 3661238368385 | F237: 1200 | G237: 800 | H237: 2040 | I237: 216 | J237: CH
B239: PRÉPARATEURS ÉLECTRO-SOLAIRES NON ÉQUIPÉS INISOL UNO/1
A241: 100013080 | B241: PREPARATEUR UNO/1 200 | C241: ER80 | D241: 1076 | E241: 3661238361614 | F241: 720 | G241: 800 | H241: 1400 | I241: 76.5 | J241: CH
A242: 100013081 | B242: PREPARATEUR UNO/1 300 | C242: ER81 | D242: 1281 | E242: 3661238361621 | F242: 720 | G242: 800 | H242: 1950 | I242: 101.5 | J242: CH
A243: 100013082 | B243: PREPARATEUR UNO/1 400 | C243: ER82 | D243: 1794 | E243: 3661238361638 | F243: 890 | G243: 800 | H243: 1820 | I243: 143 | J243: CH
A244: 100013083 | B244: PREPARATEUR UNO/1 500 | C244: ER83 | D244: 1896 | E244: 3661238361645 | F244: 890 | G244: 800 | H244: 1950 | I244: 163 | J244: CH
B246: PREPARATEURS SOLAIRES DOUBLE SERPENTIN
B248: PACKS '' CAVE '' : PRÉPARATEURS SOLAIRES BI VALENT ÉQUIPÉS DIETRISOL DUO/2
A250: 100006751 | B250: PREPARATEUR SOLAIRE DIETRISOL DUO BSC 300 E | C250: EC333 | D250: 2251 | E250: 3661238161566 | F250: 1075 | G250: 820 | H250: 2025 | I250: 203 | J250: CH
A251: 100006754 | B251: PREPARATEUR SOLAIRE DIETRISOL DUO BSP 400 E | C251: EC336 | D251: 2964 | E251: 3661238161542 | F251: 1200 | G251: 870 | H251: 2045 | I251: 223 | J251: CH
A252: 100006756 | B252: PREPARATEUR SOLAIRE DIETRISOL DUO BSP 500 E | C252: EC338 | D252: 3238 | E252: 3661238161528 | F252: 1200 | G252: 870 | H252: 2045 | I252: 264 | J252: CH
B254: PACKS "CAVE" : PRÉPARATEURS BIVALENTS NON ÉQUIPÉS INISOL UNO/2
A256: 100014069 | B256: PACK CAVE INISOL UNO/2 200 | C256: ER148 | D256: 1640 | E256: 3661238368392 | F256: 1200 | G256: 800 | H256: 2040 | I256: 143 | J256: CH
A257: 100014070 | B257: PACK CAVE INISOL UNO/2 300 | C257: ER149 | D257: 1896 | E257: 3661238368408 | F257: 1200 | G257: 800 | H257: 2040 | I257: 170 | J257: CH
A258: 100014071 | B258: PACK CAVE INISOL UNO/2 400 | C258: ER150 | D258: 2358 | E258: 3661238368415 | F258: 1200 | G258: 800 | H258: 1940 | I258: 204 | J258: CH
A259: 100014073 | B259: PACK CAVE INISOL UNO/2 500 | C259: ER151 | D259: 2563 | E259: 3661238368422 | F259: 1200 | G259: 800 | H259: 2040 | I259: 226 | J259: CH
B261: PRÉPARATEURS SOLAIRES BI VALENT NON ÉQUIPÉS INISOL UNO/2
A263: 100013084 | B263: PREPARATEUR SOLAIRE UNO/2 200 | C263: ER84 | D263: 1179 | E263: 3661238361652 | F263: 720 | G263: 800 | H263: 1400 | I263: 87.5 | J263: CH
A264: 100013085 | B264: PREPARATEUR SOLAIRE UNO/2 300 | C264: ER85 | D264: 1384 | E264: 3661238361669 | F264: 720 | G264: 800 | H264: 1950 | I264: 147.5 | J264: CH
A265: 100013086 | B265: PREPARATEUR SOLAIRE UNO/2 400 | C265: ER86 | D265: 1896 | E265: 3661238361676 | F265: 890 | G265: 800 | H265: 1820 | I265: 240 | J265: CH
A266: 100013087 | B266: PREPARATEUR SOLAIRE UNO/2 500 | C266: ER87 | D266: 1999 | E266: 3661238361683 | F266: 890 | G266: 800 | H266: 1940 | I266: 168.5 | J266: CH
A269: OPTIONS BALLONS SOLAIRES
B270: POUR PREPARATEURS SOLAIRES TRIO / DUO / UNO
A272: 100010652 | B272: ANODE TAS-2 | C272: EC431 | D272: 102.6 | E272: 3661238364745 | F272: 260 | G272: 160 | H272: 120 | I272: 0.5 | J272: CH
A273: 100007832 | B273: RÉGULATION POMPE DE CHARGE SLA 2 | C273: EC320 | D273: 176 | E273: 3661238101494 | F273: 225 | G273: 195 | H273: 85 | I273: 0.7 | J273: CH
A274: 89807767 | B274: MITIGEUR THERMOSTATIQUE | C274: EG78 | D274: 115 | E274: 3661238045149 | F274: 125 | G274: 105 | H274: 90 | I274: 0.7 | J274: CH
B276: POUR PREPARATEURS SOLAIRES UNO/1 < 400 L
A278: 100007797 | B278: RESISTANCE ELECTRIQUE 2,2 kW MULTI BLINDEE DN 82 | C278: EC410 | D278: 410.6 | E278: 3661238116634 | F278: 660 | G278: 215 | H278: 215 | I278: 3.2 | J278: CH
... 7140 more rows

Sheet Données
E2: Détermination d'un système pompe à chaleur OERTLI
J5: ="09/2010" -> 09/2010
I10: =TODAY() -> 2016-03-14
C12: Références du projet
C16: Données géographiques
C19: Département de l'installation | F19: Altitude | I19: Température extérieure de base en °C
C20: 67 - Bas-Rhin | F20: Entre 0 et 200 m | I20: =calculs!C114 -> -15
C23: Caractéristiques du bâtiment
C27: Surface de la maison en m² | F27: Hauteur moyenne sous plafond en m | I27: Température de confort en °C
C28: 100 | F28: 2.5 | I28: 20
R29: 3000 | S29: Litres de fioul
C30: Energie chauffage actuelle | F30: Chaudière actuelle (Rendement) | I30: ECS actuelle | R30: 0 | S30: m3 de gaz naturel
C31: Fioul | F31: De 10 ans (88%) | I31: idem chauffage | R31: 0 | S31: kg de propane
R32: 0 | S32: kWh électrique
C33: Premier circuit | F33: Second circuit | I33: Température maxi départ chauffage | L33: Préchaufage ECS avec PAC
C34: Plancher chauffant | F34: Sans | I34: 60 | L34: Oui
D36: =IF(OR(C34="Radiateurs",F34="Radiateurs"),1,0) -> 0
C38: Estimation des besoins Chauffage et ECS
C39: Niveau d'isolation connu (G)
C40: OUI
C42: Nombre de personnes dans le logement | F42: Consommation d'eau chaude
C43: 4 | F43: Normale (50 l/j à 55°C)
C45: Consommation actuelle d'énergie par an (avec ECS) | I45: Niveau d'isolation G estimé
C46: 6750 | D46: =VLOOKUP(C31,CONSO,2,FALSE) -> Litres de fioul | I46: =calculs!D395 -> 3.811817143
C48: Niveau d'isolation (G) | F48: Déperditions en kW
C49: 1 | F49: =calculs!C117 -> 8.8
C51: Récapitulaltif de l'estimation des besoins Chauffage et ECS
C53: Besoins annuels totaux estimés en kWh | F53: Besoins annuels chauffage | I53: Besoins annuels ECS
C54: =F54+I54 -> 18394 | F54: =calculs!C445 -> 14583 | G54: + | I54: =calculs!F374 -> 3811
E56: Puissance CHAUFFAGE à installer (kW) : | F56: =ROUND(F49,1) -> 8.8
C58: Caractéristiques installation PAC
C62: Type de PAC | F62: Gamme
C63: Géothermie | F63: Confort
C68: Modèle de PAC | F68: PAC préconisée avec appoint | I68: Echangeur à plaques de découplage
C69: OenoviaPAC-GS (sol) | F69: =calculs!C662 -> 12MR/TR ou 9 MR/TR +3 | I69: Non
C70: =IF(AND(F34<>"Sans",F63="Easylife"),"Attention : ALEZIO AWHP = 1 seul circuit","") ->  | F70: AH = appoint hydraulique
C71: Sélection | F71: Energie d'appoint | I71: Type de chaudière d'appoint
C72: OenoniaPAC-GS 12 MR | F72: Electrique | I72: Fioul condensation | O72: =IF(C31<>"Chauffage électrique",1,0) -> 1 | P72: =IF(F72="Hydraulique",1,IF(AND(F72="Actuelle",O72<>0),1,0)) -> 0
F73: =IF(AND(C34<>"Radiateurs",F34<>"Radiateurs"),"",IF(AND(I34>calculs!L370,P72<>1),"Prévoir un appoint hydraulique","")) -> 
C79: Solaire | F79: Taux de couverture ECS en % | I79: Taux de couverture chauffage en %
C80: NON | F80: 0 | I80: 30
C83: Résultats et performances
C113: Les sommes totales affichées ci-dessus, prennent en compte (selon le cas) l'abonnement au gaz naturel et/ou les surcoûts liés à la souscription d'une puissance électrique plus importante
C117: CHAUFFAGE
C118: Besoins annuels chauffage | D118: =calculs!C445 -> 14583 | E118: kWh
C119: Production annuelle solaire | D119: =calculs!C446 -> 0 | E119: kWh
C120: Production annuelle PAC | D120: =calculs!C448 -> 14583 | E120: kWh
C121: Consommation électrique PAC | D121: =calculs!BZ313 -> 3041.293984 | E121: kWh
C122: Consommation annuelle appoint | D122: =calculs!C449 -> 0 | E122: kWh
C123: COP moyen de la PAC chauffage (sur période de fonctionnement) | D123: =calculs!C451 -> 4.79
C125: Energie "gratuite" chauffage | D125: =D119+calculs!C452 -> 11542 | E125: kWh
C126: PAC + Solaire
C128: Economie annuelle PAC | D128: =calculs!C469-calculs!D469 -> 294.0080218 | E128: €
D179: Station de référence: | E179: =VLOOKUP(C20,calculs!S322:T421,2,FALSE) -> STRASBOURG-ENTZHEIM
B181: Les résultats de cette feuille de calcul sont donnés à titre indicatif. La responsabilité de De Dietrich ne peut en aucun cas être engagée.
A183: Chiffrage du matériel De Dietrich
C185: Système:
C187: PAC | D187: =C72 -> OenoniaPAC-GS 12 MR
C188: Circuit primaire | D188: =C34 -> Plancher chauffant
C189: Circuit secondaire | D189: =F34 -> Sans
C190: Préchauffage ECS | D190: =L34 -> Oui
C191: Type d'appoint | D191: =OFFRE!C17 -> Electrique
C192: Pose | D192: Au sol
C195: Référence | D195: Colis | E195: Désignation | G195: PU | H195: Qté | I195: Prix Total
G196: HT en € | I196: HT en €
C197: Pompe A Chaleur
C198: =IF($C$69="AWHP",AWHP!$C$72,OFFRE!$C$146) ->  | E198: =IF($C$69="AWHP",AWHP!$D$72,OFFRE!$D$146) ->  | G198: =IF($C$69="AWHP",AWHP!$F$72,OFFRE!$F$146) ->  | H198: 1 | I198: =IF(H198<>"",G198*H198,"") -> 
C199: Options | I199: =IF(E199<>"",G199*H199,"") -> 
C201: =OFFRE!$C$149 ->  | D201: =OFFRE!$E$149 ->  | E201: =OFFRE!$D$149 ->  | G201: =OFFRE!$F$149 ->  | H201: =IF(OFFRE!$F$113<>0,OFFRE!$F$113,"") -> 
C202: =OFFRE!$C$150 ->  | D202: =OFFRE!$E$150 ->  | E202: =OFFRE!$D$150 ->  | G202: =OFFRE!$F$150 ->  | H202: 1
C203: =IF($C$69="AWHP",AWHP!$C$75,OFFRE!$C$151) ->  | D203: =IF($C$69="AWHP",AWHP!$E$75,OFFRE!$E$151) ->  | E203: =IF($C$69="AWHP",AWHP!$D$75,OFFRE!$D$151) ->  | G203: =IF($C$69="AWHP",AWHP!$F$75,OFFRE!$F$151) ->  | H203: 1
C204: =OFFRE!$C$152 ->  | D204: =OFFRE!$E$152 ->  | E204: =OFFRE!$D$152 ->  | G204: =OFFRE!$F$152 ->  | H204: =IF(OFFRE!$F$118<>0,OFFRE!$F$118,"") -> 
C205: =OFFRE!$C$153 ->  | D205: =OFFRE!$E$153 ->  | E205: =OFFRE!$D$153 ->  | G205: =OFFRE!$F$153 ->  | H205: =IF(OFFRE!$F$120<>0,OFFRE!$F$120,"") -> 
C206: =OFFRE!$C$154 ->  | D206: =OFFRE!$E$154 ->  | E206: =OFFRE!$D$154 ->  | G206: =OFFRE!$F$154 ->  | H206: =IF(OFFRE!$F$122<>0,OFFRE!$F$122,"") -> 
C207: =OFFRE!$C$155 -> 100004415 | D207: =OFFRE!$E$155 -> EH60 | E207: =OFFRE!$D$155 -> COLIS BALLON TAMPON 160L B 150 T | G207: =OFFRE!$F$155 -> 659.8 | H207: 1 | I207: 659.8
C208: =OFFRE!$C$156 -> 100008841 | D208: =OFFRE!$E$156 -> EH85 | E208: =OFFRE!$D$156 -> COLIS BALLON TAMPON 80L B 80 T | G208: =OFFRE!$F$156 -> 438.4 | H208: 1 | I208: 438.4
C209: =OFFRE!$C$157 -> 100008833 | D209: =OFFRE!$E$157 -> EH83 | E209: =OFFRE!$D$157 -> KIT DE SEPARATION DES CIRCUITS | G209: =OFFRE!$F$157 -> 986.3 | H209: 1 | I209: 986.3
C210: =OFFRE!$C$158 ->  | D210: =OFFRE!$E$158 ->  | E210: =OFFRE!$D$158 ->  | G210: =OFFRE!$F$158 ->  | H210: 1
C211: =OFFRE!$C$159 ->  | D211: =OFFRE!$E$159 ->  | E211: =OFFRE!$D$159 ->  | G211: =OFFRE!$F$159 ->  | H211: 1
C212: =OFFRE!$C$160 ->  | D212: =OFFRE!$E$160 ->  | E212: =OFFRE!$D$160 ->  | G212: =OFFRE!$F$160 ->  | H212: 1 | I212: =IF(E212<>"",G212*H212,"") -> 
C213: =OFFRE!$C$161 -> 85757746 | D213: =OFFRE!$E$161 -> FM51 | E213: =OFFRE!$D$161 -> COMMANDE A DISTANCE INTERACTIVE CDI 2 | G213: =OFFRE!$F$161 -> 176.1 | H213: 1 | I213: 176.1
C214: =OFFRE!$C$162 -> 85757747 | D214: =OFFRE!$E$162 -> FM52 | E214: =OFFRE!$D$162 -> COMMANDE A DISTANCE SIMPLIFIEE AVEC SONDE D'AMBIANCE | G214: =OFFRE!$F$162 -> 88 | H214: 1 | I214: 88
C215: =OFFRE!$C$163 -> 88017878 | D215: =OFFRE!$E$163 -> AD152 | E215: =OFFRE!$D$163 -> MODULE DE TELESURVEILLANCE VOCAL | G215: =OFFRE!$F$163 -> 595.9 | H215: 1 | I215: 595.9
H216: 1
C217: =OFFRE!$C$165 -> 100007900 | D217: =OFFRE!$E$165 -> EH79 | E217: =OFFRE!$D$165 -> PREPARATEUR MIXTE BEPC 300 POUR PAC | G217: =OFFRE!$F$165 -> 1802 | H217: 1 | I217: 1802
C218: =OFFRE!$C$166 -> 100009229 | D218: =OFFRE!$E$166 -> EH84 | E218: =OFFRE!$D$166 -> VANNE D'INVERSION ET MOTEUR | G218: =OFFRE!$F$166 -> 316.1 | H218: 1 | I218: 316.1
C219: =OFFRE!$C$167 -> 100000030 | D219: =OFFRE!$E$167 -> AD212 | E219: =OFFRE!$D$167 -> COLIS OPTION SONDE ECS | G219: =OFFRE!$F$167 -> 43.5 | H219: 1 | I219: 43.5
H220: 1
C221: =OFFRE!$C$169 ->  | D221: =OFFRE!$E$169 ->  | E221: =OFFRE!$D$169 ->  | G221: =OFFRE!$F$169 ->  | H221: 1
C222: =OFFRE!$C$170 ->  | D222: =OFFRE!$E$170 ->  | E222: =OFFRE!$D$170 ->  | G222: =OFFRE!$F$170 ->  | H222: 1
C223: =OFFRE!$C$171 ->  | D223: =OFFRE!$E$171 ->  | E223: =OFFRE!$D$171 ->  | G223: =OFFRE!$F$171 ->  | H223: 1
H224: 1
E225: =OFFRE!$D$173 -> MISE EN SERVICE (Prix net HT) | G225: =OFFRE!$F$173 -> 444 | H225: 1 | I225: 444
C232: PRIX TOTAL DU SYSTEME (PP.H.T. 2010 en €) | I232: =SUM(I197:I231) -> 
C234: Attention ! Ne pas oublier de chiffrer l'eau glycolée !
B245: Les consommations sont estimées en tenant compte des choix pris par l'utilisateur et des données climatiques de la station de référence prise en compte.
B246: Dans tous les cas, cette simulation n'est qu'un estimation sommaire.

Sheet Chiffrage (hidden)
E2: Chiffrage d'un système de PAC
I5: ="Version 09-2010" -> Version 09-2010
C7: Identification de l'étude | I7: =TODAY() -> 2016-03-14
C11: Référence
C16: Données
C19: Gamme | E19: Type 1er circuit
C20: ROE+ | E20: Radiateurs
C22: Modèle | E22: Type 2ème circuit
C23: ROE+ 16 TR | E23: Sans
C25: Type d'appoint | E25: Préchauffage ECS avec la PAC
C26: Hydraulique par chaudière | E26: Non
C28: Attention ! Lorsque vous modifiez une des sélections, il faut toujours revalider les suivantes !
C30: Solution De Dietrich
C34: Système | D34: Référence | E34: Désignation | F34: Colis | G34: Prix Unitaire | H34: Qté | I34: Prix Total
G35: HT en € | I35: HT en €
C36: Pompe A Chaleur
D37: =OFFRE!$C$146 ->  | E37: =OFFRE!$D$146 ->  | G37: =OFFRE!$F$146 ->  | H37: 1 | I37: =IF(H37<>"",G37*H37,"") -> 
I38: =IF(H38<>"",G38*H38,"") -> 
C39: Options
D40: =OFFRE!$C$149 ->  | E40: =OFFRE!$D$149 ->  | F40: =OFFRE!$E$149 ->  | G40: =OFFRE!$F$149 ->  | H40: =IF(OFFRE!$F$113<>0,OFFRE!$F$113,"") -> 
D41: =OFFRE!$C$150 ->  | E41: =OFFRE!$D$150 ->  | F41: =OFFRE!$E$150 ->  | G41: =OFFRE!$F$150 ->  | H41: 1 | I41: =IF(D41<>"",G41*H41,"") -> 
D42: =OFFRE!$C$151 ->  | E42: =OFFRE!$D$151 ->  | F42: =OFFRE!$E$151 ->  | G42: =OFFRE!$F$151 ->  | H42: 1 | I42: =IF(D42<>"",G42*H42,"") -> 
D43: =OFFRE!$C$152 ->  | E43: =OFFRE!$D$152 ->  | F43: =OFFRE!$E$152 ->  | G43: =OFFRE!$F$152 ->  | H43: =IF(OFFRE!$F$118<>0,OFFRE!$F$118,"") -> 
D44: =OFFRE!$C$153 ->  | E44: =OFFRE!$D$153 ->  | F44: =OFFRE!$E$153 ->  | G44: =OFFRE!$F$153 ->  | H44: =IF(OFFRE!$F$120<>0,OFFRE!$F$120,"") -> 
D45: =OFFRE!$C$154 ->  | E45: =OFFRE!$D$154 ->  | F45: =OFFRE!$E$154 ->  | G45: =OFFRE!$F$154 ->  | H45: =IF(OFFRE!$F$122<>0,OFFRE!$F$122,"") -> 
D46: =OFFRE!$C$155 -> 100004415 | E46: =OFFRE!$D$155 -> COLIS BALLON TAMPON 160L B 150 T | F46: =OFFRE!$E$155 -> EH60 | G46: =OFFRE!$F$155 -> 659.8 | H46: 1 | I46: =IF(D46<>"",G46*H46,"") -> 659.8
D47: =OFFRE!$C$156 -> 100008841 | E47: =OFFRE!$D$156 -> COLIS BALLON TAMPON 80L B 80 T | F47: =OFFRE!$E$156 -> EH85 | G47: =OFFRE!$F$156 -> 438.4 | H47: 1 | I47: =IF(D47<>"",G47*H47,"") -> 438.4
D48: =OFFRE!$C$157 -> 100008833 | E48: =OFFRE!$D$157 -> KIT DE SEPARATION DES CIRCUITS | F48: =OFFRE!$E$157 -> EH83 | G48: =OFFRE!$F$157 -> 986.3 | H48: 1 | I48: =IF(D48<>"",G48*H48,"") -> 986.3
D49: =OFFRE!$C$158 ->  | E49: =OFFRE!$D$158 ->  | F49: =OFFRE!$E$158 ->  | G49: =OFFRE!$F$158 ->  | H49: 0 | I49: =IF(D49<>"",G49*H49,"") -> 
D50: =OFFRE!$C$159 ->  | E50: =OFFRE!$D$159 ->  | F50: =OFFRE!$E$159 ->  | G50: =OFFRE!$F$159 ->  | H50: 1 | I50: =IF(D50<>"",G50*H50,"") -> 
D51: =OFFRE!$C$160 ->  | E51: =OFFRE!$D$160 ->  | F51: =OFFRE!$E$160 ->  | G51: =OFFRE!$F$160 ->  | H51: =IF(OFFRE!$F$129<>0,OFFRE!$F$129,"") ->  | I51: =IF(H51<>"",G51*H51,"") -> 
D52: =OFFRE!$C$161 -> 85757746 | E52: =OFFRE!$D$161 -> COMMANDE A DISTANCE INTERACTIVE CDI 2 | F52: =OFFRE!$E$161 -> FM51 | G52: =OFFRE!$F$161 -> 176.1 | H52: 1 | I52: 176.1
D53: =OFFRE!$C$162 -> 85757747 | E53: =OFFRE!$D$162 -> COMMANDE A DISTANCE SIMPLIFIEE AVEC SONDE D'AMBIANCE | F53: =OFFRE!$E$162 -> FM52 | G53: =OFFRE!$F$162 -> 88 | H53: 1 | I53: 88
D54: =OFFRE!$C$163 -> 88017878 | E54: =OFFRE!$D$163 -> MODULE DE TELESURVEILLANCE VOCAL | F54: =OFFRE!$E$163 -> AD152 | G54: =OFFRE!$F$163 -> 595.9 | H54: 1 | I54: 595.9
D56: =OFFRE!$C$165 -> 100007900 | E56: =OFFRE!$D$165 -> PREPARATEUR MIXTE BEPC 300 POUR PAC | F56: =OFFRE!$E$165 -> EH79 | G56: =OFFRE!$F$165 -> 1802 | H56: =IF(OFFRE!$F$134<>0,OFFRE!$F$134,"") -> 1 | I56: 1802
D57: =OFFRE!$C$166 -> 100009229 | E57: =OFFRE!$D$166 -> VANNE D'INVERSION ET MOTEUR | F57: =OFFRE!$E$166 -> EH84 | G57: =OFFRE!$F$166 -> 316.1 | H57: =IF(OFFRE!$F$135<>0,OFFRE!$F$135,"") -> 1 | I57: 316.1
D58: =OFFRE!$C$167 -> 100000030 | E58: =OFFRE!$D$167 -> COLIS OPTION SONDE ECS | F58: =OFFRE!$E$167 -> AD212 | G58: =OFFRE!$F$167 -> 43.5 | H58: =IF(OFFRE!$F$136<>0,OFFRE!$F$136,"") -> 1 | I58: 43.5
D60: =OFFRE!$C$169 ->  | E60: =OFFRE!$D$169 ->  | F60: =OFFRE!$E$169 ->  | G60: =OFFRE!$F$169 ->  | H60: =IF(D60<>"",1,"") ->  | I60: =IF(D60<>"",G60*H60,"") -> 
D61: =OFFRE!$C$170 ->  | E61: =OFFRE!$D$170 ->  | F61: =OFFRE!$E$170 ->  | G61: =OFFRE!$F$170 ->  | I61: =IF(D61<>"",G61*H61,"") -> 
D62: =OFFRE!$C$171 ->  | E62: =OFFRE!$D$171 ->  | F62: =OFFRE!$E$171 ->  | G62: =OFFRE!$F$171 ->  | I62: =IF(D62<>"",G62*H62,"") -> 
E64: =OFFRE!$D$173 -> MISE EN SERVICE (Prix net HT) | G64: =OFFRE!$F$173 -> 444 | H64: 1 | I64: =IF(H64<>"",G64*H64,"") -> 444
I65: =G65*H65 -> 0
I66: =G66*H66 -> 0
I67: =G67*H67 -> 0
I68: =G68*H68 -> 0
I69: =G69*H69 -> 0
C71: PRIX TOTAL DU SYSTEME (PP.H.T. 2010 en €) | I71: =SUM(I36:I70) -> 
C73: Attention ! Ne pas oublier de chiffrer l'eau glycolée !

Sheet Coûts énergies
D2: Coûts des énergies
J5: ="Version 03/2016" -> Version 03/2016
C8: Electricité
C11: SIMPLE TARIF | G11: DOUBLE TARIF
C13: Electricité : Prix de 100 kWh en € TTC | E13: Au 01/2016 | G13: Electricité : Prix de 100 kWh en € TTC | I13: Au 01/2016
C14: > 3 kVA | D14: 14.67 | E14: 14.67 | G14: HP : Heures Pleines | H14: 16.0035 | I14: 16.0035
G15: HC : Heures Creuses | H15: 11.1435 | I15: 11.1435
C17: Abonnement annuel en € TTC | E17: Au 01/2016 | G17: Abonnement annuel en € TTC | I17: Au 01/2016
C18: 3 kVA | D18: 54.4467 | E18: 54.45 | G18: 6 kVA | H18: 94.4612 | I18: 94.46
C19: 6 kVA | D19: 88.4181 | E19: 88.42 | G19: 9 kVA | H19: 126.5168 | I19: 126.52
C20: 9 kVA | D20: 117.1988 | E20: 117.2 | G20: 12 kVA | H20: 204.7655 | I20: 204.77
C21: 12 kVA | D21: 180.1147 | E21: 180.11 | G21: 15 kVA | H21: 237.2602 | I21: 237.26
C22: 15 kVA | D22: 206.5733 | E22: 206.57 | G22: 18 kVA | H22: 266.843 | I22: 266.84
C23: 18 kVA | D23: 237.5895 | E23: 237.59 | G23: 24 kVA | H23: 560.1762 | I23: 560.18
G24: 30 kVA | H24: 661.9116 | I24: 661.91
G25: 36 kVA | H25: 761.3682 | I25: 761.37
C27: Gaz
C31: Gaz : Prix de 100 kWh PCS en € TTC | E31: Au 01/2016 | G31: Abonnement annuel en € TTC | I31: Au 01/2016
C32: Tarif B1 | D32: 5.12 | E32: 5.1186 | G32: Tarif B1 | H32: 234.01 | I32: 234.0096
C33: Tarif B2I | D33: 5.12 | E33: 5.1186 | G33: Tarif B2I | H33: 234.01 | I33: 234.0096
C35: Fioul
C39: Fioul : Prix de 100 kWh PCI en € TTC | E39: Au 01/2016
C40: Fioul | D40: 7.24 | E40: 7.2379
C43: Propane
C47: Propane : Prix de 100 kWh PCI en € TTC | E47: Au 01/2016
C48: Propane | D48: 11.61 | E48: 11.607
C51: Bois
C55: Bois bûche : Prix du stère en € TTC | G55: Granulé bois : Prix de la tonne en € TTC
C56: Bois | D56: 70 | G56: Granulé bois | H56: 265
C62: Mise à jour possible : | D62: http://developpement-durable.bsocom.fr/statistiques/ReportFolders/ReportFolders.aspx

Sheet OFFRE (hidden)
B1: Syst | C1: =Données!C69 -> OenoviaPAC-GS (sol) | D1: Modèle | E1: =Données!C72 -> OenoniaPAC-GS 12 MR | G1: Circuit1 | H1: =Données!C34 -> Plancher chauffant
B2: ROE-II | C2: =IF(C1=B2,1,IF(C1=B3,2,IF(C1=B4,3,IF(C1=B5,4,IF(C1=B6,5,IF(C1=B7,6)))))) -> FALSE | D2: =IF($C$1="ROE-II",B9,IF($C$1="ROE+",C9,IF($C$1="SOLO",D9,IF($C$1="NAPO",E9,IF($C$1="ROI+",L9,IF($C$1="ROE H",M9)))))) -> FALSE | E2: =IF(E1=D2,1,IF(E1=D3,2,IF(E1=D4,3,IF(E1=D5,4,IF(E1=D6,5,IF(E1=D7,6,IF(E1=D8,7))))))) -> FALSE | G2: Radiateurs
B3: ROE+ | D3: =IF($C$1="ROE-II",B10,IF($C$1="ROE+",C10,IF($C$1="SOLO",D10,IF($C$1="NAPO",E10,IF($C$1="ROI+",L10,IF($C$1="ROE H",M10)))))) -> FALSE | G3: Plancher chauffant
B4: ROI+ | D4: FALSE | G4: -
B5: ROE H | D5: FALSE
B6: SOLO | D6: FALSE | G6: Circuit2 | H6: =Données!F34 -> Sans
B7: NAPO | D7: FALSE | G7: =IF($H$1="Radiateurs","Plancher chauffant",IF($H$1="Plancher chauffant","Radiateurs",IF($H$1="Ventilo-convecteurs","Radiateurs"))) -> Radiateurs
D8: FALSE | G8: Sans
B9: ROE-II 6 MR | C9: ROE+ 11 MR | D9: SOLO 7 MR | E9: NAPO 9 M | L9: ROI+ 8 MR | M9: ROE H 13 MH
B10: ROE-II 8 MR | C10: ROE+ 11 TR | D10: SOLO 9 MR | E10: NAPO 14 M | L10: ROI+ 8 TR | M10: ROE H 13 TH
B11: ROE-II 10 MR | C11: ROE+ 16 TR | D11: SOLO 11 MR | E11: NAPO 22 T | G11: Choix | L11: ROI+ 11 MR | M11: ROE H 17 TH
B12: ROE-II 10 TR | C12: ="" ->  | D12: SOLO 14 TR | E12: ="" ->  | G12: 0 | L12: ROI+ 11 TR | M12: ="" -> 
B13: ROE-II 13 MR | C13: ROE+ 18 TH | D13: SOLO 17 TR | E13: ="" ->  | G13: 1 | L13: ROI+ 16 TR | M13: ="" -> 
B14: ROE-II 13 TR | C14: ROE+ 22 TH | D14: ="" ->  | E14: ="" ->  | L14: ="" ->  | M14: ="" -> 
B15: ROE-II 17 TR | C15: ="" ->  | D15: ="" ->  | E15: ="" ->  | G15: Choix2 | L15: ="" ->  | M15: ="" -> 
C16: =Données!F72 -> Electrique | D16: =IF(C16<>"Electrique",B18,B19) -> Electrique | G16: 0
B17: Appoint | C17: =D16 -> Electrique | D17: PAC | G17: 1
B18: Hydraulique par chaudière | C18: =IF(C17=B18,1,IF(C17=B19,2,IF(C17=B20,1))) -> 2 | D18: =1+14*(C2-1)+(E2-1)*2+C18-1 -> -14 | G18: 2
B19: Electrique
B20: Sans appoint | G20: Ecs | H20: =Données!L34 -> Oui
G21: Oui
G22: Non
B23: REFERENCE | C23: DESIGNATION | D23: COLIS | E23: PRIX
E24: EURO
A26: 1 | B26: 100007570 | C26: =VLOOKUP(OFFRE!B26,PRIX!$1:$1048576,2,FALSE) -> ROE-II 6 MR/H | E26: =VLOOKUP(OFFRE!B26,PRIX!$1:$1048576,4,FALSE) -> 6948
A27: 2 | B27: 100007559 | C27: =VLOOKUP(OFFRE!B27,PRIX!$1:$1048576,2,FALSE) -> ROE-II 6 MR/E | E27: =VLOOKUP(OFFRE!B27,PRIX!$1:$1048576,4,FALSE) -> 6948 | G27: =C1 -> OenoviaPAC-GS (sol) | I27: ROE-II
A28: 3 | B28: 100007572 | C28: =VLOOKUP(OFFRE!B28,PRIX!$1:$1048576,2,FALSE) -> ROE-II 8 MR/H | E28: =VLOOKUP(OFFRE!B28,PRIX!$1:$1048576,4,FALSE) -> 7375 | I28: ROE+
A29: 4 | B29: 100007571 | C29: =VLOOKUP(OFFRE!B29,PRIX!$1:$1048576,2,FALSE) -> ROE-II 8 MR/E | E29: =VLOOKUP(OFFRE!B29,PRIX!$1:$1048576,4,FALSE) -> 7375 | I29: ROI+
A30: 5 | B30: 100007574 | C30: =VLOOKUP(OFFRE!B30,PRIX!$1:$1048576,2,FALSE) -> ROE-II 10 MR/H | E30: =VLOOKUP(OFFRE!B30,PRIX!$1:$1048576,4,FALSE) -> 7803 | I30: ROE H
A31: 6 | B31: 100007573 | C31: =VLOOKUP(OFFRE!B31,PRIX!$1:$1048576,2,FALSE) -> ROE-II 10 MR/E | E31: =VLOOKUP(OFFRE!B31,PRIX!$1:$1048576,4,FALSE) -> 7803 | I31: SOLO
A32: 7 | B32: 100007576 | C32: =VLOOKUP(OFFRE!B32,PRIX!$1:$1048576,2,FALSE) -> ROE-II 10 TR/H | E32: =VLOOKUP(OFFRE!B32,PRIX!$1:$1048576,4,FALSE) -> 7803 | I32: NAPO
A33: 8 | B33: 100007575 | C33: =VLOOKUP(OFFRE!B33,PRIX!$1:$1048576,2,FALSE) -> ROE-II 10 TR/E | E33: =VLOOKUP(OFFRE!B33,PRIX!$1:$1048576,4,FALSE) -> 7803
A34: 9 | B34: 100006701 | C34: =VLOOKUP(OFFRE!B34,PRIX!$1:$1048576,2,FALSE) -> ROE-II 13 MR/H | E34: =VLOOKUP(OFFRE!B34,PRIX!$1:$1048576,4,FALSE) -> 8872
A35: 10 | B35: 100006700 | C35: =VLOOKUP(OFFRE!B35,PRIX!$1:$1048576,2,FALSE) -> ROE-II 13 MR/E | E35: =VLOOKUP(OFFRE!B35,PRIX!$1:$1048576,4,FALSE) -> 8872
A36: 11 | B36: 100007578 | C36: =VLOOKUP(OFFRE!B36,PRIX!$1:$1048576,2,FALSE) -> ROE-II 13 TR/H | E36: =VLOOKUP(OFFRE!B36,PRIX!$1:$1048576,4,FALSE) -> 8444
A37: 12 | B37: 100007577 | C37: =VLOOKUP(OFFRE!B37,PRIX!$1:$1048576,2,FALSE) -> ROE-II 13 TR/E | E37: =VLOOKUP(OFFRE!B37,PRIX!$1:$1048576,4,FALSE) -> 8444
A38: 13 | B38: 100013202 | C38: =VLOOKUP(OFFRE!B38,PRIX!$1:$1048576,2,FALSE) -> ROE-II 17 TR/EP | E38: =VLOOKUP(OFFRE!B38,PRIX!$1:$1048576,4,FALSE) -> 9620
A39: 14 | B39: 100013203 | C39: =VLOOKUP(OFFRE!B39,PRIX!$1:$1048576,2,FALSE) -> ROE-II 17 TR/HP | E39: =VLOOKUP(OFFRE!B39,PRIX!$1:$1048576,4,FALSE) -> 9620
A40: 15 | B40: 100004435 | C40: =VLOOKUP(OFFRE!B40,PRIX!$1:$1048576,2,FALSE) -> ROE+ 11 MR/H | E40: =VLOOKUP(OFFRE!B40,PRIX!$1:$1048576,4,FALSE) -> 11705
A41: 16 | B41: 100004436 | C41: =VLOOKUP(OFFRE!B41,PRIX!$1:$1048576,2,FALSE) -> ROE+ 11 MR/E | E41: =VLOOKUP(OFFRE!B41,PRIX!$1:$1048576,4,FALSE) -> 11705
A42: 17 | B42: 100004433 | C42: =VLOOKUP(OFFRE!B42,PRIX!$1:$1048576,2,FALSE) -> ROE+ 11 TR/H | E42: =VLOOKUP(OFFRE!B42,PRIX!$1:$1048576,4,FALSE) -> 12720
A43: 18 | B43: 100004434 | C43: =VLOOKUP(OFFRE!B43,PRIX!$1:$1048576,2,FALSE) -> ROE+ 11 TR/E | E43: =VLOOKUP(OFFRE!B43,PRIX!$1:$1048576,4,FALSE) -> 12720
A44: 19 | B44: 100004437 | C44: =VLOOKUP(OFFRE!B44,PRIX!$1:$1048576,2,FALSE) -> ROE+ 16 TR/H | E44: =VLOOKUP(OFFRE!B44,PRIX!$1:$1048576,4,FALSE) -> 15285
A45: 20 | B45: 100004438 | C45: =VLOOKUP(OFFRE!B45,PRIX!$1:$1048576,2,FALSE) -> ROE+ 16 TR/E | E45: =VLOOKUP(OFFRE!B45,PRIX!$1:$1048576,4,FALSE) -> 15285
A46: 21
A47: 22
A48: 23 | B48: 100006686 | C48: =VLOOKUP(OFFRE!B48,PRIX!$1:$1048576,2,FALSE) -> ROE+ 18 TH/H | E48: =VLOOKUP(OFFRE!B48,PRIX!$1:$1048576,4,FALSE) -> 16033
A49: 24 | B49: 100006685 | C49: =VLOOKUP(OFFRE!B49,PRIX!$1:$1048576,2,FALSE) -> ROE+ 18 TH/E | E49: =VLOOKUP(OFFRE!B49,PRIX!$1:$1048576,4,FALSE) -> 16033
A50: 25 | B50: 100006688 | C50: =VLOOKUP(OFFRE!B50,PRIX!$1:$1048576,2,FALSE) -> ROE+ 22 TH/H | E50: =VLOOKUP(OFFRE!B50,PRIX!$1:$1048576,4,FALSE) -> 16461
A51: 26 | B51: 100006687 | C51: =VLOOKUP(OFFRE!B51,PRIX!$1:$1048576,2,FALSE) -> ROE+ 22 TH/E | E51: =VLOOKUP(OFFRE!B51,PRIX!$1:$1048576,4,FALSE) -> 16461
A52: 27
A53: 28
A54: 29 | B54: 100013146 | C54: =VLOOKUP(OFFRE!B54,PRIX!$1:$1048576,2,FALSE) -> ROI+ 8 MR/H | E54: =VLOOKUP(OFFRE!B54,PRIX!$1:$1048576,4,FALSE) -> 10689
A55: 30 | B55: 100013147 | C55: =VLOOKUP(OFFRE!B55,PRIX!$1:$1048576,2,FALSE) -> ROI+ 8 MR/E | E55: =VLOOKUP(OFFRE!B55,PRIX!$1:$1048576,4,FALSE) -> 10689
A56: 31 | B56: 100013148 | C56: =VLOOKUP(OFFRE!B56,PRIX!$1:$1048576,2,FALSE) -> ROI+ 8 TR/H | E56: =VLOOKUP(OFFRE!B56,PRIX!$1:$1048576,4,FALSE) -> 11503
A57: 32 | B57: 100013149 | C57: =VLOOKUP(OFFRE!B57,PRIX!$1:$1048576,2,FALSE) -> ROI+ 8 TR/E | E57: =VLOOKUP(OFFRE!B57,PRIX!$1:$1048576,4,FALSE) -> 11503
A58: 33 | B58: 100013160 | C58: =VLOOKUP(OFFRE!B58,PRIX!$1:$1048576,2,FALSE) -> ROI+ 11 MR/H | E58: =VLOOKUP(OFFRE!B58,PRIX!$1:$1048576,4,FALSE) -> 11910
A59: 34 | B59: 100013161 | C59: =VLOOKUP(OFFRE!B59,PRIX!$1:$1048576,2,FALSE) -> ROI+ 11 MR/E | E59: =VLOOKUP(OFFRE!B59,PRIX!$1:$1048576,4,FALSE) -> 11910
A60: 35 | B60: 100013162 | C60: =VLOOKUP(OFFRE!B60,PRIX!$1:$1048576,2,FALSE) -> ROI+ 11 TR/H | E60: =VLOOKUP(OFFRE!B60,PRIX!$1:$1048576,4,FALSE) -> 12725
A61: 36 | B61: 100013163 | C61: =VLOOKUP(OFFRE!B61,PRIX!$1:$1048576,2,FALSE) -> ROI+ 11 TR/E | E61: =VLOOKUP(OFFRE!B61,PRIX!$1:$1048576,4,FALSE) -> 12725
A62: 37 | B62: 100013164 | C62: =VLOOKUP(OFFRE!B62,PRIX!$1:$1048576,2,FALSE) -> ROI+ 16 TR/H | E62: =VLOOKUP(OFFRE!B62,PRIX!$1:$1048576,4,FALSE) -> 14557
A63: 38 | B63: 100013165 | C63: =VLOOKUP(OFFRE!B63,PRIX!$1:$1048576,2,FALSE) -> ROI+ 16 TR/E | E63: =VLOOKUP(OFFRE!B63,PRIX!$1:$1048576,4,FALSE) -> 14557
A64: 39
A65: 40
A66: 41
A67: 42
A68: 43 | B68: 100013172 | C68: =VLOOKUP(OFFRE!B68,PRIX!$1:$1048576,2,FALSE) -> ROE 13 MH/HP | E68: =VLOOKUP(OFFRE!B68,PRIX!$1:$1048576,4,FALSE) -> 11707
A69: 44 | B69: 100013171 | C69: =VLOOKUP(OFFRE!B69,PRIX!$1:$1048576,2,FALSE) -> ROE 13 MH/EP | E69: =VLOOKUP(OFFRE!B69,PRIX!$1:$1048576,4,FALSE) -> 11707
A70: 45 | B70: 100013174 | C70: =VLOOKUP(OFFRE!B70,PRIX!$1:$1048576,2,FALSE) -> ROE 13 TH/HP | E70: =VLOOKUP(OFFRE!B70,PRIX!$1:$1048576,4,FALSE) -> 12012
A71: 46 | B71: 100013173 | C71: =VLOOKUP(OFFRE!B71,PRIX!$1:$1048576,2,FALSE) -> ROE 13 TH/EP | E71: =VLOOKUP(OFFRE!B71,PRIX!$1:$1048576,4,FALSE) -> 12012
A72: 47 | B72: 100013176 | C72: =VLOOKUP(OFFRE!B72,PRIX!$1:$1048576,2,FALSE) -> ROE 17 TH/HP | E72: =VLOOKUP(OFFRE!B72,PRIX!$1:$1048576,4,FALSE) -> 12725
A73: 48 | B73: 100013175 | C73: =VLOOKUP(OFFRE!B73,PRIX!$1:$1048576,2,FALSE) -> ROE 17 TH/EP | E73: =VLOOKUP(OFFRE!B73,PRIX!$1:$1048576,4,FALSE) -> 12725
A74: 49
A75: 50
A76: 51
A77: 52
A78: 53
A79: 54
A80: 55
A81: 56
A82: 57 | B82: 100004454 | C82: =VLOOKUP(OFFRE!B82,PRIX!$1:$1048576,2,FALSE) -> SOLO 7 MR/H | E82: =VLOOKUP(OFFRE!B82,PRIX!$1:$1048576,4,FALSE) -> 7695
A83: 58 | B83: 100004455 | C83: =VLOOKUP(OFFRE!B83,PRIX!$1:$1048576,2,FALSE) -> SOLO 7 MR/E | E83: =VLOOKUP(OFFRE!B83,PRIX!$1:$1048576,4,FALSE) -> 7695
A84: 59 | B84: 100004456 | C84: =VLOOKUP(OFFRE!B84,PRIX!$1:$1048576,2,FALSE) -> SOLO 9 MR/H | E84: =VLOOKUP(OFFRE!B84,PRIX!$1:$1048576,4,FALSE) -> 7909
A85: 60 | B85: 100004457 | C85: =VLOOKUP(OFFRE!B85,PRIX!$1:$1048576,2,FALSE) -> SOLO 9 MR/E | E85: =VLOOKUP(OFFRE!B85,PRIX!$1:$1048576,4,FALSE) -> 7909
A86: 61 | B86: 100004458 | C86: =VLOOKUP(OFFRE!B86,PRIX!$1:$1048576,2,FALSE) -> SOLO 11 MR/H | E86: =VLOOKUP(OFFRE!B86,PRIX!$1:$1048576,4,FALSE) -> 8122
A87: 62 | B87: 100004459 | C87: =VLOOKUP(OFFRE!B87,PRIX!$1:$1048576,2,FALSE) -> SOLO 11 MR/E | E87: =VLOOKUP(OFFRE!B87,PRIX!$1:$1048576,4,FALSE) -> 8122
A88: 63 | B88: 100004460 | C88: =VLOOKUP(OFFRE!B88,PRIX!$1:$1048576,2,FALSE) -> SOLO 14 TR/H | E88: =VLOOKUP(OFFRE!B88,PRIX!$1:$1048576,4,FALSE) -> 8657
A89: 64 | B89: 100004461 | C89: =VLOOKUP(OFFRE!B89,PRIX!$1:$1048576,2,FALSE) -> SOLO 14 TR/E | E89: =VLOOKUP(OFFRE!B89,PRIX!$1:$1048576,4,FALSE) -> 8657
A90: 65 | B90: 100004462 | C90: =VLOOKUP(OFFRE!B90,PRIX!$1:$1048576,2,FALSE) -> SOLO 17 TR/H | E90: =VLOOKUP(OFFRE!B90,PRIX!$1:$1048576,4,FALSE) -> 9405
A91: 66 | B91: 100004463 | C91: =VLOOKUP(OFFRE!B91,PRIX!$1:$1048576,2,FALSE) -> SOLO 17 TR/E | E91: =VLOOKUP(OFFRE!B91,PRIX!$1:$1048576,4,FALSE) -> 9405
A92: 67
A93: 68
A94: 69
A95: 70
A96: 71 | B96: 100004426 | C96: =VLOOKUP(OFFRE!B96,PRIX!$1:$1048576,2,FALSE) -> NAPO 9 M/H | E96: =VLOOKUP(OFFRE!B96,PRIX!$1:$1048576,4,FALSE) -> 9031
A97: 72 | B97: 100004427 | C97: =VLOOKUP(OFFRE!B97,PRIX!$1:$1048576,2,FALSE) -> NAPO 9 M/E | E97: =VLOOKUP(OFFRE!B97,PRIX!$1:$1048576,4,FALSE) -> 9031
A98: 73 | B98: 100004428 | C98: =VLOOKUP(OFFRE!B98,PRIX!$1:$1048576,2,FALSE) -> NAPO 14 M/H | E98: =VLOOKUP(OFFRE!B98,PRIX!$1:$1048576,4,FALSE) -> 9512
A99: 74 | B99: 100004429 | C99: =VLOOKUP(OFFRE!B99,PRIX!$1:$1048576,2,FALSE) -> NAPO 14 M/E | E99: =VLOOKUP(OFFRE!B99,PRIX!$1:$1048576,4,FALSE) -> 9512
A100: 75 | B100: 100004430 | C100: =VLOOKUP(OFFRE!B100,PRIX!$1:$1048576,2,FALSE) -> NAPO 22 T/H | E100: =VLOOKUP(OFFRE!B100,PRIX!$1:$1048576,4,FALSE) -> 10849
A101: 76 | B101: 100004431 | C101: =VLOOKUP(OFFRE!B101,PRIX!$1:$1048576,2,FALSE) -> NAPO 22 T/E | E101: =VLOOKUP(OFFRE!B101,PRIX!$1:$1048576,4,FALSE) -> 10849
B108: OPTIONS
B109: REFERENCE | C109: DESIGNATION | D109: COLIS | E109: PRIX
E110: EURO
B113: 100004412 | C113: =VLOOKUP(OFFRE!B113,PRIX!$1:$1048576,2,FALSE) -> COLIS MODULE HYDRAULIQUE V3V MIT | D113: =VLOOKUP(OFFRE!B113,PRIX!$1:$1048576,3,FALSE) -> EH57 | E113: =VLOOKUP(OFFRE!B113,PRIX!$1:$1048576,4,FALSE) -> 428.5 | F113: =IF(G113=1,1,H113) -> 0 | G113: =IF(H6="Sans",0,1) -> 0 | H113: =IF(C17="Hydraulique par chaudière",IF(H1="Plancher chauffant",IF(H6="Sans",1,0),0),0) -> 0
B114: 100007558 | C114: =VLOOKUP(OFFRE!B114,PRIX!$1:$1048576,2,FALSE) -> COLIS KIT PLOTS ANTIVIBRATILS PAC ROE II | D114: =VLOOKUP(OFFRE!B114,PRIX!$1:$1048576,3,FALSE) -> EH78 | E114: =VLOOKUP(OFFRE!B114,PRIX!$1:$1048576,4,FALSE) -> 106.3 | F114: =G114+H114 -> 0 | G114: =IF(D18>=1,IF(D18<=14,1,0),0) -> 0 | H114: =IF(D18>=43,IF(D18<=48,1,0),0) -> 0
B115: 100001369 | C115: =VLOOKUP(OFFRE!B115,PRIX!$1:$1048576,2,FALSE) -> COLIS KIT FLEXIBLES 1'' PAC ROE 6-10 / ROE+ ET APPOINT HYDRAULIQUE | D115: =VLOOKUP(OFFRE!B115,PRIX!$1:$1048576,3,FALSE) -> EH19 | E115: =VLOOKUP(OFFRE!B115,PRIX!$1:$1048576,4,FALSE) -> 98.7 | F115: =G115+H115+I115+J115 -> 0 | G115: =IF(D18>=1,IF(D18<=8,1,0),0) -> 0 | H115: =IF(D18>=15,IF(D18<=20,1,0),0) -> 0 | J115: =IF(C17="Hydraulique par chaudière",1,0) -> 0
B116: 100001369 | C116: =VLOOKUP(OFFRE!B116,PRIX!$1:$1048576,2,FALSE) -> COLIS KIT FLEXIBLES 1'' PAC ROE 6-10 / ROE+ ET APPOINT HYDRAULIQUE | D116: =VLOOKUP(OFFRE!B116,PRIX!$1:$1048576,3,FALSE) -> EH19 | E116: =VLOOKUP(OFFRE!B116,PRIX!$1:$1048576,4,FALSE) -> 98.7
B117: 100001369 | C117: =VLOOKUP(OFFRE!B117,PRIX!$1:$1048576,2,FALSE) -> COLIS KIT FLEXIBLES 1'' PAC ROE 6-10 / ROE+ ET APPOINT HYDRAULIQUE | D117: =VLOOKUP(OFFRE!B117,PRIX!$1:$1048576,3,FALSE) -> EH19 | E117: =VLOOKUP(OFFRE!B117,PRIX!$1:$1048576,4,FALSE) -> 98.7
B118: 100004414 | C118: =VLOOKUP(OFFRE!B118,PRIX!$1:$1048576,2,FALSE) -> COLIS KIT FLEXIBLES 1''1/4 PAC ROE 13-17 / ROE+TH | D118: =VLOOKUP(OFFRE!B118,PRIX!$1:$1048576,3,FALSE) -> EH59 | E118: =VLOOKUP(OFFRE!B118,PRIX!$1:$1048576,4,FALSE) -> 142.5 | F118: =G118+H118+I118 -> 0 | G118: =IF(D18>=9,IF(D18<=14,1,0),0) -> 0 | H118: =IF(D18>=23,IF(D18<=26,1,0),0) -> 0 | I118: =IF(D18>=43,IF(D18<=48,1,0),0) -> 0
B119: 100004414 | C119: =VLOOKUP(OFFRE!B119,PRIX!$1:$1048576,2,FALSE) -> COLIS KIT FLEXIBLES 1''1/4 PAC ROE 13-17 / ROE+TH | D119: =VLOOKUP(OFFRE!B119,PRIX!$1:$1048576,3,FALSE) -> EH59 | E119: =VLOOKUP(OFFRE!B119,PRIX!$1:$1048576,4,FALSE) -> 142.5
B120: 100004417 | C120: =VLOOKUP(OFFRE!B120,PRIX!$1:$1048576,2,FALSE) -> FILTRE 400UM + VANNE D'ISOLEMENT PAC ROE 6-10 ET ROE+ | D120: =VLOOKUP(OFFRE!B120,PRIX!$1:$1048576,3,FALSE) -> EH61 | E120: =VLOOKUP(OFFRE!B120,PRIX!$1:$1048576,4,FALSE) -> 88.7 | F120: =G120+H120+I120 -> 0 | G120: =IF(D18>=1,IF(D18<=8,1,0),0) -> 0 | H120: =IF(D18>=15,IF(D18<=20,1,0),0) -> 0 | I120: =IF(D18>=29,IF(D18<=38,1,0),0) -> 0
B121: 100004417 | C121: =VLOOKUP(OFFRE!B121,PRIX!$1:$1048576,2,FALSE) -> FILTRE 400UM + VANNE D'ISOLEMENT PAC ROE 6-10 ET ROE+ | D121: =VLOOKUP(OFFRE!B121,PRIX!$1:$1048576,3,FALSE) -> EH61 | E121: =VLOOKUP(OFFRE!B121,PRIX!$1:$1048576,4,FALSE) -> 88.7
B122: 100004780 | C122: =VLOOKUP(OFFRE!B122,PRIX!$1:$1048576,2,FALSE) -> FILTRE 500UM + VANNE D'ISOLEMENT PAC ROE 13-17 ET ROE+TH | D122: =VLOOKUP(OFFRE!B122,PRIX!$1:$1048576,3,FALSE) -> EH63 | E122: =VLOOKUP(OFFRE!B122,PRIX!$1:$1048576,4,FALSE) -> 120.6 | F122: =G122+H122+I122 -> 0 | G122: =IF(D18>=9,IF(D18<=14,1,0),0) -> 0 | H122: =IF(D18>=23,IF(D18<=26,1,0),0) -> 0 | I122: =IF(D18>=43,IF(D18<=48,1,0),0) -> 0
B123: 100004780 | C123: =VLOOKUP(OFFRE!B123,PRIX!$1:$1048576,2,FALSE) -> FILTRE 500UM + VANNE D'ISOLEMENT PAC ROE 13-17 ET ROE+TH | D123: =VLOOKUP(OFFRE!B123,PRIX!$1:$1048576,3,FALSE) -> EH63 | E123: =VLOOKUP(OFFRE!B123,PRIX!$1:$1048576,4,FALSE) -> 120.6
B124: 100004415 | C124: =VLOOKUP(OFFRE!B124,PRIX!$1:$1048576,2,FALSE) -> COLIS BALLON TAMPON 160L B 150 T | D124: =VLOOKUP(OFFRE!B124,PRIX!$1:$1048576,3,FALSE) -> EH60 | E124: =VLOOKUP(OFFRE!B124,PRIX!$1:$1048576,4,FALSE) -> 659.8
B125: 100008841 | C125: =VLOOKUP(OFFRE!B125,PRIX!$1:$1048576,2,FALSE) -> COLIS BALLON TAMPON 80L B 80 T | D125: =VLOOKUP(OFFRE!B125,PRIX!$1:$1048576,3,FALSE) -> EH85 | E125: =VLOOKUP(OFFRE!B125,PRIX!$1:$1048576,4,FALSE) -> 438.4
B126: 100008833 | C126: =VLOOKUP(OFFRE!B126,PRIX!$1:$1048576,2,FALSE) -> KIT DE SEPARATION DES CIRCUITS | D126: =VLOOKUP(OFFRE!B126,PRIX!$1:$1048576,3,FALSE) -> EH83 | E126: =VLOOKUP(OFFRE!B126,PRIX!$1:$1048576,4,FALSE) -> 986.3 | F126: =G126+H126 -> 1 | G126: =IF(D18>=29,IF(D18<=38,0,1),1) -> 1 | H126: =IF(D18>=57,IF(D18<=76,1,0),0) -> 0
B127: 100008903 | C127: =VLOOKUP(OFFRE!B127,PRIX!$1:$1048576,2,FALSE) -> PLATINE DE LIMITATION DE COURANT DE DEMARAGE | D127: =VLOOKUP(OFFRE!B127,PRIX!$1:$1048576,3,FALSE) -> EH87 | E127: =VLOOKUP(OFFRE!B127,PRIX!$1:$1048576,4,FALSE) -> 547.9 | F127: =G127+H127+I127 -> 0 | G127: =IF(D18>=7,IF(D18<=8,1,0),0) -> 0 | H127: =IF(D18>=11,IF(D18<=14,1,0),0) -> 0 | I127: =IF(D18>=43,IF(D18<=48,1,0),0) -> 0
B128: 100011222 | C128: =VLOOKUP(OFFRE!B128,PRIX!$1:$1048576,2,FALSE) -> SUPPORT FIXATION MURALE & PLOTS ANTIVIBRATILES POUR ROE-II 6 à 10 - AWHP | D128: =VLOOKUP(OFFRE!B128,PRIX!$1:$1048576,3,FALSE) -> EH95 | E128: =VLOOKUP(OFFRE!B128,PRIX!$1:$1048576,4,FALSE) -> 138.1 | F128: =IF(D18>=1,IF(D18<=8,1,0),0) -> 0
B129: 85757743 | C129: =VLOOKUP(OFFRE!B129,PRIX!$1:$1048576,2,FALSE) -> PLATINE + SONDE POUR 1 CIRCUIT AVEC VANNE MELANGEUSE | D129: =VLOOKUP(OFFRE!B129,PRIX!$1:$1048576,3,FALSE) -> FM48 | E129: =VLOOKUP(OFFRE!B129,PRIX!$1:$1048576,4,FALSE) -> 152.6 | F129: =F113 -> 0
B130: 85757746 | C130: =VLOOKUP(OFFRE!B130,PRIX!$1:$1048576,2,FALSE) -> COMMANDE A DISTANCE INTERACTIVE CDI 2 | D130: =VLOOKUP(OFFRE!B130,PRIX!$1:$1048576,3,FALSE) -> FM51 | E130: =VLOOKUP(OFFRE!B130,PRIX!$1:$1048576,4,FALSE) -> 176.1
B131: 85757747 | C131: =VLOOKUP(OFFRE!B131,PRIX!$1:$1048576,2,FALSE) -> COMMANDE A DISTANCE SIMPLIFIEE AVEC SONDE D'AMBIANCE | D131: =VLOOKUP(OFFRE!B131,PRIX!$1:$1048576,3,FALSE) -> FM52 | E131: =VLOOKUP(OFFRE!B131,PRIX!$1:$1048576,4,FALSE) -> 88
B132: 88017878 | C132: =VLOOKUP(OFFRE!B132,PRIX!$1:$1048576,2,FALSE) -> MODULE DE TELESURVEILLANCE VOCAL | D132: =VLOOKUP(OFFRE!B132,PRIX!$1:$1048576,3,FALSE) -> AD152 | E132: =VLOOKUP(OFFRE!B132,PRIX!$1:$1048576,4,FALSE) -> 595.9
B134: 100007900 | C134: =VLOOKUP(OFFRE!B134,PRIX!$1:$1048576,2,FALSE) -> PREPARATEUR MIXTE BEPC 300 POUR PAC | D134: =VLOOKUP(OFFRE!B134,PRIX!$1:$1048576,3,FALSE) -> EH79 | E134: =VLOOKUP(OFFRE!B134,PRIX!$1:$1048576,4,FALSE) -> 1802 | F134: =IF(H20="Oui",1,0) -> 1
B135: 100009229 | C135: =VLOOKUP(OFFRE!B135,PRIX!$1:$1048576,2,FALSE) -> VANNE D'INVERSION ET MOTEUR | D135: =VLOOKUP(OFFRE!B135,PRIX!$1:$1048576,3,FALSE) -> EH84 | E135: =VLOOKUP(OFFRE!B135,PRIX!$1:$1048576,4,FALSE) -> 316.1 | F135: =IF(H20="Oui",1,0) -> 1
B136: 100000030 | C136: =VLOOKUP(OFFRE!B136,PRIX!$1:$1048576,2,FALSE) -> COLIS OPTION SONDE ECS | D136: =VLOOKUP(OFFRE!B136,PRIX!$1:$1048576,3,FALSE) -> AD212 | E136: =VLOOKUP(OFFRE!B136,PRIX!$1:$1048576,4,FALSE) -> 43.5 | F136: =IF(H20="Oui",1,0) -> 1
B138: 100013143 | C138: =VLOOKUP(OFFRE!B138,PRIX!$1:$1048576,2,FALSE) -> KIT GAINE D'AIR | D138: =VLOOKUP(OFFRE!B138,PRIX!$1:$1048576,3,FALSE) -> EH120 | E138: =VLOOKUP(OFFRE!B138,PRIX!$1:$1048576,4,FALSE) -> 1323.6 | F138: =IF($C$2=3,1,0) -> 0
B139: 100013144 | C139: =VLOOKUP(OFFRE!B139,PRIX!$1:$1048576,2,FALSE) -> KIT ADDITIONNEL POUR GAINE CÔTE SOUFFLAGE | D139: =VLOOKUP(OFFRE!B139,PRIX!$1:$1048576,3,FALSE) -> EH121 | E139: =VLOOKUP(OFFRE!B139,PRIX!$1:$1048576,4,FALSE) -> 1111.8 | F139: =IF($C$2=3,1,0) -> 0
B140: 100013145 | C140: =VLOOKUP(OFFRE!B140,PRIX!$1:$1048576,2,FALSE) -> KIT DE RACCORDEMENT HYDRAULIQUE DIRECT | D140: =VLOOKUP(OFFRE!B140,PRIX!$1:$1048576,3,FALSE) -> EH122 | E140: =VLOOKUP(OFFRE!B140,PRIX!$1:$1048576,4,FALSE) -> 103.7 | F140: =IF($C$2=3,1,0) -> 0
B143: Système | C143: Référence | D143: Désignation | E143: Colis | F143: Prix Unitaire
F144: HT en €
B145: Pompe A Chaleur
C146: =VLOOKUP(OFFRE!D18,OFFRE!A26:E101,2) ->  | D146: =VLOOKUP(OFFRE!D18,OFFRE!A26:E101,3) ->  | F146: =VLOOKUP(OFFRE!D18,OFFRE!A26:E101,5) -> 
B148: Options
C149: =IF($F113<>0,B113,"") -> 
F150: =IF($F114<>0,E114,"") -> 
C151: =IF($C$1="ROE+",B117,IF($C$1="ROI+",B116,IF($F115<>0,B115,""))) ->  | D151: =IF($C$1="ROE+",C117,IF($C$1="ROI+",C116,IF($F115<>0,C115,""))) ->  | E151: =IF($C$1="ROE+",D117,IF($C$1="ROI+",D116,IF($F115<>0,D115,""))) ->  | F151: =IF($C$1="ROE+",E117,IF($C$1="ROI+",E116,IF($F115<>0,E115,""))) -> 
C152: =IF($F118<>0,B118,"") ->  | D152: =IF(C1="ROE H",C119,IF($F118<>0,C118,"")) ->  | E152: =IF($F118<>0,D118,"") ->  | F152: =IF($F118<>0,E118,"") -> 
C153: =IF($F120<>0,B120,"") ->  | D153: =IF(D18>=29,IF(D18<=38,C121,""),IF($F120<>0,C120,"")) ->  | E153: =IF($F120<>0,D120,"") ->  | F153: =IF($F120<>0,E120,"") -> 
C154: =IF($F122<>0,B122,"") ->  | D154: =IF(C1="ROE H",C123,IF($F122<>0,C122,"")) ->  | E154: =IF($F122<>0,D122,"") ->  | F154: =IF($F122<>0,E122,"") -> 
C155: =B124 -> 100004415 | D155: COLIS BALLON TAMPON 160L B 150 T | E155: EH60 | F155: 659.8
C156: 100008841 | D156: COLIS BALLON TAMPON 80L B 80 T | E156: EH85 | F156: 438.4
C157: =IF($F$126<>1,"",B126) -> 100008833 | D157: =IF($F$126<>1,"",C126) -> KIT DE SEPARATION DES CIRCUITS | E157: =IF($F$126<>1,"",D126) -> EH83 | F157: =IF($F$126<>1,"",E126) -> 986.3
C158: =IF($E$1="ROE H 13 MH","",IF($F127<>0,B127,"")) ->  | D158: =IF($E$1="ROE H 13 MH","",IF($F127<>0,C127,"")) ->  | E158: =IF($E$1="ROE H 13 MH","",IF($F127<>0,D127,"")) ->  | F158: =IF($E$1="ROE H 13 MH","",IF($F127<>0,E127,"")) -> 
C159: =IF($F128<>0,B128,"") -> 
C161: =B130 -> 85757746 | D161: =C130 -> COMMANDE A DISTANCE INTERACTIVE CDI 2 | E161: =D130 -> FM51 | F161: =E130 -> 176.1
C162: =B131 -> 85757747 | D162: COMMANDE A DISTANCE SIMPLIFIEE AVEC SONDE D'AMBIANCE | E162: FM52 | F162: 88
C163: 88017878 | D163: MODULE DE TELESURVEILLANCE VOCAL | E163: AD152 | F163: 595.9
C165: =IF($F134<>0,B134,"") -> 100007900 | D165: PREPARATEUR MIXTE BEPC 300 POUR PAC | E165: EH79 | F165: 1802
C166: 100009229 | D166: VANNE D'INVERSION ET MOTEUR | E166: EH84 | F166: 316.1
C167: 100000030 | D167: COLIS OPTION SONDE ECS | E167: AD212 | F167: 43.5
C169: =IF($F$138=1,B138,"") ->  | D169: =IF($F$138=1,C138,"") ->  | E169: =IF($F$138=1,D138,"") ->  | F169: =IF($F$138=1,E138,"") -> 
C170: =IF($F$139=1,B139,"") ->  | D170: =IF($F$139=1,C139,"") ->  | E170: =IF($F$139=1,D139,"") ->  | F170: =IF($F$139=1,E139,"") -> 
C171: =IF($F$140=1,B140,"") ->  | D171: =IF($F$140=1,C140,"") ->  | E171: =IF($F$140=1,D140,"") ->  | F171: =IF($F$140=1,E140,"") -> 
D173: MISE EN SERVICE (Prix net HT) | F173: =IF(OR(C2=2,C2=3,C2=4),444,IF(OR(C2=5,C2=6),391,IF(E2>=5,444,310))) -> 444
B182: Image | C182: =IF(C1=B2,1,IF(C1=B3,2,IF(C1=B6,3,IF(C1=B7,3,IF(C1=B4,4,IF(C1=B5,5,6)))))) -> 6 | D182: =C182 -> 6
B183: 1
B184: 2
B185: 3
B186: 4
B187: 5
B188: 6
J189: Schema | K189: =IF(C1=B2,1,IF(C1=B3,2,IF(C1=B6,3,IF(C1=B7,4)))) -> FALSE
C190: 1 | J190: 1
C191: 2 | J191: 2
J192: 3
J193: 4

Sheet calculs (hidden)
B2: Index | C2: n° départ. | D2: Département | G2: Hiver | H2: Eté | I2: N° MINI | J2: N° MAXI | K2: T° EXT mini | L2: T° EXT mini | M2: Iles | N2: côte < 25 km | O2: Alt. entre 0 et 200 m | P2: Alt. entre 201 et 400 m | Q2: Alt. entre 401 et 500 m | R2: Alt. entre 501 et 600 m | S2: Alt. entre 601 et 700 m | T2: Alt. entre 701 et 800 m | U2: Alt. entre 801 et 900 m | V2: Alt. entre 901 et 1000 m | W2: Alt. entre 1001 et 1100 m | X2: Alt. entre 1101 et 1200 m | Y2: Alt. entre 1201 et 1300 m | Z2: Alt. entre 1301 et 1400 m | AA2: Alt. entre 1401 et 1500 m | AB2: Nréf (h) | AC2: Dhréf (degrés-heures) | AD2: Précision de la situation | AF2: Préf 1 (W/m²) | AG2: Préf 2 (W/m²) | AH2: Pref moyen | AI2: C3 (h/m) | AJ2: C4 (h/km) | AK2: CESI | AL2: CESI | AM2: CESI
B3: 1 | C3: 2 | D3: 3 | E3: 4 | G3: 5 | H3: 6 | I3: 7 | J3: 8 | K3: 9 | L3: 10 | M3: 11 | N3: 12 | O3: 13 | P3: 14 | Q3: 15 | R3: 16 | S3: 17 | T3: 18 | U3: 19 | V3: 20 | W3: 21 | X3: 22 | Y3: 23 | Z3: 24 | AA3: 25 | AB3: 26 | AC3: 27 | AD3: 28 | AE3: 29 | AF3: 30 | AG3: 31 | AH3: 32 | AI3: 33 | AJ3: 34 | AK3: 35 | AL3: 36 | AM3: 37 | AP3: =Données!F20 -> Entre 0 et 200 m
B4: 2 | C4: 1 | D4: Ain | E4: =C4&" - "&D4 -> 1 - Ain | F4: 2 | G4: H1 | H4: Ec | I4: 2 | J4: =MATCH(L4,M4:AA4,0)-1 -> 12 | K4: =MAX(M4:AA4) -> -10 | L4: =MIN(M4:AA4) -> -20 | M4: - | N4: - | O4: -10 | P4: -11 | Q4: -12 | R4: -13 | S4: -14 | T4: -15 | U4: -16 | V4: -17 | W4: -18 | X4: -19 | Y4: -20 | Z4: - | AA4: - | AB4: 4900 | AC4: 63000 | AF4: 80 | AH4: =IF(AG4=0,AF4,(AF4+AG4)/2) -> 80 | AI4: 1.5 | AK4: I2 | AL4: 1450 | AM4: 1 | AN4: 1 | AO4: Entre 0 et 200 m | AP4: =IF(AP3=AO4,1,IF(AP3=AO5,2,IF(AP3=AO6,3,IF(AP3=AO7,4,IF(AP3=AO8,5,IF(AP3=AO9,6,IF(AP3=AO10,7))))))) -> 1 | AQ4: =IF(AP3=AO11,8,IF(AP3=AO12,9,IF(AP3=AO13,10,IF(AP3=AO14,11,IF(AP3=AO15,12,IF(AP3=AO16,13)))))) -> FALSE | AR4: =AQ4+AP4 -> 1
B5: 3 | C5: 2 | D5: Aisne | E5: 2 - Aisne | F5: 3 | G5: H1 | H5: Ea | I5: 2 | J5: 3 | K5: =MAX(M5:AA5) -> -7 | L5: =MIN(M5:AA5) -> -8 | M5: - | N5: - | O5: -7 | P5: -8 | Q5: - | R5: - | S5: - | T5: - | U5: - | V5: - | W5: - | X5: - | Y5: - | Z5: - | AA5: - | AB5: 5800 | AC5: 65400 | AF5: 73 | AH5: =IF(AG5=0,AF5,(AF5+AG5)/2) -> 73 | AK5: I1 | AL5: 1250 | AM5: 1 | AN5: 2 | AO5: Entre 201 et 400 m
B6: 4 | C6: 3 | D6: Allier | E6: 3 - Allier | F6: 4 | G6: H1 | H6: Ec | I6: 2 | J6: 14 | K6: -8 | L6: =MIN(M6:AA6) -> -20 | M6: - | N6: - | O6: -8 | P6: -9 | Q6: -10 | R6: -11 | S6: -12 | T6: -13 | U6: -14 | V6: -15 | W6: -16 | X6: -17 | Y6: -18 | Z6: -19 | AA6: -20 | AB6: 5100 | AC6: 60200 | AF6: 79 | AH6: 79 | AI6: 1.5 | AK6: I2 | AL6: 1450 | AM6: 1 | AN6: 3 | AO6: Entre 401 et 500 m
B7: 5 | C7: 4 | D7: Alpes de haute provence | E7: 4 - Alpes de haute provence | F7: 5 | G7: H2 | H7: Ed | I7: 2 | J7: 14 | K7: -8 | L7: =MIN(M7:AA7) -> -20 | M7: - | N7: - | O7: -8 | P7: -9 | Q7: -10 | R7: -11 | S7: -12 | T7: -13 | U7: -14 | V7: -15 | W7: -16 | X7: -17 | Y7: -18 | Z7: -19 | AA7: -20 | AB7: 4100 | AC7: 53100 | AF7: 132 | AH7: 132 | AI7: 1.5 | AK7: I4 | AL7: 2200 | AM7: 1.2 | AN7: 4 | AO7: Entre 501 et 600 m
B8: 6 | C8: 5 | D8: Hautes-Alpes | E8: 5 - Hautes-Alpes | F8: 6 | G8: H1 | H8: Ed | I8: 2 | J8: 12 | K8: -10 | L8: -20 | M8: - | N8: - | O8: -10 | P8: -11 | Q8: -12 | R8: -13 | S8: -14 | T8: -15 | U8: -16 | V8: -17 | W8: -18 | X8: -19 | Y8: -20 | Z8: - | AA8: - | AB8: 4200 | AC8: 63000 | AD8: Ouest | AE8: Est | AF8: 125 | AG8: 135 | AH8: 130 | AI8: 1.5 | AK8: I3 | AL8: 1800 | AM8: 1.3 | AN8: 5 | AO8: Entre 601 et 700 m
B9: 7 | C9: 6 | D9: Alpes maritimes | E9: 6 - Alpes maritimes | F9: 7 | G9: H3 | H9: Ed | I9: 0 | J9: 14 | K9: 0 | L9: -12 | M9: 0 | N9: -2 | O9: -5 | P9: -6 | Q9: -7 | R9: -7 | S9: -8 | T9: -8 | U9: -9 | V9: -9 | W9: -10 | X9: -10 | Y9: -11 | Z9: -11 | AA9: -12 | AB9: 3900 | AC9: 36000 | AF9: 135 | AH9: 135 | AI9: 1.8 | AJ9: 5 | AK9: I4 | AL9: 2200 | AM9: 1.1 | AN9: 6 | AO9: Entre 701 et 800 m
B10: 8 | C10: 7 | D10: Ardèche | E10: 7 - Ardèche | F10: 8 | G10: H2 | H10: Ed | I10: 2 | J10: 10 | K10: -6 | L10: -14 | M10: - | N10: - | O10: -6 | P10: -7 | Q10: -8 | R10: -9 | S10: -10 | T10: -11 | U10: -12 | V10: -13 | W10: -14 | X10: - | Y10: - | Z10: - | AA10: - | AB10: 4900 | AC10: 55500 | AD10: Nord | AE10: Sud | AF10: 95 | AG10: 110 | AH10: 102.5 | AI10: 1.5 | AK10: I3 | AL10: 1800 | AM10: 1 | AN10: 7 | AO10: Entre 801 et 900 m
B11: 9 | C11: 8 | D11: Ardennes | E11: 8 - Ardennes | F11: 9 | G11: H1 | H11: Eb | I11: 2 | J11: 4 | K11: -10 | L11: -12 | M11: - | N11: - | O11: -10 | P11: -11 | Q11: -12 | R11: - | S11: - | T11: - | U11: - | V11: - | W11: - | X11: - | Y11: - | Z11: - | AA11: - | AB11: 5600 | AC11: 70500 | AF11: 71 | AH11: 71 | AK11: I1 | AL11: 1250 | AM11: 1 | AN11: 8 | AO11: Entre 901 et 1000 m
B12: 10 | C12: 9 | D12: Ariège | E12: 9 - Ariège | F12: 10 | G12: H2 | H12: Ec | I12: 2 | J12: 14 | K12: -5 | L12: -12 | M12: - | N12: - | O12: -5 | P12: -6 | Q12: -7 | R12: -7 | S12: -8 | T12: -8 | U12: -9 | V12: -9 | W12: -10 | X12: -10 | Y12: -11 | Z12: -11 | AA12: -12 | AB12: 4400 | AC12: 54500 | AF12: 110 | AH12: 110 | AI12: 1.5 | AK12: I3 | AL12: 1800 | AM12: 1 | AN12: 9 | AO12: Entre 1001 et 1100 m
B13: 11 | C13: 10 | D13: Aube | E13: 10 - Aube | F13: 11 | G13: H1 | H13: Eb | I13: 2 | J13: 3 | K13: -10 | L13: -11 | M13: - | N13: - | O13: -10 | P13: -11 | Q13: - | R13: - | S13: - | T13: - | U13: - | V13: - | W13: - | X13: - | Y13: - | Z13: - | AA13: - | AB13: 5500 | AC13: 62900 | AF13: 74 | AH13: 74 | AK13: I1 | AL13: 1250 | AM13: 1 | AN13: 10 | AO13: Entre 1101 et 1200 m
B14: 12 | C14: 11 | D14: Aude | E14: 11 - Aude | F14: 12 | G14: H3 | H14: Ed | I14: 0 | J14: 14 | K14: -2 | L14: -12 | M14: -2 | N14: -4 | O14: -5 | P14: -6 | Q14: -7 | R14: -7 | S14: -8 | T14: -8 | U14: -9 | V14: -9 | W14: -10 | X14: -10 | Y14: -11 | Z14: -11 | AA14: -12 | AB14: 4000 | AC14: 46300 | AD14: >30km de la mer | AE14: <30km de la mer | AF14: 101 | AG14: 127 | AH14: 114 | AI14: 1.8 | AJ14: 5 | AK14: I4 | AL14: 2200 | AM14: 1 | AN14: 11 | AO14: Entre 1201 et 1300 m
B15: 13 | C15: 12 | D15: Aveyron | E15: 12 - Aveyron | F15: 13 | G15: H2 | H15: Ec | I15: 2 | J15: 13 | K15: -8 | L15: -19 | M15: - | N15: - | O15: -8 | P15: -9 | Q15: -10 | R15: -11 | S15: -12 | T15: -13 | U15: -14 | V15: -15 | W15: -16 | X15: -17 | Y15: -18 | Z15: -19 | AA15: - | AB15: 4400 | AC15: 52100 | AD15: Nord | AE15: Sud | AF15: 90 | AG15: 103 | AH15: 96.5 | AI15: 1.5 | AK15: I3 | AL15: 1800 | AM15: 1 | AN15: 12 | AO15: Entre 1301 et 1400 m
B16: 14 | C16: 13 | D16: Bouches-du-Rhône | E16: 13 - Bouches-du-Rhône | F16: 14 | G16: H3 | H16: Ed | I16: 0 | J16: 14 | K16: -3 | L16: -12 | M16: -3 | N16: -5 | O16: -5 | P16: -6 | Q16: -7 | R16: -7 | S16: -8 | T16: -8 | U16: -9 | V16: -9 | W16: -10 | X16: -10 | Y16: -11 | Z16: -11 | AA16: -12 | AB16: 4000 | AC16: 36000 | AF16: 132 | AH16: 132 | AI16: 1.8 | AJ16: 5 | AK16: I4 | AL16: 2200 | AM16: 1 | AN16: 13 | AO16: Entre 1401 et 1500 m
B17: 15 | C17: 14 | D17: Calvados | E17: 14 - Calvados | F17: 15 | G17: H1 | H17: Ea | I17: 0 | J17: 3 | K17: -5 | L17: -8 | M17: -5 | N17: -7 | O17: -7 | P17: -8 | Q17: - | R17: - | S17: - | T17: - | U17: - | V17: - | W17: - | X17: - | Y17: - | Z17: - | AA17: - | AB17: 5700 | AC17: 57900 | AF17: 79 | AH17: 79 | AJ17: 5 | AK17: I1 | AL17: 1250 | AM17: 1
B18: 16 | C18: 15 | D18: Cantal | E18: 15 - Cantal | F18: 16 | G18: H1 | H18: Ec | I18: 0 | J18: 13 | K18: -8 | L18: -19 | M18: - | N18: - | O18: -8 | P18: -9 | Q18: -10 | R18: -11 | S18: -12 | T18: -13 | U18: -14 | V18: -15 | W18: -16 | X18: -17 | Y18: -18 | Z18: -19 | AA18: - | AB18: 5000 | AC18: 57600 | AF18: 87 | AH18: 87 | AI18: 1.5 | AK18: I2 | AL18: 1450 | AM18: 1.1
B19: 17 | C19: 16 | D19: Charente | E19: 16 - Charente | F19: 17 | G19: H2 | H19: Ec | I19: 0 | J19: 3 | K19: -5 | L19: -6 | M19: - | N19: - | O19: -5 | P19: -6 | Q19: - | R19: - | S19: - | T19: - | U19: - | V19: - | W19: - | X19: - | Y19: - | Z19: - | AA19: - | AB19: 5000 | AC19: 49800 | AF19: 87 | AH19: 87 | AK19: I2 | AL19: 1450 | AM19: 1
B20: 18 | C20: 17 | D20: Charente-Maritime | E20: 17 - Charente-Maritime | F20: 18 | G20: H2 | H20: Ec | I20: 2 | J20: 2 | K20: -2 | L20: -5 | M20: -2 | N20: -4 | O20: -5 | P20: - | Q20: - | R20: - | S20: - | T20: - | U20: - | V20: - | W20: - | X20: - | Y20: - | Z20: - | AA20: - | AB20: 5000 | AC20: 44300 | AF20: 88 | AH20: 88 | AJ20: 5 | AK20: I3 | AL20: 1800 | AM20: 1.1
B21: 19 | C21: 18 | D21: Cher | E21: 18 - Cher | F21: 19 | G21: H2 | H21: Eb | I21: 0 | J21: 4 | K21: -7 | L21: -9 | M21: - | N21: - | O21: -7 | P21: -8 | Q21: -9 | R21: - | S21: - | T21: - | U21: - | V21: - | W21: - | X21: - | Y21: - | Z21: - | AA21: - | AB21: 5300 | AC21: 58000 | AF21: 79 | AH21: 79 | AK21: I2 | AL21: 1450 | AM21: 1
B22: 20 | C22: 19 | D22: Corrèze | E22: 19 - Corrèze | F22: 20 | G22: H1 | H22: Ec | I22: 0 | J22: 13 | K22: -8 | L22: -19 | M22: - | N22: - | O22: -8 | P22: -9 | Q22: -10 | R22: -11 | S22: -12 | T22: -13 | U22: -14 | V22: -15 | W22: -16 | X22: -17 | Y22: -18 | Z22: -19 | AA22: - | AB22: 5000 | AC22: 54000 | AF22: 85 | AH22: 85 | AI22: 1.5 | AK22: I2 | AL22: 1450 | AM22: 1.2
B23: 21 | C23: 2A | D23: Corse-du-Sud | E23: 2A - Corse-du-Sud | F23: 21 | G23: H3 | H23: Ed | I23: 1 | J23: 7 | K23: -2 | L23: -6 | M23: - | N23: -2 | O23: -2 | P23: -3 | Q23: -4 | R23: -4 | S23: -5 | T23: -6 | U23: -6 | V23: -6 | W23: -6 | X23: -6 | Y23: -6 | Z23: -6 | AA23: -6 | AB23: 4200 | AC23: 34000 | AF23: 126 | AH23: 126 | AI23: 1.8 | AJ23: 5 | AK23: I4 | AL23: 2200 | AM23: 1.1
B24: 22 | C24: 2B | D24: Haute-Corse | E24: 2B - Haute-Corse | F24: 22 | G24: H3 | H24: Ed | I24: 1 | J24: 7 | K24: -2 | L24: -6 | M24: - | N24: -2 | O24: -2 | P24: -3 | Q24: -4 | R24: -4 | S24: -5 | T24: -6 | U24: -6 | V24: -6 | W24: -6 | X24: -6 | Y24: -6 | Z24: -6 | AA24: -6 | AB24: 4000 | AC24: 32000 | AF24: 126 | AH24: 126 | AI24: 1.8 | AJ24: 5 | AK24: I4 | AL24: 2200 | AM24: 1.1
B25: 23 | C25: 21 | D25: Côte-d'Or | E25: 21 - Côte-d'Or | F25: 23 | G25: H1 | H25: Ec | I25: 2 | J25: 6 | K25: -10 | L25: -14 | M25: - | N25: - | O25: -10 | P25: -11 | Q25: -12 | R25: -13 | S25: -14 | T25: - | U25: - | V25: - | W25: - | X25: - | Y25: - | Z25: - | AA25: - | AB25: 4900 | AC25: 63000 | AF25: 73 | AH25: 73 | AI25: 1.5 | AK25: I2 | AL25: 1450 | AM25: 1
B26: 24 | C26: 22 | D26: Côtes-d'Armor | E26: 22 - Côtes-d'Armor | F26: 24 | G26: H2 | H26: Ea | I26: 0 | J26: 3 | K26: -2 | L26: -5 | M26: -2 | N26: -4 | O26: -4 | P26: -5 | Q26: - | R26: - | S26: - | T26: - | U26: - | V26: - | W26: - | X26: - | Y26: - | Z26: - | AA26: - | AB26: 5400 | AC26: 48600 | AF26: 79 | AH26: 79 | AJ26: 5 | AK26: I1 | AL26: 1250 | AM26: 1
B27: 25 | C27: 23 | D27: Creuse | E27: 23 - Creuse | F27: 25 | G27: H1 | H27: Ec | I27: 2 | J27: 13 | K27: -8 | L27: -19 | M27: - | N27: - | O27: -8 | P27: -9 | Q27: -10 | R27: -11 | S27: -12 | T27: -13 | U27: -14 | V27: -15 | W27: -16 | X27: -17 | Y27: -18 | Z27: -19 | AA27: - | AB27: 5200 | AC27: 65000 | AF27: 84 | AH27: 84 | AI27: 1.5 | AK27: I2 | AL27: 1450 | AM27: 1.1
B28: 26 | C28: 24 | D28: Dordogne | E28: 24 - Dordogne | F28: 26 | G28: H2 | H28: Ec | I28: 2 | J28: 4 | K28: -5 | L28: -7 | M28: - | N28: - | O28: -5 | P28: -6 | Q28: -7 | R28: - | S28: - | T28: - | U28: - | V28: - | W28: - | X28: - | Y28: - | Z28: - | AA28: - | AB28: 5000 | AC28: 49900 | AF28: 87 | AH28: 87 | AK28: I2 | AL28: 1450 | AM28: 1
B29: 27 | C29: 25 | D29: Doubs | E29: 25 - Doubs | F29: 27 | G29: H1 | H29: Ec | I29: 2 | J29: 10 | K29: -12 | L29: -20 | M29: - | N29: - | O29: -12 | P29: -13 | Q29: -14 | R29: -15 | S29: -16 | T29: -17 | U29: -18 | V29: -19 | W29: -20 | X29: - | Y29: - | Z29: - | AA29: - | AB29: 5000 | AC29: 65300 | AF29: 71 | AH29: 71 | AI29: 1.5 | AK29: I2 | AL29: 1450 | AM29: 1
B30: 28 | C30: 26 | D30: Drôme | E30: 26 - Drôme | F30: 28 | G30: H2 | H30: Ed | I30: 2 | J30: 10 | K30: -6 | L30: -14 | M30: - | N30: - | O30: -6 | P30: -7 | Q30: -8 | R30: -9 | S30: -10 | T30: -11 | U30: -12 | V30: -13 | W30: -14 | X30: - | Y30: - | Z30: - | AA30: - | AB30: 4800 | AC30: 50900 | AD30: Nord | AE30: Sud | AF30: 100 | AG30: 120 | AH30: 110 | AI30: 1.5 | AK30: I3 | AL30: 1800 | AM30: 1
B31: 29 | C31: 27 | D31: Eure | E31: 27 - Eure | F31: 29 | G31: H1 | H31: Ea | I31: 2 | J31: 3 | K31: -7 | L31: -8 | M31: - | N31: - | O31: -7 | P31: -8 | Q31: - | R31: - | S31: - | T31: - | U31: - | V31: - | W31: - | X31: - | Y31: - | Z31: - | AA31: - | AB31: 5500 | AC31: 60000 | AF31: 78 | AH31: 78 | AJ31: 5 | AK31: I1 | AL31: 1250 | AM31: 1
B32: 30 | C32: 28 | D32: Eure-et-Loire | E32: 28 - Eure-et-Loire | F32: 30 | G32: H1 | H32: Eb | I32: 2 | J32: 3 | K32: -7 | L32: -8 | M32: - | N32: - | O32: -7 | P32: -8 | Q32: - | R32: - | S32: - | T32: - | U32: - | V32: - | W32: - | X32: - | Y32: - | Z32: - | AA32: - | AB32: 5600 | AC32: 60504 | AF32: 78 | AH32: 78 | AK32: I2 | AL32: 1450 | AM32: 1
B33: 31 | C33: 29 | D33: Finistère | E33: 29 - Finistère | F33: 31 | G33: H2 | H33: Ea | I33: 0 | J33: 3 | K33: -2 | L33: -5 | M33: -2 | N33: -4 | O33: -4 | P33: -5 | Q33: - | R33: - | S33: - | T33: - | U33: - | V33: - | W33: - | X33: - | Y33: - | Z33: - | AA33: - | AB33: 5800 | AC33: 44900 | AF33: 79 | AH33: 79 | AJ33: 5 | AK33: I1 | AL33: 1250 | AM33: 1
B34: 32 | C34: 30 | D34: Gard | E34: 30 - Gard | F34: 32 | G34: H3 | H34: Ed | I34: 0 | J34: 14 | K34: -3 | L34: -12 | M34: -3 | N34: -3 | O34: -5 | P34: -6 | Q34: -7 | R34: -7 | S34: -8 | T34: -8 | U34: -9 | V34: -9 | W34: -10 | X34: -10 | Y34: -11 | Z34: -11 | AA34: -12 | AB34: 4000 | AC34: 42300 | AD34: Nord | AE34: Sud | AF34: 120 | AG34: 127 | AH34: 123.5 | AI34: 1.8 | AJ34: 5 | AK34: I4 | AL34: 2200 | AM34: 1
B35: 33 | C35: 31 | D35: Haute-Garonne | E35: 31 - Haute-Garonne | F35: 33 | G35: H2 | H35: Ec | I35: 2 | J35: 14 | K35: -5 | L35: -12 | M35: - | N35: - | O35: -5 | P35: -6 | Q35: -7 | R35: -7 | S35: -8 | T35: -8 | U35: -9 | V35: -9 | W35: -10 | X35: -10 | Y35: -11 | Z35: -11 | AA35: -12 | AB35: 4500 | AC35: 48300 | AF35: 98 | AH35: 98 | AI35: 1.5 | AK35: I3 | AL35: 1800 | AM35: 1
B36: 34 | C36: 32 | D36: Gers | E36: 32 - Gers | F36: 34 | G36: H2 | H36: Ec | I36: 2 | J36: 3 | K36: -5 | L36: -6 | M36: - | N36: - | O36: -5 | P36: -6 | Q36: - | R36: - | S36: - | T36: - | U36: - | V36: - | W36: - | X36: - | Y36: - | Z36: - | AA36: - | AB36: 4800 | AC36: 48000 | AF36: 92 | AH36: 92 | AK36: I3 | AL36: 1800 | AM36: 1
B37: 35 | C37: 33 | D37: Gironde | E37: 33 - Gironde | F37: 35 | G37: H2 | H37: Ec | I37: 0 | J37: 2 | K37: -2 | L37: -5 | M37: -2 | N37: -4 | O37: -5 | P37: - | Q37: - | R37: - | S37: - | T37: - | U37: - | V37: - | W37: - | X37: - | Y37: - | Z37: - | AA37: - | AB37: 4500 | AC37: 44400 | AF37: 91 | AH37: 91 | AJ37: 5 | AK37: I3 | AL37: 1800 | AM37: 1
B38: 36 | C38: 34 | D38: Hérault | E38: 34 - Hérault | F38: 36 | G38: H3 | H38: Ed | I38: 0 | J38: 14 | K38: -3 | L38: -12 | M38: -3 | N38: -3 | O38: -5 | P38: -6 | Q38: -7 | R38: -7 | S38: -8 | T38: -8 | U38: -9 | V38: -9 | W38: -10 | X38: -10 | Y38: -11 | Z38: -11 | AA38: -12 | AB38: 4100 | AC38: 36500 | AD38: >30km de la mer | AE38: <30km de la mer | AF38: 110 | AG38: 127 | AH38: 118.5 | AI38: 1.8 | AJ38: 5 | AK38: I4 | AL38: 2200 | AM38: 1
B39: 37 | C39: 35 | D39: Ile-et-Vilaine | E39: 35 - Ile-et-Vilaine | F39: 37 | G39: H2 | H39: Ea | I39: 0 | J39: 1 | K39: -2 | L39: -4 | M39: -2 | N39: -4 | O39: -4 | P39: - | Q39: - | R39: - | S39: - | T39: - | U39: - | V39: - | W39: - | X39: - | Y39: - | Z39: - | AA39: - | AB39: 5300 | AC39: 53000 | AF39: 79 | AH39: 79 | AJ39: 5 | AK39: I2 | AL39: 1450 | AM39: 1
B40: 38 | C40: 36 | D40: Indre | E40: 36 - Indre | F40: 38 | G40: H2 | H40: Eb | I40: 2 | J40: 4 | K40: -7 | L40: -9 | M40: - | N40: - | O40: -7 | P40: -8 | Q40: -9 | R40: - | S40: - | T40: - | U40: - | V40: - | W40: - | X40: - | Y40: - | Z40: - | AA40: - | AB40: 5300 | AC40: 59000 | AF40: 84 | AH40: 84 | AK40: I2 | AL40: 1450 | AM40: 1
B41: 39 | C41: 37 | D41: Indre-et-Loire | E41: 37 - Indre-et-Loire | F41: 39 | G41: H2 | H41: Eb | I41: 2 | J41: 2 | K41: -7 | L41: -7 | M41: - | N41: - | O41: -7 | P41: - | Q41: - | R41: - | S41: - | T41: - | U41: - | V41: - | W41: - | X41: - | Y41: - | Z41: - | AA41: - | AB41: 5300 | AC41: 57000 | AF41: 85 | AH41: 85 | AK41: I2 | AL41: 1450 | AM41: 1
B42: 40 | C42: 38 | D42: Isère | E42: 38 - Isère | F42: 40 | G42: H1 | H42: Ec | I42: 2 | J42: 12 | K42: -10 | L42: -20 | M42: - | N42: - | O42: -10 | P42: -11 | Q42: -12 | R42: -13 | S42: -14 | T42: -15 | U42: -16 | V42: -17 | W42: -18 | X42: -19 | Y42: -20 | Z42: - | AA42: - | AB42: 4800 | AC42: 62700 | AD42: Nord | AE42: Sud | AF42: 90 | AG42: 115 | AH42: 102.5 | AI42: 1.5 | AK42: I3 | AL42: 1800 | AM42: 1.1
B43: 41 | C43: 39 | D43: Jura | E43: 39 - Jura | F43: 41 | G43: H1 | H43: Ec | I43: 2 | J43: 12 | K43: -10 | L43: -20 | M43: - | N43: - | O43: -10 | P43: -11 | Q43: -12 | R43: -13 | S43: -14 | T43: -15 | U43: -16 | V43: -17 | W43: -18 | X43: -19 | Y43: -20 | Z43: - | AA43: - | AB43: 4900 | AC43: 65000 | AF43: 74 | AH43: 74 | AI43: 1.5 | AK43: I2 | AL43: 1450 | AM43: 1
B44: 42 | C44: 40 | D44: Landes | E44: 40 - Landes | F44: 42 | G44: H2 | H44: Ec | I44: 0 | J44: 3 | K44: -2 | L44: -6 | M44: -2 | N44: -4 | O44: -5 | P44: -6 | Q44: - | R44: - | S44: - | T44: - | U44: - | V44: - | W44: - | X44: - | Y44: - | Z44: - | AA44: - | AB44: 4400 | AC44: 42000 | AF44: 94 | AH44: 94 | AJ44: 5 | AK44: I3 | AL44: 1800 | AM44: 1
B45: 43 | C45: 41 | D45: Loir-et-Cher | E45: 41 - Loir-et-Cher | F45: 43 | G45: H2 | H45: Eb | I45: 2 | J45: 3 | K45: -7 | L45: -8 | M45: - | N45: - | O45: -7 | P45: -8 | Q45: - | R45: - | S45: - | T45: - | U45: - | V45: - | W45: - | X45: - | Y45: - | Z45: - | AA45: - | AB45: 5400 | AC45: 59000 | AF45: 82 | AH45: 82 | AK45: I2 | AL45: 1450 | AM45: 1
B46: 44 | C46: 42 | D46: Loire | E46: 42 - Loire | F46: 44 | G46: H1 | H46: Ec | I46: 2 | J46: 12 | K46: -10 | L46: -20 | M46: - | N46: - | O46: -10 | P46: -11 | Q46: -12 | R46: -13 | S46: -14 | T46: -15 | U46: -16 | V46: -17 | W46: -18 | X46: -19 | Y46: -20 | Z46: - | AA46: - | AB46: 4900 | AC46: 63300 | AF46: 83 | AH46: 83 | AI46: 1.5 | AK46: I2 | AL46: 1450 | AM46: 1
B47: 45 | C47: 43 | D47: Haute-Loire | E47: 43 - Haute-Loire | F47: 45 | G47: H1 | H47: Ec | I47: 2 | J47: 13 | K47: -8 | L47: -19 | M47: - | N47: - | O47: -8 | P47: -9 | Q47: -10 | R47: -11 | S47: -12 | T47: -13 | U47: -14 | V47: -15 | W47: -16 | X47: -17 | Y47: -18 | Z47: -19 | AA47: - | AB47: 5000 | AC47: 61000 | AF47: 92 | AH47: 92 | AI47: 1.5 | AK47: I2 | AL47: 1450 | AM47: 1.1
B48: 46 | C48: 44 | D48: Loire Atlantique | E48: 44 - Loire Atlantique | F48: 46 | G48: H2 | H48: Eb | I48: 0 | J48: 2 | K48: -2 | L48: -5 | M48: -2 | N48: -4 | O48: -5 | P48: - | Q48: - | R48: - | S48: - | T48: - | U48: - | V48: - | W48: - | X48: - | Y48: - | Z48: - | AA48: - | AB48: 4900 | AC48: 49700 | AF48: 82 | AH48: 82 | AJ48: 5 | AK48: I2 | AL48: 1450 | AM48: 1
B49: 47 | C49: 45 | D49: Loiret | E49: 45 - Loiret | F49: 47 | G49: H1 | H49: Eb | I49: 2 | J49: 3 | K49: -7 | L49: -8 | M49: - | N49: - | O49: -7 | P49: -8 | Q49: - | R49: - | S49: - | T49: - | U49: - | V49: - | W49: - | X49: - | Y49: - | Z49: - | AA49: - | AB49: 5400 | AC49: 61000 | AF49: 78 | AH49: 78 | AK49: I2 | AL49: 1450 | AM49: 1
B50: 48 | C50: 46 | D50: Lot | E50: 46 - Lot | F50: 48 | G50: H2 | H50: Ec | I50: 2 | J50: 10 | K50: -6 | L50: -14 | M50: - | N50: - | O50: -6 | P50: -7 | Q50: -8 | R50: -9 | S50: -10 | T50: -11 | U50: -12 | V50: -13 | W50: -14 | X50: - | Y50: - | Z50: - | AA50: - | AB50: 4600 | AC50: 51100 | AF50: 88 | AH50: 88 | AI50: 1.5 | AK50: I3 | AL50: 1800 | AM50: 1
B51: 49 | C51: 47 | D51: Lot-et-Garonne | E51: 47 - Lot-et-Garonne | F51: 49 | G51: H2 | H51: Ec | I51: 2 | J51: 3 | K51: -5 | L51: -6 | M51: - | N51: - | O51: -5 | P51: -6 | Q51: - | R51: - | S51: - | T51: - | U51: - | V51: - | W51: - | X51: - | Y51: - | Z51: - | AA51: - | AB51: 5000 | AC51: 49800 | AF51: 87 | AH51: 87 | AK51: I3 | AL51: 1800 | AM51: 1
B52: 50 | C52: 48 | D52: Lozère | E52: 48 - Lozère | F52: 50 | G52: H2 | H52: Ed | I52: 2 | J52: 13 | K52: -8 | L52: -19 | M52: - | N52: - | O52: -8 | P52: -9 | Q52: -10 | R52: -11 | S52: -12 | T52: -13 | U52: -14 | V52: -15 | W52: -16 | X52: -17 | Y52: -18 | Z52: -19 | AA52: - | AB52: 4600 | AC52: 64800 | AF52: 100 | AH52: 100 | AI52: 1.5 | AK52: I3 | AL52: 1800 | AM52: 1
B53: 51 | C53: 49 | D53: Maine-et-Loire | E53: 49 - Maine-et-Loire | F53: 51 | G53: H2 | H53: Eb | I53: 2 | J53: 3 | K53: -7 | L53: -8 | M53: - | N53: - | O53: -7 | P53: -8 | Q53: - | R53: - | S53: - | T53: - | U53: - | V53: - | W53: - | X53: - | Y53: - | Z53: - | AA53: - | AB53: 5200 | AC53: 55000 | AF53: 83 | AH53: 83 | AK53: I2 | AL53: 1450 | AM53: 1
B54: 52 | C54: 50 | D54: Manche | E54: 50 - Manche | F54: 52 | G54: H2 | H54: Ea | I54: 0 | J54: 3 | K54: -2 | L54: -5 | M54: -2 | N54: -2 | O54: -4 | P54: -5 | Q54: - | R54: - | S54: - | T54: - | U54: - | V54: - | W54: - | X54: - | Y54: - | Z54: - | AA54: - | AB54: 5700 | AC54: 49700 | AF54: 76 | AH54: 76 | AJ54: 4 | AK54: I1 | AL54: 1250 | AM54: 1
B55: 53 | C55: 51 | D55: Marne | E55: 51 - Marne | F55: 53 | G55: H1 | H55: Eb | I55: 2 | J55: 3 | K55: -10 | L55: -11 | M55: - | N55: - | O55: -10 | P55: -11 | Q55: - | R55: - | S55: - | T55: - | U55: - | V55: - | W55: - | X55: - | Y55: - | Z55: - | AA55: - | AB55: 5600 | AC55: 65000 | AF55: 74 | AH55: 74 | AK55: I1 | AL55: 1250 | AM55: 1
B56: 54 | C56: 52 | D56: Haute-Marne | E56: 52 - Haute-Marne | F56: 54 | G56: H1 | H56: Eb | I56: 2 | J56: 5 | K56: -12 | L56: -15 | M56: - | N56: - | O56: -12 | P56: -13 | Q56: -14 | R56: -15 | S56: - | T56: - | U56: - | V56: - | W56: - | X56: - | Y56: - | Z56: - | AA56: - | AB56: 5200 | AC56: 62700 | AF56: 73 | AH56: 73 | AI56: 1.5 | AK56: I1 | AL56: 1250 | AM56: 1
B57: 55 | C57: 53 | D57: Mayenne | E57: 53 - Mayenne | F57: 55 | G57: H2 | H57: Eb | I57: 2 | J57: 3 | K57: -7 | L57: -8 | M57: - | N57: - | O57: -7 | P57: -8 | Q57: - | R57: - | S57: - | T57: - | U57: - | V57: - | W57: - | X57: - | Y57: - | Z57: - | AA57: - | AB57: 5200 | AC57: 55200 | AF57: 81 | AH57: 81 | AK57: I2 | AL57: 1450 | AM57: 1
B58: 56 | C58: 54 | D58: Meurthe-et-Moselle | E58: 54 - Meurthe-et-Moselle | F58: 56 | G58: H1 | H58: Eb | I58: 2 | J58: 8 | K58: -15 | L58: -20 | M58: - | N58: - | O58: -15 | P58: -15 | Q58: -16 | R58: -17 | S58: -18 | T58: -19 | U58: -20 | V58: - | W58: - | X58: - | Y58: - | Z58: - | AA58: - | AB58: 5800 | AC58: 66500 | AF58: 69 | AH58: 69 | AK58: I1 | AL58: 1250 | AM58: 1
B59: 57 | C59: 55 | D59: Meuse | E59: 55 - Meuse | F59: 57 | G59: H1 | H59: Eb | I59: 2 | J59: 4 | K59: -12 | L59: -14 | M59: - | N59: - | O59: -12 | P59: -13 | Q59: -14 | R59: - | S59: - | T59: - | U59: - | V59: - | W59: - | X59: - | Y59: - | Z59: - | AA59: - | AB59: 5600 | AC59: 71200 | AF59: 71 | AH59: 71 | AK59: I1 | AL59: 1250 | AM59: 1
B60: 58 | C60: 56 | D60: Morbihan | E60: 56 - Morbihan | F60: 58 | G60: H2 | H60: Ea | I60: 0 | J60: 3 | K60: -2 | L60: -5 | M60: -2 | N60: -4 | O60: -4 | P60: -5 | Q60: - | R60: - | S60: - | T60: - | U60: - | V60: - | W60: - | X60: - | Y60: - | Z60: - | AA60: - | AB60: 5100 | AC60: 48000 | AF60: 79 | AH60: 79 | AJ60: 5 | AK60: I2 | AL60: 1450 | AM60: 1
B61: 59 | C61: 57 | D61: Moselle | E61: 57 - Moselle | F61: 59 | G61: H1 | H61: Eb | I61: 2 | J61: 8 | K61: -15 | L61: -20 | M61: - | N61: - | O61: -15 | P61: -15 | Q61: -16 | R61: -17 | S61: -18 | T61: -19 | U61: -20 | V61: - | W61: - | X61: - | Y61: - | Z61: - | AA61: - | AB61: 5600 | AC61: 68000 | AF61: 69 | AH61: 69 | AK61: I1 | AL61: 1250 | AM61: 1
B62: 60 | C62: 58 | D62: Nièvre | E62: 58 - Nièvre | F62: 60 | G62: H1 | H62: Eb | I62: 2 | J62: 12 | K62: -10 | L62: -20 | M62: - | N62: - | O62: -10 | P62: -11 | Q62: -12 | R62: -13 | S62: -14 | T62: -15 | U62: -16 | V62: -17 | W62: -18 | X62: -19 | Y62: -20 | Z62: - | AA62: - | AB62: 5200 | AC62: 60800 | AF62: 76 | AH62: 76 | AI62: 1.5 | AK62: I2 | AL62: 1450 | AM62: 1
B63: 61 | C63: 59 | D63: Nord | E63: 59 - Nord | F63: 61 | G63: H1 | H63: Ea | I63: 0 | J63: 3 | K63: -7 | L63: -10 | M63: -7 | N63: -9 | O63: -9 | P63: -10 | Q63: - | R63: - | S63: - | T63: - | U63: - | V63: - | W63: - | X63: - | Y63: - | Z63: - | AA63: - | AB63: 5500 | AC63: 60000 | AF63: 69 | AH63: 69 | AJ63: 5 | AK63: I1 | AL63: 1250 | AM63: 1
B64: 62 | C64: 60 | D64: Oise | E64: 60 - Oise | F64: 62 | G64: H1 | H64: Ea | I64: 2 | J64: 3 | K64: -7 | L64: -8 | M64: - | N64: - | O64: -7 | P64: -8 | Q64: - | R64: - | S64: - | T64: - | U64: - | V64: - | W64: - | X64: - | Y64: - | Z64: - | AA64: - | AB64: 5700 | AC64: 61200 | AF64: 75 | AH64: 75 | AK64: I1 | AL64: 1250 | AM64: 1
B65: 63 | C65: 61 | D65: Orne | E65: 61 - Orne | F65: 63 | G65: H1 | H65: Ea | I65: 2 | J65: 4 | K65: -7 | L65: -9 | M65: - | N65: - | O65: -7 | P65: -8 | Q65: -9 | R65: - | S65: - | T65: - | U65: - | V65: - | W65: - | X65: - | Y65: - | Z65: - | AA65: - | AB65: 5600 | AC65: 60900 | AF65: 79 | AH65: 79 | AK65: I1 | AL65: 1250 | AM65: 1
B66: 64 | C66: 62 | D66: Pas-de-Calais | E66: 62 - Pas-de-Calais | F66: 64 | G66: H1 | H66: Ea | I66: 0 | J66: 3 | K66: -7 | L66: -10 | M66: -7 | N66: -9 | O66: -9 | P66: -10 | Q66: - | R66: - | S66: - | T66: - | U66: - | V66: - | W66: - | X66: - | Y66: - | Z66: - | AA66: - | AB66: 5500 | AC66: 60400 | AF66: 69 | AH66: 69 | AJ66: 5 | AK66: I1 | AL66: 1250 | AM66: 1
B67: 65 | C67: 63 | D67: Puy-de-Dôme | E67: 63 - Puy-de-Dôme | F67: 65 | G67: H1 | H67: Ec | I67: 2 | J67: 13 | K67: -8 | L67: -19 | M67: - | N67: - | O67: -8 | P67: -9 | Q67: -10 | R67: -11 | S67: -12 | T67: -13 | U67: -14 | V67: -15 | W67: -16 | X67: -17 | Y67: -18 | Z67: -19 | AA67: - | AB67: 4800 | AC67: 60000 | AF67: 83 | AH67: 83 | AI67: 1.5 | AK67: I2 | AL67: 1450 | AM67: 1.1
B68: 66 | C68: 64 | D68: Pyrénées Atlantiques | E68: =C68&" - "&D68 -> 64 - Pyrénées Atlantiques | F68: 66 | G68: H2 | H68: Ec | I68: 0 | J68: =MATCH(L68,M68:AA68,0)-1 -> 14 | K68: -3 | L68: -12 | M68: -3 | N68: -4 | O68: -5 | P68: -6 | Q68: -7 | R68: -7 | S68: -8 | T68: -8 | U68: -9 | V68: -9 | W68: -10 | X68: -10 | Y68: -11 | Z68: -11 | AA68: -12 | AB68: 4200 | AC68: 38400 | AF68: 98 | AH68: 98 | AI68: 1.8 | AJ68: 5 | AK68: I3 | AL68: 1800 | AM68: 1.1
B69: 67 | C69: 65 | D69: Hautes-Pyrénées | E69: 65 - Hautes-Pyrénées | F69: 67 | G69: H2 | H69: Ec | I69: 2 | J69: 14 | K69: =MAX(M69:AA69) -> -5 | L69: -12 | M69: - | N69: - | O69: -5 | P69: -6 | Q69: -7 | R69: -7 | S69: -8 | T69: -8 | U69: -9 | V69: -9 | W69: -10 | X69: -10 | Y69: -11 | Z69: -11 | AA69: -12 | AB69: 4600 | AC69: 52500 | AF69: 98 | AH69: =IF(AG69=0,AF69,(AF69+AG69)/2) -> 98 | AI69: 1.5 | AK69: I3 | AL69: 1800 | AM69: 1
B70: 68 | C70: 66 | D70: Pyrénées-orientales | E70: 66 - Pyrénées-orientales | F70: 68 | G70: H3 | H70: Ed | I70: 0 | J70: 14 | K70: -2 | L70: -12 | M70: -2 | N70: -4 | O70: -5 | P70: -6 | Q70: -7 | R70: -7 | S70: -8 | T70: -8 | U70: -9 | V70: -9 | W70: -10 | X70: -10 | Y70: -11 | Z70: -11 | AA70: -12 | AB70: 3700 | AC70: 36000 | AD70: >30km de la mer | AE70: <30km de la mer | AF70: 140 | AG70: 127 | AH70: 133.5 | AI70: 1.8 | AJ70: 5 | AK70: I4 | AL70: 2200 | AM70: 1.1
B71: 69 | C71: 67 | D71: Bas-Rhin | E71: 67 - Bas-Rhin | F71: 69 | G71: H1 | H71: Eb | I71: 2 | J71: 8 | K71: -15 | L71: =MIN(M71:AA71) -> -20 | M71: - | N71: - | O71: -15 | P71: -15 | Q71: -16 | R71: -17 | S71: -18 | T71: -19 | U71: -20 | V71: - | W71: - | X71: - | Y71: - | Z71: - | AA71: - | AB71: 5200 | AC71: 64800 | AF71: 66 | AH71: 66 | AI71: 1.5 | AK71: I1 | AL71: 1250 | AM71: 1
B72: 70 | C72: 68 | D72: Haut-Rhin | E72: 68 - Haut-Rhin | F72: 70 | G72: H1 | H72: Eb | I72: 2 | J72: 8 | K72: -15 | L72: -20 | M72: - | N72: - | O72: -15 | P72: -15 | Q72: -16 | R72: -17 | S72: -18 | T72: -19 | U72: -20 | V72: - | W72: - | X72: - | Y72: - | Z72: - | AA72: - | AB72: 5300 | AC72: 64000 | AF72: 69 | AH72: 69 | AI72: 1.5 | AK72: I1 | AL72: 1250 | AM72: 1
B73: 71 | C73: 69 | D73: Rhône | E73: 69 - Rhône | F73: 71 | G73: H1 | H73: Ec | I73: 2 | J73: 12 | K73: -10 | L73: -20 | M73: - | N73: - | O73: -10 | P73: -11 | Q73: -12 | R73: -13 | S73: -14 | T73: -15 | U73: -16 | V73: -17 | W73: -18 | X73: -19 | Y73: -20 | Z73: - | AA73: - | AB73: 4900 | AC73: 58800 | AF73: 80 | AH73: 80 | AI73: 1.5 | AK73: I2 | AL73: 1450 | AM73: 1
B74: 72 | C74: 70 | D74: Haute-Saône | E74: 70 - Haute-Saône | F74: 72 | G74: H1 | H74: Eb | I74: 2 | J74: 12 | K74: -10 | L74: -20 | M74: - | N74: - | O74: -10 | P74: -11 | Q74: -12 | R74: -13 | S74: -14 | T74: -15 | U74: -16 | V74: -17 | W74: -18 | X74: -19 | Y74: -20 | Z74: - | AA74: - | AB74: 5300 | AC74: 65000 | AF74: 71 | AH74: 71 | AI74: 1.5 | AK74: I1 | AL74: 1250 | AM74: 1
B75: 73 | C75: 71 | D75: Saône-et-Loire | E75: 71 - Saône-et-Loire | F75: 73 | G75: H1 | H75: Ec | I75: 2 | J75: 12 | K75: -10 | L75: -20 | M75: - | N75: - | O75: -10 | P75: -11 | Q75: -12 | R75: -13 | S75: -14 | T75: -15 | U75: -16 | V75: -17 | W75: -18 | X75: -19 | Y75: -20 | Z75: - | AA75: - | AB75: 5200 | AC75: 62400 | AF75: 74 | AH75: 74 | AI75: 1.5 | AK75: I2 | AL75: 1450 | AM75: 1
B76: 74 | C76: 72 | D76: Sarthe | E76: 72 - Sarthe | F76: 74 | G76: H2 | H76: Eb | I76: 2 | J76: 3 | K76: -7 | L76: -8 | M76: - | N76: - | O76: -7 | P76: -8 | Q76: - | R76: - | S76: - | T76: - | U76: - | V76: - | W76: - | X76: - | Y76: - | Z76: - | AA76: - | AB76: 5300 | AC76: 57000 | AF76: 82 | AH76: 82 | AK76: I2 | AL76: 1450 | AM76: 1
B77: 75 | C77: 73 | D77: Savoie | E77: 73 - Savoie | F77: 75 | G77: H1 | H77: Ec | I77: 2 | J77: 12 | K77: -10 | L77: -20 | M77: - | N77: - | O77: -10 | P77: -11 | Q77: -12 | R77: -13 | S77: -14 | T77: -15 | U77: -16 | V77: -17 | W77: -18 | X77: -19 | Y77: -20 | Z77: - | AA77: - | AB77: 4600 | AC77: 67100 | AF77: 100 | AH77: 100 | AI77: 1.5 | AK77: I2 | AL77: 1450 | AM77: 1.1
B78: 76 | C78: 74 | D78: Haute-Savoie | E78: 74 - Haute-Savoie | F78: 76 | G78: H1 | H78: Ec | I78: 2 | J78: 12 | K78: -10 | L78: -20 | M78: - | N78: - | O78: -10 | P78: -11 | Q78: -12 | R78: -13 | S78: -14 | T78: -15 | U78: -16 | V78: -17 | W78: -18 | X78: -19 | Y78: -20 | Z78: - | AA78: - | AB78: 4900 | AC78: 64100 | AF78: 80 | AH78: 80 | AI78: 1.5 | AK78: I2 | AL78: 1450 | AM78: 1
B79: 77 | C79: 75 | D79: Paris | E79: 75 - Paris | F79: 77 | G79: H1 | H79: Eb | I79: 2 | J79: 2 | K79: -5 | L79: -5 | M79: - | N79: - | O79: -5 | P79: - | Q79: - | R79: - | S79: - | T79: - | U79: - | V79: - | W79: - | X79: - | Y79: - | Z79: - | AA79: - | AB79: 5100 | AC79: 55000 | AF79: 66 | AH79: 66 | AK79: I1 | AL79: 1250 | AM79: 1
B80: 78 | C80: 76 | D80: Seine-Maritime | E80: 76 - Seine-Maritime | F80: 78 | G80: H1 | H80: Ea | I80: 0 | J80: 3 | K80: -5 | L80: -8 | M80: -5 | N80: -7 | O80: -7 | P80: -8 | Q80: - | R80: - | S80: - | T80: - | U80: - | V80: - | W80: - | X80: - | Y80: - | Z80: - | AA80: - | AB80: 5500 | AC80: 58000 | AF80: 76 | AH80: 76 | AJ80: 5 | AK80: I1 | AL80: 1250 | AM80: 1
B81: 79 | C81: 77 | D81: Seine-et-Marne | E81: 77 - Seine-et-Marne | F81: 79 | G81: H1 | H81: Eb | I81: 2 | J81: 3 | K81: -7 | L81: -8 | M81: - | N81: - | O81: -7 | P81: -8 | Q81: - | R81: - | S81: - | T81: - | U81: - | V81: - | W81: - | X81: - | Y81: - | Z81: - | AA81: - | AB81: 5500 | AC81: 60000 | AF81: 72 | AH81: 72 | AK81: I1 | AL81: 1250 | AM81: 1
B82: 80 | C82: 78 | D82: Yvelines | E82: 78 - Yvelines | F82: 80 | G82: H1 | H82: Eb | I82: 2 | J82: 2 | K82: -7 | L82: -7 | M82: - | N82: - | O82: -7 | P82: - | Q82: - | R82: - | S82: - | T82: - | U82: - | V82: - | W82: - | X82: - | Y82: - | Z82: - | AA82: - | AB82: 5800 | AC82: 63100 | AF82: 72 | AH82: 72 | AK82: I1 | AL82: 1250 | AM82: 1
B83: 81 | C83: 79 | D83: Deux-Sèvres | E83: 79 - Deux-Sèvres | F83: 81 | G83: H2 | H83: Eb | I83: 2 | J83: 3 | K83: -7 | L83: -8 | M83: - | N83: - | O83: -7 | P83: -8 | Q83: - | R83: - | S83: - | T83: - | U83: - | V83: - | W83: - | X83: - | Y83: - | Z83: - | AA83: - | AB83: 5300 | AC83: 50400 | AF83: 85 | AH83: 85 | AK83: I2 | AL83: 1450 | AM83: 1
B84: 82 | C84: 80 | D84: Somme | E84: 80 - Somme | F84: 82 | G84: H1 | H84: Ea | I84: 0 | J84: 3 | K84: -7 | L84: -10 | M84: -7 | N84: -8 | O84: -9 | P84: -10 | Q84: - | R84: - | S84: - | T84: - | U84: - | V84: - | W84: - | X84: - | Y84: - | Z84: - | AA84: - | AB84: 5800 | AC84: 62500 | AF84: 73 | AH84: 73 | AJ84: 5 | AK84: I1 | AL84: 1250 | AM84: 1
B85: 83 | C85: 81 | D85: Tarn | E85: 81 - Tarn | F85: 83 | G85: H2 | H85: Ec | I85: 2 | J85: 14 | K85: -5 | L85: -12 | M85: - | N85: - | O85: -5 | P85: -6 | Q85: -7 | R85: -7 | S85: -8 | T85: -8 | U85: -9 | V85: -9 | W85: -10 | X85: -10 | Y85: -11 | Z85: -11 | AA85: -12 | AB85: 4400 | AC85: 40000 | AF85: 100 | AH85: 100 | AI85: 1.5 | AK85: I3 | AL85: 1800 | AM85: 1
B86: 84 | C86: 82 | D86: Tarn-et-Garonne | E86: 82 - Tarn-et-Garonne | F86: 84 | G86: H2 | H86: Ec | I86: 1 | J86: 3 | K86: -5 | L86: -6 | M86: - | N86: - | O86: -5 | P86: -6 | Q86: - | R86: - | S86: - | T86: - | U86: - | V86: - | W86: - | X86: - | Z86: - | AA86: - | AB86: 4800 | AC86: 49200 | AF86: 90 | AH86: 90 | AK86: I3 | AL86: 1800 | AM86: 1
B87: 85 | C87: 83 | D87: Var | E87: 83 - Var | F87: 85 | G87: H3 | H87: Ed | I87: 1 | J87: 14 | K87: 0 | L87: -12 | M87: 0 | N87: -2 | O87: -5 | P87: -6 | Q87: -7 | R87: -7 | S87: -8 | T87: -8 | U87: -9 | V87: -9 | W87: -10 | X87: -10 | Y87: -11 | Z87: -11 | AA87: -12 | AB87: 3900 | AC87: 36000 | AF87: 132 | AH87: 132 | AI87: 1.8 | AJ87: 5 | AK87: I4 | AL87: 2200 | AM87: 1.1
B88: 86 | C88: 84 | D88: Vaucluse | E88: 84 - Vaucluse | F88: 86 | G88: H2 | H88: Ed | I88: 2 | J88: 10 | K88: -6 | L88: -14 | M88: - | N88: - | O88: -6 | P88: -7 | Q88: -8 | R88: -9 | S88: -10 | T88: -11 | U88: -12 | V88: -13 | W88: -14 | X88: - | Y88: - | Z88: - | AA88: - | AB88: 4600 | AC88: 44000 | AF88: 126 | AH88: 126 | AI88: 1.5 | AK88: I4 | AL88: 2200 | AM88: 1.1
B89: 87 | C89: 85 | D89: Vendée | E89: 85 - Vendée | F89: 87 | G89: H2 | H89: Eb | I89: 0 | J89: 3 | K89: -2 | L89: -6 | M89: -2 | N89: -4 | O89: -5 | P89: -6 | Q89: - | R89: - | S89: - | T89: - | U89: - | V89: - | W89: - | X89: - | Y89: - | Z89: - | AA89: - | AB89: 5200 | AC89: 50000 | AF89: 85 | AH89: 85 | AJ89: 5 | AK89: I3 | AL89: 1800 | AM89: 1
B90: 88 | C90: 86 | D90: Vienne | E90: 86 - Vienne | F90: 88 | G90: H2 | H90: Eb | I90: 2 | J90: 3 | K90: -7 | L90: -8 | M90: - | N90: - | O90: -7 | P90: -8 | Q90: - | R90: - | S90: - | T90: - | U90: - | V90: - | W90: - | X90: - | Y90: - | Z90: - | AA90: - | AB90: 5300 | AC90: 56000 | AF90: 86 | AH90: 86 | AK90: I2 | AL90: 1450 | AM90: 1
B91: 89 | C91: 87 | D91: Haute-Vienne | E91: 87 - Haute-Vienne | F91: 89 | G91: H1 | H91: Ec | I91: 2 | J91: 13 | K91: -8 | L91: -19 | M91: - | N91: - | O91: -8 | P91: -9 | Q91: -10 | R91: -11 | S91: -12 | T91: -13 | U91: -14 | V91: -15 | W91: -16 | X91: -17 | Y91: -18 | Z91: -19 | AA91: - | AB91: 5200 | AC91: 60400 | AF91: 86 | AH91: 86 | AI91: 1.5 | AK91: I2 | AL91: 1450 | AM91: 1.1
B92: 90 | C92: 88 | D92: Vosges | E92: 88 - Vosges | F92: 90 | G92: H1 | H92: Eb | I92: 2 | J92: 8 | K92: -15 | L92: -20 | M92: - | N92: - | O92: -15 | P92: -15 | Q92: -16 | R92: -17 | S92: -18 | T92: -19 | U92: -20 | V92: - | W92: - | X92: - | Y92: - | Z92: - | AA92: - | AB92: 5300 | AC92: 65000 | AF92: 71 | AH92: 71 | AI92: 1.5 | AK92: I1 | AL92: 1250 | AM92: 1
B93: 91 | C93: 89 | D93: Yonne | E93: 89 - Yonne | F93: 91 | G93: H1 | H93: Eb | I93: 2 | J93: 6 | K93: -10 | L93: -14 | M93: - | N93: - | O93: -10 | P93: -11 | Q93: -12 | R93: -13 | S93: -14 | T93: - | U93: - | V93: - | W93: - | X93: - | Y93: - | Z93: - | AA93: - | AB93: 5400 | AC93: 60700 | AF93: 76 | AH93: 76 | AK93: I2 | AL93: 1450 | AM93: 1
B94: 92 | C94: 90 | D94: Territoire-de-Belfort | E94: 90 - Territoire-de-Belfort | F94: 92 | G94: H1 | H94: Eb | I94: 2 | J94: 8 | K94: -15 | L94: -20 | M94: - | N94: - | O94: -15 | P94: -15 | Q94: -16 | R94: -17 | S94: -18 | T94: -19 | U94: -20 | V94: - | W94: - | X94: - | Y94: - | Z94: - | AA94: - | AB94: 5300 | AC94: 67000 | AF94: 70 | AH94: 70 | AI94: 1.5 | AK94: I1 | AL94: 1250 | AM94: 1
B95: 93 | C95: 91 | D95: Essone | E95: 91 - Essone | F95: 93 | G95: H1 | H95: Eb | I95: 2 | J95: 2 | K95: -7 | L95: -7 | M95: - | N95: - | O95: -7 | P95: - | Q95: - | R95: - | S95: - | T95: - | U95: - | V95: - | W95: - | X95: - | Y95: - | Z95: - | AA95: - | AB95: 5500 | AC95: 61000 | AF95: 72 | AH95: 72 | AK95: I1 | AL95: 1250 | AM95: 1
B96: 94 | C96: 92 | D96: Hauts-de-Seine | E96: 92 - Hauts-de-Seine | F96: 94 | G96: H1 | H96: Eb | I96: 2 | J96: 2 | K96: -7 | L96: -7 | M96: - | N96: - | O96: -7 | P96: - | Q96: - | R96: - | S96: - | T96: - | U96: - | V96: - | W96: - | X96: - | Y96: - | Z96: - | AA96: - | AB96: 5300 | AC96: 58000 | AF96: 66 | AH96: 66 | AK96: I1 | AL96: 1250 | AM96: 1
B97: 95 | C97: 93 | D97: Seine-Saint-Denis | E97: 93 - Seine-Saint-Denis | F97: 95 | G97: H1 | H97: Eb | I97: 2 | J97: 2 | K97: -7 | L97: -7 | M97: - | N97: - | O97: -7 | P97: - | Q97: - | R97: - | S97: - | T97: - | U97: - | V97: - | W97: - | X97: - | Y97: - | Z97: - | AA97: - | AB97: 5300 | AC97: 58000 | AF97: 66 | AH97: 66 | AK97: I1 | AL97: 1250 | AM97: 1
B98: 96 | C98: 94 | D98: Val-de-Marne | E98: 94 - Val-de-Marne | F98: 96 | G98: H1 | H98: Eb | I98: 2 | J98: 2 | K98: -7 | L98: -7 | M98: - | N98: - | O98: -7 | P98: - | Q98: - | R98: - | S98: - | T98: - | U98: - | V98: - | W98: - | X98: - | Y98: - | Z98: - | AA98: - | AB98: 5300 | AC98: 58000 | AF98: 66 | AH98: 66 | AK98: I1 | AL98: 1250 | AM98: 1
B99: 97 | C99: 95 | D99: Val-d'Oise | E99: 95 - Val-d'Oise | F99: 97 | G99: H1 | H99: Eb | I99: 2 | J99: 2 | K99: -7 | L99: -7 | M99: - | N99: - | O99: -7 | P99: - | Q99: - | R99: - | S99: - | T99: - | U99: - | V99: - | W99: - | X99: - | Y99: - | Z99: - | AA99: - | AB99: 5500 | AC99: 61000 | AF99: 72 | AH99: 72 | AK99: I1 | AL99: 1250 | AM99: 1
J101: =Données!C69 -> OenoviaPAC-GS (sol)
J102: =VLOOKUP(J101,B530:C540,2,FALSE) -> 6
B103: Ubat | G103: PACs
B104: =Données!C49 -> 1 | F104: 1 | G104: ROE-II | H104: 1 | I104: =D650 -> 10 MR + 6
F105: 2 | G105: ROE H | H105: 2 | I105: 13 MH + 3
F106: 3 | G106: ROE+ | H106: 3 | I106: 11 MR + 6
F107: 4 | G107: ROE+ TH | H107: 4 | I107: 18 TH + 6
F108: 5 | G108: ROI+ | H108: 5 | I108: 11 MR + 6
F109: 6 | G109: SOLO | H109: 6 | I109: 12MR/TR ou 9 MR/TR +3
F110: 7 | G110: NAPO | H110: 7 | I110: 9 MR/TR ou 5 MR/TR +6
B111: Calculs | F111: 8 | G111: AWHP | H111: 8 | I111: 11 MR + 4 ou 11 TR + 6
B112: Ligne temp | C112: =VLOOKUP(Données!C20,calculs!E4:F99,2,FALSE) -> 69
B113: Colonne temp | C113: =AR4 -> 1 | G113: djh base 19
B114: Temp. Ext base | C114: =VLOOKUP(C112,F4:AA99,C113+9,FALSE) -> -15 | D114: =C114 -> -15 | E114: =ABS(D114)+2 -> 17 | G114: =VLOOKUP(C112,F4:AM99,24,FALSE) -> 64800
B115: Coeff G | C115: =B104 -> 1
B116: Volume | C116: =Données!C28*Données!F28 -> 250
B117: Déperditions | C117: =ROUND(C115*C116*(Données!I28-C114)/1000,1) -> 8.8 | D117: =ROUND(C117,0) -> 9
C118: =VLOOKUP(C112,F4:AA99,10,FALSE) -> -15
B119: AWHP mono
B120: Déperditions en [kW] à Tbase | C120: 3 | D120: 4 | E120: 5 | F120: 6 | G120: 7 | H120: 8 | I120: 9 | J120: 10 | K120: 11 | L120: 12 | M120: 13 | N120: 14 | O120: 15 | P120: 16 | Q120: 17 | R120: 18 | S120: 19 | T120: 20
B121: 0 | C121: 4MR+2 | D121: 4MR+2 | E121: 4MR+4 | F121: 6 MR + 4 | G121: 8 MR + 2 | H121: 8 MR + 4 | I121: 8 MR + 4 | J121: 11 MR + 4 | K121: 11 MR + 4 | L121: 11 MR + 6 | M121: 11 MR + 6 | N121: 16 MR + 6 | O121: 16 MR + 6 | P121: 16 MR + 7 | Q121: 16 MR + 9 | R121: 16 MR + 10 | S121: 16 MR + 11 | T121: 16 MR + 13
B122: -1 | C122: 4MR+2 | D122: 4MR+2 | E122: 4MR+4 | F122: 6 MR + 4 | G122: 8 MR + 2 | H122: 8 MR + 4 | I122: 8 MR + 4 | J122: 11 MR + 4 | K122: 11 MR + 4 | L122: 11 MR + 6 | M122: 11 MR + 6 | N122: 16 MR + 6 | O122: 16 MR + 6 | P122: 16 MR + 7 | Q122: 16 MR + 9 | R122: 16 MR + 10 | S122: 16 MR + 11 | T122: 16 MR + 13
B123: -2 | C123: 4MR+2 | D123: 4MR+2 | E123: 4MR+4 | F123: 6 MR + 4 | G123: 8 MR + 2 | H123: 8 MR + 4 | I123: 8 MR + 4 | J123: 11 MR + 4 | K123: 11 MR + 4 | L123: 11 MR + 6 | M123: 11 MR + 6 | N123: 16 MR + 6 | O123: 16 MR + 6 | P123: 16 MR + 8 | Q123: 16 MR + 9 | R123: 16 MR + 10 | S123: 16 MR + 11 | T123: 16 MR + 13
B124: -3 | C124: 4MR+2 | D124: 4MR+2 | E124: 4MR+4 | F124: 6 MR + 4 | G124: 8 MR + 2 | H124: 8 MR + 4 | I124: 8 MR + 4 | J124: 11 MR + 4 | K124: 11 MR + 4 | L124: 11 MR + 6 | M124: 11 MR + 6 | N124: 16 MR + 6 | O124: 16 MR + 6 | P124: 16 MR + 8 | Q124: 16 MR + 9 | R124: 16 MR + 10 | S124: 16 MR + 11 | T124: 16 MR + 13
B125: -4 | C125: 4MR+2 | D125: 4MR+2 | E125: 4MR+4 | F125: 6 MR + 4 | G125: 8 MR + 2 | H125: 8 MR + 4 | I125: 8 MR + 4 | J125: 11 MR + 4 | K125: 11 MR + 4 | L125: 11 MR + 6 | M125: 11 MR + 6 | N125: 16 MR + 6 | O125: 16 MR + 6 | P125: 16 MR + 8 | Q125: 16 MR + 9 | R125: 16 MR + 10 | S125: 16 MR + 11 | T125: 16 MR + 13
B126: -5 | C126: 4MR+2 | D126: 4MR+2 | E126: 4MR+4 | F126: 6 MR + 4 | G126: 8 MR + 2 | H126: 8 MR + 4 | I126: 8 MR + 4 | J126: 11 MR + 4 | K126: 11 MR + 4 | L126: 11 MR + 6 | M126: 11 MR + 6 | N126: 16 MR + 6 | O126: 16 MR + 6 | P126: 16 MR + 8 | Q126: 16 MR + 9 | R126: 16 MR + 10 | S126: 16 MR + 12 | T126: 16 MR + 13
B127: -6 | C127: 4MR+2 | D127: 4MR+2 | E127: 6 MR + 2 | F127: 6 MR + 4 | G127: 8 MR + 2 | H127: 8 MR + 4 | I127: 8 MR + 4 | J127: 11 MR + 4 | K127: 11 MR + 4 | L127: 11 MR + 6 | M127: 11 MR + 6 | N127: 16 MR + 6 | O127: 16 MR + 6 | P127: 16 MR + 8 | Q127: 16 MR + 9 | R127: 16 MR + 11 | S127: 16 MR + 12 | T127: 16 MR + 13
B128: -7 | C128: 4MR+2 | D128: 4MR+2 | E128: 6 MR + 4 | F128: 8 MR + 2 | G128: 8 MR + 2 | H128: 8 MR + 4 | I128: 8 MR + 4 | J128: 11 MR + 4 | K128: 11 MR + 6 | L128: 11 MR + 6 | M128: 16 MR + 6 | N128: 16 MR + 6 | O128: 16 MR + 7 | P128: 16 MR + 9 | Q128: 16 MR + 10 | R128: 16 MR + 11 | S128: 16 MR + 12 | T128: 16 MR + 14
B129: -8 | C129: 4MR+2 | D129: 4MR+2 | E129: 6 MR + 4 | F129: 8 MR + 2 | G129: 8 MR + 2 | H129: 8 MR + 4 | I129: 8 MR + 4 | J129: 11 MR + 4 | K129: 11 MR + 6 | L129: 11 MR + 6 | M129: 16 MR + 6 | N129: 16 MR + 6 | O129: 16 MR + 7 | P129: 16 MR + 9 | Q129: 16 MR + 10 | R129: 16 MR + 11 | S129: 16 MR + 12 | T129: 16 MR + 14
B130: -9 | C130: 4MR+2 | D130: 4MR+2 | E130: 6 MR + 4 | F130: 8 MR + 2 | G130: 8 MR + 2 | H130: 8 MR + 4 | I130: 8 MR + 4 | J130: 11 MR + 4 | K130: 11 MR + 6 | L130: 16 MR + 4 | M130: 16 MR + 6 | N130: 16 MR + 6 | O130: 16 MR + 8 | P130: 16 MR + 9 | Q130: 16 MR + 10 | R130: 16 MR + 11 | S130: 16 MR + 13 | T130: 16 MR + 14
B131: -10 | C131: 4MR+2 | D131: 4MR+2 | E131: 8 MR | F131: 8 MR + 2 | G131: 8 MR + 2 | H131: 8 MR + 4 | I131: 8 MR + 4 | J131: 11 MR + 4 | K131: 11 MR + 6 | L131: 16 MR + 4 | M131: 16 MR + 6 | N131: 16 MR + 7 | O131: 16 MR + 8 | P131: 16 MR + 9 | Q131: 16 MR + 10 | R131: 16 MR + 12 | S131: 16 MR + 13 | T131: 16 MR + 14
B132: -11 | C132: 4MR+2 | D132: 4MR+2 | E132: 8 MR | F132: 8 MR + 2 | G132: 8 MR + 2 | H132: 8 MR + 4 | I132: 11 MR + 4 | J132: 11 MR + 6 | K132: 11 MR + 6 | L132: 16 MR + 6 | M132: 16 MR + 6 | N132: 16 MR + 8 | O132: 16 MR + 9 | P132: 16 MR + 10 | Q132: 16 MR + 11 | R132: 16 MR + 12 | S132: 16 MR + 13 | T132: 16 MR + 15
B133: -12 | C133: 4MR+2 | D133: 6MR+2 | E133: 8 MR | F133: 8 MR + 2 | G133: 8 MR + 2 | H133: 8 MR + 4 | I133: 11 MR + 4 | J133: 11 MR + 6 | K133: 16 MR + 4 | L133: 16 MR + 6 | M133: 16 MR + 6 | N133: 16 MR + 8 | O133: 16 MR + 9 | P133: 16 MR + 10 | Q133: 16 MR + 11 | R133: 16 MR + 12 | S133: 16 MR + 14 | T133: 16 MR + 15
B134: -13 | C134: 4MR+2 | D134: 6MR+2 | E134: 8 MR+2 | F134: 8 MR + 2 | G134: 8 MR + 4 | H134: 8 MR + 4 | I134: 11 MR + 4 | J134: 11 MR + 6 | K134: 16 MR + 6 | L134: 16 MR + 6 | M134: 16 MR + 7 | N134: 16 MR + 8 | O134: 16 MR + 9 | P134: 16 MR + 10 | Q134: 16 MR + 11 | R134: 16 MR + 13 | S134: 16 MR + 14 | T134: 16 MR + 15
B135: -14 | C135: 4MR+2 | D135: 6MR+2 | E135: 8 MR+2 | F135: 8 MR + 2 | G135: 8 MR + 4 | H135: 8 MR + 4 | I135: 11 MR + 4 | J135: 11 MR + 6 | K135: 16 MR + 6 | L135: 16 MR + 6 | M135: 16 MR + 7 | N135: 16 MR + 8 | O135: 16 MR + 9 | P135: 16 MR + 11 | Q135: 16 MR + 12 | R135: 16 MR + 13 | S135: 16 MR + 15 | T135: 16 MR + 16
B136: -15 | C136: 4MR+2 | D136: 6MR+4 | E136: 8 MR+2 | F136: 8 MR + 2 | G136: 8 MR + 4 | H136: 8 MR + 4 | I136: 11 MR + 4 | J136: 11 MR + 6 | K136: 16 MR + 6 | L136: 16 MR + 6 | M136: 16 MR + 7 | N136: 16 MR + 8 | O136: 16 MR + 10 | P136: 16 MR + 11 | Q136: 16 MR + 12 | R136: 16 MR + 13 | S136: 16 MR + 15 | T136: 16 MR + 16
B137: -16 | C137: 4MR+4 | D137: 6MR+6 | E137: 8 MR+2 | F137: 8 MR + 2 | G137: 8 MR + 4 | H137: 11 MR + 4 | I137: 11 MR + 4 | J137: 16 MR + 6 | K137: 16 MR + 6 | L137: 16 MR + 6 | M137: 16 MR + 8 | N137: 16 MR + 9 | O137: 16 MR + 10 | P137: 16 MR + 11 | Q137: 16 MR + 12 | R137: 16 MR + 14 | S137: 16 MR + 15 | T137: 16 MR + 16
B138: -17 | C138: 4MR+4 | D138: 6MR+6 | E138: 8 MR+2 | F138: 8 MR + 2 | G138: 8 MR + 4 | H138: 11 MR + 4 | I138: 11 MR + 4 | J138: 16 MR + 6 | K138: 16 MR + 6 | L138: 16 MR + 7 | M138: 16 MR + 8 | N138: 16 MR + 9 | O138: 16 MR + 10 | P138: 16 MR + 12 | Q138: 16 MR + 13 | R138: 16 MR + 14 | S138: 16 MR + 16 | T138: 16 MR + 17
B139: -18 | C139: 4MR+4 | D139: 6MR+6 | E139: 8 MR+2 | F139: 8 MR + 2 | G139: 8 MR + 4 | H139: 11 MR + 4 | I139: 16 MR + 4 | J139: 16 MR + 6 | K139: 16 MR + 6 | L139: 16 MR + 7 | M139: 16 MR + 8 | N139: 16 MR + 9 | O139: 16 MR + 11 | P139: 16 MR + 12 | Q139: 16 MR + 13 | R139: 16 MR + 14 | S139: 16 MR + 16 | T139: 16 MR + 17
B140: -19 | C140: 4MR+4 | D140: 6MR+6 | E140: 8 MR+2 | F140: 8 MR + 2 | G140: 8 MR + 4 | H140: 11 MR + 4 | I140: 16 MR + 4 | J140: 16 MR + 6 | K140: 16 MR + 6 | L140: 16 MR + 8 | M140: 16 MR + 9 | N140: 16 MR + 10 | O140: 16 MR + 11 | P140: 16 MR + 12 | Q140: 16 MR + 13 | R140: 16 MR + 14 | S140: 16 MR + 16 | T140: 16 MR + 17
B141: -20 | C141: 4MR+4 | D141: 6MR+6 | E141: 8 MR+2 | F141: 8 MR + 2 | G141: 8 MR + 4 | H141: 11 MR + 4 | I141: 16 MR + 4 | J141: 16 MR + 6 | K141: 16 MR + 6 | L141: 16 MR + 8 | M141: 16 MR + 9 | N141: 16 MR + 10 | O141: 16 MR + 11 | P141: 16 MR + 13 | Q141: 16 MR + 14 | R141: 16 MR + 15 | S141: 16 MR + 17 | T141: 16 MR +18
B142: AWHP tri
B143: Déperditions en [kW] à Tbase | C143: 3 | D143: 4 | E143: 5 | F143: 6 | G143: 7 | H143: 8 | I143: 9 | J143: 10 | K143: 11 | L143: 12 | M143: 13 | N143: 14 | O143: 15 | P143: 16 | Q143: 17 | R143: 18 | S143: 19 | T143: 20
B144: 0 | C144: - | D144: - | E144: - | F144: - | G144: - | H144: - | I144: - | J144: 11 TR + 3 | K144: 11 TR + 6 | L144: 11 TR + 6 | M144: 11 TR + 6 | N144: 16 TR + 6 | O144: 16 TR + 6 | P144: 16 TR + 9 | Q144: - | R144: - | S144: - | T144: -
B145: -1 | C145: - | D145: - | E145: - | F145: - | G145: - | H145: - | I145: - | J145: 11 TR + 3 | K145: 11 TR + 6 | L145: 11 TR + 6 | M145: 11 TR + 6 | N145: 16 TR + 6 | O145: 16 TR + 6 | P145: 16 TR + 9 | Q145: - | R145: - | S145: - | T145: -
B146: -2 | C146: - | D146: - | E146: - | F146: - | G146: - | H146: - | I146: - | J146: 11 TR + 3 | K146: 11 TR + 6 | L146: 11 TR + 6 | M146: 11 TR + 6 | N146: 16 TR + 6 | O146: 16 TR + 6 | P146: 16 TR + 9 | Q146: - | R146: - | S146: - | T146: -
B147: -3 | C147: - | D147: - | E147: - | F147: - | G147: - | H147: - | I147: - | J147: 11 TR + 3 | K147: 11 TR + 6 | L147: 11 TR + 6 | M147: 11 TR + 6 | N147: 16 TR + 6 | O147: 16 TR + 6 | P147: 16 TR + 9 | Q147: - | R147: - | S147: - | T147: -
B148: -4 | C148: - | D148: - | E148: - | F148: - | G148: - | H148: - | I148: - | J148: 11 TR + 3 | K148: 11 TR + 6 | L148: 11 TR + 6 | M148: 11 TR + 6 | N148: 16 TR + 6 | O148: 16 TR + 6 | P148: 16 TR + 9 | Q148: - | R148: - | S148: - | T148: -
B149: -5 | C149: - | D149: - | E149: - | F149: - | G149: - | H149: - | I149: - | J149: 11 TR + 3 | K149: 11 TR + 6 | L149: 11 TR + 6 | M149: 11 TR + 6 | N149: 16 TR + 6 | O149: 16 TR + 6 | P149: 16 TR + 9 | Q149: - | R149: - | S149: - | T149: -
B150: -6 | C150: - | D150: - | E150: - | F150: - | G150: - | H150: - | I150: - | J150: 11 TR + 3 | K150: 11 TR + 6 | L150: 11 TR + 6 | M150: 11 TR + 6 | N150: 16 TR + 6 | O150: 16 TR + 6 | P150: 16 TR + 9 | Q150: - | R150: - | S150: - | T150: -
B151: -7 | C151: - | D151: - | E151: - | F151: - | G151: - | H151: - | I151: - | J151: 11 TR + 3 | K151: 11 TR + 6 | L151: 11 TR + 6 | M151: 16 TR + 6 | N151: 16 TR + 6 | O151: 16 TR + 9 | P151: - | Q151: - | R151: - | S151: - | T151: -
B152: -8 | C152: - | D152: - | E152: - | F152: - | G152: - | H152: - | I152: 11 TR + 3 | J152: 11 TR + 6 | K152: 11 TR + 6 | L152: 11 TR + 6 | M152: 16 TR + 6 | N152: 16 TR + 6 | O152: 16 TR + 9 | P152: - | Q152: - | R152: - | S152: - | T152: -
B153: -9 | C153: - | D153: - | E153: - | F153: - | G153: - | H153: - | I153: 11 TR + 3 | J153: 11 TR + 6 | K153: 11 TR + 6 | L153: 16 TR + 6 | M153: 16 TR + 6 | N153: 16 TR + 6 | O153: 16 TR + 9 | P153: - | Q153: - | R153: - | S153: - | T153: -
B154: -10 | C154: - | D154: - | E154: - | F154: - | G154: - | H154: - | I154: 11 TR + 3 | J154: 11 TR + 6 | K154: 11 TR + 6 | L154: 16 TR + 6 | M154: 16 TR + 6 | N154: 16 TR + 6 | O154: - | P154: - | Q154: - | R154: - | S154: - | T154: -
B155: -11 | C155: - | D155: - | E155: - | F155: - | G155: - | H155: 11 TR + 3 | I155: 11 TR + 3 | J155: 11 TR + 6 | K155: 11 TR + 6 | L155: 16 TR + 6 | M155: 16 TR + 6 | N155: 16 TR + 6 | O155: - | P155: - | Q155: - | R155: - | S155: - | T155: -
B156: -12 | C156: - | D156: - | E156: - | F156: - | G156: - | H156: 11 TR + 3 | I156: 11 TR + 3 | J156: 11 TR + 6 | K156: 16 TR + 6 | L156: 16 TR + 6 | M156: 16 TR + 6 | N156: - | O156: - | P156: - | Q156: - | R156: - | S156: - | T156: -
B157: -13 | C157: - | D157: - | E157: - | F157: - | G157: - | H157: 11 TR + 3 | I157: 11 TR + 6 | J157: 11 TR + 6 | K157: 16 TR + 6 | L157: 16 TR + 6 | M157: 16 TR + 6 | N157: - | O157: - | P157: - | Q157: - | R157: - | S157: - | T157: -
B158: -14 | C158: - | D158: - | E158: - | F158: - | G158: - | H158: 11 TR + 3 | I158: 11 TR + 6 | J158: 11 TR + 6 | K158: 16 TR + 6 | L158: 16 TR + 6 | M158: 16 TR + 6 | N158: - | O158: - | P158: - | Q158: - | R158: - | S158: - | T158: -
B159: -15 | C159: - | D159: - | E159: - | F159: - | G159: 11 TR + 3 | H159: 11 TR + 3 | I159: 11 TR + 6 | J159: 16 TR + 6 | K159: 16 TR + 6 | L159: 16 TR + 6 | M159: 16 TR + 9 | N159: - | O159: - | P159: - | Q159: - | R159: - | S159: - | T159: -
B160: -16 | C160: - | D160: - | E160: - | F160: - | G160: 11 TR + 3 | H160: 11 TR + 3 | I160: 11 TR + 6 | J160: 16 TR + 6 | K160: 16 TR + 6 | L160: 16 TR + 6 | M160: 16 TR + 9 | N160: - | O160: - | P160: - | Q160: - | R160: - | S160: - | T160: -
B161: -17 | C161: - | D161: - | E161: - | F161: - | G161: 11 TR + 3 | H161: 11 TR + 6 | I161: 11 TR + 6 | J161: 16 TR + 6 | K161: 16 TR + 6 | L161: 16 TR + 9 | M161: 16 TR + 9 | N161: - | O161: - | P161: - | Q161: - | R161: - | S161: - | T161: -
B162: -18 | C162: - | D162: - | E162: - | F162: - | G162: 11 TR + 3 | H162: 11 TR + 6 | I162: 16 TR + 6 | J162: 16 TR + 6 | K162: 16 TR + 6 | L162: 16 TR + 9 | M162: - | N162: - | O162: - | P162: - | Q162: - | R162: - | S162: - | T162: -
B163: -19 | C163: - | D163: - | E163: - | F163: - | G163: 11 TR + 3 | H163: 11 TR + 6 | I163: 16 TR + 6 | J163: 16 TR + 6 | K163: 16 TR + 6 | L163: 16 TR + 9 | M163: - | N163: - | O163: - | P163: - | Q163: - | R163: - | S163: - | T163: -
B164: -20 | C164: - | D164: - | E164: - | F164: - | G164: 11 TR + 3 | H164: 11 TR + 6 | I164: 16 TR + 6 | J164: 16 TR + 6 | K164: 16 TR + 6 | L164: - | M164: - | N164: - | O164: - | P164: - | Q164: - | R164: - | S164: - | T164: -
B166: ROE-II
B167: Déperditions en [kW] à Tbase | C167: 5 | D167: 6 | E167: 7 | F167: 8 | G167: 9 | H167: 10 | I167: 11 | J167: 12 | K167: 13 | L167: 14 | M167: 15 | N167: 16 | O167: 17 | P167: 18 | Q167: 19 | R167: 20
B168: 0 | C168: 6 MR + 3 | D168: 6 MR + 3 | E168: 6 MR + 6 | F168: 6 MR + 6 | G168: 8 MR + 6 | H168: 8 MR + 6 | I168: 10 MR + 6 | J168: 10 TR + 12 | K168: 10 TR + 12 | L168: 13 MR + 6 | M168: 13 TR + 12 | N168: 13 TR + 12 | O168: 13 TR + 12 | P168: 13 TR + 12 | Q168: 17 TR + 12 | R168: 17 TR + 12
B169: -1 | C169: 6 MR + 3 | D169: 6 MR + 3 | E169: 6 MR + 6 | F169: 6 MR + 6 | G169: 8 MR + 6 | H169: 8 MR + 6 | I169: 10 MR + 6 | J169: 10 TR + 12 | K169: 10 TR + 12 | L169: 13 MR + 6 | M169: 13 TR + 12 | N169: 13 TR + 12 | O169: 13 TR + 12 | P169: 13 TR + 12 | Q169: 17 TR + 12 | R169: 17 TR + 12
B170: -2 | C170: 6 MR + 3 | D170: 6 MR + 3 | E170: 6 MR + 6 | F170: 8 MR + 6 | G170: 8 MR + 6 | H170: 8 MR + 6 | I170: 10 MR + 6 | J170: 10 TR + 12 | K170: 13 MR + 6 | L170: 13 MR + 6 | M170: 13 TR + 12 | N170: 13 TR + 12 | O170: 13 TR + 12 | P170: 13 TR + 12 | Q170: 17 TR + 12 | R170: 17 TR + 12
B171: -3 | C171: 6 MR + 3 | D171: 6 MR + 3 | E171: 6 MR + 6 | F171: 8 MR + 6 | G171: 8 MR + 6 | H171: 10 MR + 6 | I171: 10 MR + 6 | J171: 10 TR + 12 | K171: 13 MR + 6 | L171: 13 TR + 6 | M171: 13 TR + 12 | N171: 13 TR + 12 | O171: 13 TR + 12 | P171: 17 TR + 12 | Q171: 17 TR + 12 | R171: 17 TR + 12
B172: -4 | C172: 6 MR + 3 | D172: 6 MR + 3 | E172: 6 MR + 6 | F172: 8 MR + 6 | G172: 8 MR + 6 | H172: 10 MR + 6 | I172: 10 TR + 12 | J172: 13 MR + 6 | K172: 13 MR + 6 | L172: 13 TR + 6 | M172: 13 TR + 12 | N172: 13 TR + 12 | O172: 13 TR + 12 | P172: 17 TR + 12 | Q172: 17 TR + 12 | R172: 17 TR + AH
B173: -5 | C173: 6 MR + 3 | D173: 6 MR + 3 | E173: 6 MR + 6 | F173: 8 MR + 6 | G173: 8 MR + 6 | H173: 10 MR + 6 | I173: 10 TR + 12 | J173: 13 MR + 6 | K173: 13 MR + 6 | L173: 13 TR + 12 | M173: 13 TR + 12 | N173: 13 TR + 12 | O173: 17 TR + 12 | P173: 17 TR + 12 | Q173: 17 TR + AH | R173: 17 TR + AH
B174: -6 | C174: 6 MR + 3 | D174: 6 MR + 3 | E174: 6 MR + 6 | F174: 8 MR + 6 | G174: 10 MR + 6 | H174: 10 MR + 6 | I174: 10 TR + 12 | J174: 13 MR + 6 | K174: 13 TR + 6 | L174: 13 TR + 12 | M174: 13 TR + 12 | N174: 13 TR + 12 | O174: 17 TR + 12 | P174: 17 TR + 12 | Q174: 17 TR + AH | R174: 17 TR + AH
B175: -7 | C175: 6 MR + 3 | D175: 6 MR + 6 | E175: 8 MR + 6 | F175: 8 MR + 6 | G175: 10 MR + 6 | H175: 10 MR + 6 | I175: 13 MR + 6 | J175: 13 MR + 6 | K175: 13 TR + 6 | L175: 13 TR + 12 | M175: 13 TR + 12 | N175: 17 TR + 12 | O175: 17 TR + 12 | P175: 17 TR + AH | Q175: 17 TR + AH | R175: 17 TR + AH
B176: -8 | C176: 6 MR + 3 | D176: 6 MR + 6 | E176: 8 MR + 6 | F176: 8 MR + 6 | G176: 10 MR + 6 | H176: 10 MR + 6 | I176: 13 MR + 6 | J176: 13 MR + 6 | K176: 13 TR + 6 | L176: 13 TR + 12 | M176: 13 TR + 12 | N176: 17 TR + 12 | O176: 17 TR + 12 | P176: 17 TR + AH | Q176: 17 TR + AH | R176: 17 TR + AH
B177: -9 | C177: 6 MR + 3 | D177: 6 MR + 6 | E177: 8 MR + 6 | F177: 8 MR + 6 | G177: 10 MR + 6 | H177: 10 MR + 6 | I177: 13 MR + 6 | J177: 13 TR + 6 | K177: 13 TR + 12 | L177: 13 TR + 12 | M177: 17 TR + 12 | N177: 17 TR + 12 | O177: 17 TR + 12 | P177: 17 TR + AH | Q177: 17 TR + AH | R177: 17 TR + AH
B178: -10 | C178: 6 MR + 3 | D178: 6 MR + 6 | E178: 8 MR + 6 | F178: 8 MR + 6 | G178: 10 MR + 6 | H178: 10 MR + 6 | I178: 13 MR + 6 | J178: 13 TR + 6 | K178: 13 TR + 12 | L178: 13 TR + 12 | M178: 17 TR + 12 | N178: 17 TR + 12 | O178: 17 TR + AH | P178: 17 TR + AH | Q178: 17 TR + AH | R178: 17 TR + AH
B179: -11 | C179: 6 MR + 3 | D179: 6 MR + 6 | E179: 8 MR + 6 | F179: 8 MR + 6 | G179: 10 MR + 6 | H179: 13 MR + 6 | I179: 13 MR + 6 | J179: 13 TR + 6 | K179: 13 TR + 12 | L179: 13 TR + 12 | M179: 17 TR + 12 | N179: 17 TR + AH | O179: 17 TR + AH | P179: 17 TR + AH | Q179: 17 TR + AH | R179: 17 TR + AH
B180: -12 | C180: 6 MR + 3 | D180: 8 MR + 3 | E180: 8 MR + 6 | F180: 10 MR + 6 | G180: 10 MR + 6 | H180: 13 MR + 6 | I180: 13 MR + 6 | J180: 13 TR + 6 | K180: 13 TR + 12 | L180: 17 TR + 12 | M180: 17 TR + 12 | N180: 17 TR + AH | O180: 17 TR + AH | P180: 17 TR + AH | Q180: 17 TR + AH | R180: 17 TR + AH
B181: -13 | C181: 6 MR + 3 | D181: 8 MR + 3 | E181: 8 MR + 6 | F181: 10 MR + 6 | G181: 10 MR + 6 | H181: 13 MR + 6 | I181: 13 MR + 6 | J181: 13 TR + 12 | K181: 13 TR + 12 | L181: 17 TR + 12 | M181: 17 TR + 12 | N181: 17 TR + AH | O181: 17 TR + AH | P181: 17 TR + AH | Q181: 17 TR + AH | R181: 17 TR + AH
B182: -14 | C182: 6 MR + 3 | D182: 8 MR + 3 | E182: 8 MR + 6 | F182: 10 MR + 6 | G182: 10 MR + 6 | H182: 13 MR + 6 | I182: 13 MR + 6 | J182: 13 TR + 12 | K182: 13 TR + 12 | L182: 17 TR + 12 | M182: 17 TR + 12 | N182: 17 TR + AH | O182: 17 TR + AH | P182: 17 TR + AH | Q182: 17 TR + AH | R182: 17 TR + AH
B183: -15 | C183: 6 MR + 3 | D183: 8 MR + 3 | E183: 8 MR + 6 | F183: 10 MR + 6 | G183: 10 MR + 6 | H183: 13 MR + 6 | I183: 13 MR + 6 | J183: 13 TR + 12 | K183: 13 TR + 12 | L183: 17 TR + 12 | M183: 17 TR + 12 | N183: 17 TR + AH | O183: 17 TR + AH | P183: 17 TR + AH | Q183: 17 TR + AH | R183: 17 TR + AH
B184: -16 | C184: 6MR + 6 | D184: 8 MR + 12 | E184: 8 MR + 12 | F184: 10 TR + 12 | G184: 10 TR + 12 | H184: 13 TR + 12 | I184: 13 MR + AH | J184: 13 MR + AH | K184: 13 MR + AH | L184: 17 TR + AH | M184: 17 TR + AH | N184: 17 TR + AH | O184: 17 TR + AH | P184: 17 TR + AH | Q184: 17 TR + AH | R184: 17 TR + AH
B185: -17 | C185: 6MR + 6 | D185: 8 MR + 12 | E185: 8 MR + 12 | F185: 10 TR + 12 | G185: 10 TR + 12 | H185: 13 TR + 12 | I185: 13 MR + AH | J185: 13 MR + AH | K185: 13 MR + AH | L185: 17 TR + AH | M185: 17 TR + AH | N185: 17 TR + AH | O185: 17 TR + AH | P185: 17 TR + AH | Q185: 17 TR + AH | R185: 17 TR + AH
B186: -18 | C186: 6MR + 6 | D186: 8 MR + 12 | E186: 8 MR + 12 | F186: 10 TR + 12 | G186: 10 TR + 12 | H186: 13 TR + 12 | I186: 13 MR + AH | J186: 13 MR + AH | K186: 13 MR + AH | L186: 17 TR + AH | M186: 17 TR + AH | N186: 17 TR + AH | O186: 17 TR + AH | P186: 17 TR + AH | Q186: 17 TR + AH | R186: 17 TR + AH
B187: -19 | C187: 6MR + 6 | D187: 8 MR + 12 | E187: 8 MR + 12 | F187: 10 TR + 12 | G187: 10 TR + 12 | H187: 13 TR + 12 | I187: 13 MR + AH | J187: 13 MR + AH | K187: 13 MR + AH | L187: 17 TR + AH | M187: 17 TR + AH | N187: 17 TR + AH | O187: 17 TR + AH | P187: 17 TR + AH | Q187: 17 TR + AH | R187: 17 TR + AH
B188: -20 | C188: 6MR + 6 | D188: 8 MR + 12 | E188: 8 MR + 12 | F188: 10 TR + 12 | G188: 10 TR + 12 | H188: 13 TR + 12 | I188: 13 MR + AH | J188: 13 MR + AH | K188: 13 MR + AH | L188: 17 TR + AH | M188: 17 TR + AH | N188: 17 TR + AH | O188: 17 TR + AH | P188: 17 TR + AH | Q188: 17 TR + AH | R188: 17 TR + AH
B189: ROE+
B190: Déperditions en [kW] à Tbase | C190: 5 | D190: 6 | E190: 7 | F190: 8 | G190: 9 | H190: 10 | I190: 11 | J190: 12 | K190: 13 | L190: 14 | M190: 15 | N190: 16 | O190: 17 | P190: 18 | Q190: 19 | R190: 20
B191: 0 | C191: - | D191: - | E191: - | F191: - | G191: - | H191: - | I191: 11 MR + 6 | J191: 11 MR + 6 | K191: 11 TR + 12 | L191: 11 TR + 12 | M191: 11 TR + 12 | N191: 16 TR + 12 | O191: 16 TR + 12 | P191: 16 TR + 12 | Q191: 16 TR + 12 | R191: 16 TR + 12
B192: -1 | C192: - | D192: - | E192: - | F192: - | G192: - | H192: - | I192: 11 MR + 6 | J192: 11 MR + 6 | K192: 11 TR + 12 | L192: 11 TR + 12 | M192: 11 TR + 12 | N192: 16 TR + 12 | O192: 16 TR + 12 | P192: 16 TR + 12 | Q192: 16 TR + 12 | R192: 16 TR + 12
B193: -2 | C193: - | D193: - | E193: - | F193: - | G193: - | H193: - | I193: 11 MR + 6 | J193: 11 MR + 6 | K193: 11 TR + 12 | L193: 11 TR + 12 | M193: 11 TR + 12 | N193: 16 TR + 12 | O193: 16 TR + 12 | P193: 16 TR + 12 | Q193: 16 TR + 12 | R193: 16 TR + 12
B194: -3 | C194: - | D194: - | E194: - | F194: - | G194: - | H194: 11 MR + 6 | I194: 11 MR + 6 | J194: 11 TR + 12 | K194: 11 TR + 12 | L194: 11 TR + 12 | M194: 11 TR + 12 | N194: 16 TR + 12 | O194: 16 TR + 12 | P194: 16 TR + 12 | Q194: 16 TR + 12 | R194: 16 TR + 12
B195: -4 | C195: - | D195: - | E195: - | F195: - | G195: - | H195: 11 MR + 6 | I195: 11 MR + 6 | J195: 11 TR + 12 | K195: 11 TR + 12 | L195: 11 TR + 12 | M195: 11 TR + 12 | N195: 16 TR + 12 | O195: 16 TR + 12 | P195: 16 TR + 12 | Q195: 16 TR + 12 | R195: 16 TR + 12
B196: -5 | C196: - | D196: - | E196: - | F196: - | G196: - | H196: 11 MR + 6 | I196: 11 MR + 6 | J196: 11 TR + 12 | K196: 11 TR + 12 | L196: 11 TR + 12 | M196: 16 TR + 12 | N196: 16 TR + 12 | O196: 16 TR + 12 | P196: 16 TR + 12 | Q196: 16 TR + 12 | R196: 16 TR + 12
B197: -6 | C197: - | D197: - | E197: - | F197: - | G197: - | H197: 11 MR + 6 | I197: 11 MR + 6 | J197: 11 TR + 12 | K197: 11 TR + 12 | L197: 11 TR + 12 | M197: 16 TR + 12 | N197: 16 TR + 12 | O197: 16 TR + 12 | P197: 16 TR + 12 | Q197: 16 TR + 12 | R197: 16 TR + 12
B198: -7 | C198: - | D198: - | E198: - | F198: - | G198: - | H198: 11 MR + 6 | I198: 11 MR + 6 | J198: 11 TR + 12 | K198: 11 TR + 12 | L198: 11 TR + 12 | M198: 16 TR + 12 | N198: 16 TR + 12 | O198: 16 TR + 12 | P198: 16 TR + 12 | Q198: 16 TR + 12 | R198: 16 TR + 12
B199: -8 | C199: - | D199: - | E199: - | F199: - | G199: 11 MR + 6 | H199: 11 MR + 6 | I199: 11 MR + 6 | J199: 11 TR + 12 | K199: 11 TR + 12 | L199: 16 TR + 6 | M199: 16 TR + 12 | N199: 16 TR + 12 | O199: 16 TR + 12 | P199: 16 TR + AH | Q199: 16 TR + AH | R199: 16 TR + AH
B200: -9 | C200: - | D200: - | E200: - | F200: - | G200: 11 MR + 6 | H200: 11 MR + 6 | I200: 11 MR + 6 | J200: 11 TR + 12 | K200: 11 TR + 12 | L200: 16 TR + 6 | M200: 16 TR + 12 | N200: 16 TR + 12 | O200: 16 TR + 12 | P200: 16 TR + AH | Q200: 16 TR + AH | R200: 16 TR + AH
B201: -10 | C201: - | D201: - | E201: - | F201: - | G201: 11 MR + 6 | H201: 11 MR + 6 | I201: 11 MR + 6 | J201: 11 TR + 12 | K201: 11 TR + 12 | L201: 16 TR + 12 | M201: 16 TR + 12 | N201: 16 TR + 12 | O201: 16 TR + 12 | P201: 16 TR + AH | Q201: 16 TR + AH | R201: 16 TR + AH
B202: -11 | C202: - | D202: - | E202: - | F202: - | G202: 11 MR + 6 | H202: 11 MR + 6 | I202: 11 TR + 12 | J202: 11 TR + 12 | K202: 16 TR + 6 | L202: 16 TR + 12 | M202: 16 TR + 12 | N202: 16 TR + 12 | O202: 16 TR + 12 | P202: 16 TR + AH | Q202: 16 TR + AH | R202: 16 TR + AH
B203: -12 | C203: - | D203: - | E203: - | F203: - | G203: 11 MR + 6 | H203: 11 MR + 6 | I203: 11 TR + 12 | J203: 11 TR + 12 | K203: 16 TR + 6 | L203: 16 TR + 12 | M203: 16 TR + 12 | N203: 16 TR + 12 | O203: 16 TR + 12 | P203: 16 TR + AH | Q203: 16 TR + AH | R203: 16 TR + AH
... 417 more rows
